Workbook

Sheet Sheet3

Sheet All Admins
A1: 1 | B1: =A1+1 -> 2 | C1: =B1+1 -> 3 | D1: 4 | E1: 5 | F1: 6 | G1: 7 | H1: 8 | I1: 9 | J1: 10 | K1: 11 | L1: 12 | M1: 13 | N1: 14 | O1: 15 | P1: 16 | Q1: 17 | R1: 18 | S1: 19 | T1: 20 | U1: 21 | V1: 22 | W1: 23 | X1: 24 | Y1: 25 | Z1: 26 | AA1: 27 | AB1: 28 | AC1: 29 | AD1: 30 | AE1: 31 | AF1: 32 | AG1: 33 | AH1: 34 | AI1: 35 | AJ1: 36 | AK1: 37 | AL1: 38 | AM1: 39 | AN1: 40 | AO1: 41 | AP1: =AO1+1 -> 42 | AQ1: 43 | AR1: 44 | AS1: 45 | AT1: 46 | AU1: 47 | AV1: 48 | AW1: 49 | AX1: 50 | AY1: 51 | AZ1: 52 | BA1: 53 | BB1: 54 | BC1: 55
A2: Respondent | B2: Country code | C2: Band index | D2: Frequency band (MHz) | E2: Licensing regime | I2: Topo-logy | K2: Application | P2: Number of P-P links | R2: Number of CS | S2: Channel/Frequency plan used (e.g. ERC/ECC Rec. ITU-R Rec.) | T2: Link characteristics | Z2: Future trends (e.g. in the next 5 years)
I3: FWA | K3: Network Infrastruc-ture | T3: Capacity | W3: Hop length (km)
E4: Link by link | F4: Block | G4: Light licensed | H4: Licence exempt | I4: P-P | J4: P-MP | K4: Mobile backhaul | L4: Others | M4: Broadcasting Infrastructure | N4: No Information available on the application | O4: Other (please indicate) | P4: unidirection | Q4: bidirectional (1 bidirectional link counts 1) | R4: (applicable only for P-MP and mesh networks) | T4: LOW (<10 Mbit/s) | U4: MEDIUM (10 to 100 Mbit/s) | V4: HIGH (>100 Mbit/s) | W4: MIN | X4: Typical figure | Y4: MAX | Z4: Anticipated growth/reduction (+/-%) | AA4: Currently congested | AB4: Planned reallocation to other service/application | AC4: Other (please describe) (see Question 3 of the Questionnaire)
A5: Bosnia and Herzegovina | B5: BIH | C5: 0 | D5: 370-400 | E5: X | M5: X | P5: 129 | T5: X | W5: 1 | X5: 30 | Y5: 100 | AC5: 370-400 MHz: Planned migration of P-P links to 1350-1375/1492-1517 and 1375-1400/1427-1452 MHz
A6: Bosnia and Herzegovina | B6: BIH | C6: 0 | D6: 1350-1375 and 1492-1517 | E6: X | M6: X | P6: 48 | S6: T/R 13-01 Annex A | T6: X | W6: 0.5 | X6: 7 | Y6: 70 | Z6: +15
A7: switzerland | B7: CHE | C7: 0 | D7: 1350-1375 and 1492-1517 | E7: X | I7: X | N7: X | Q7: 15 | S7: T/R 13-01 Annex A | T7: 15 | W7: 20 | Y7: 30.5 | Z7: reduction
A8: Cyprus | B8: CYP | C8: 0 | D8: 1350-1375 and 1492-1517 | E8: X | M8: X | P8: 13 | S8: T/R 13-01 Annex A | T8: X | W8: 0.9 | Y8: 58.65
A9: Cyprus | B9: CYP | C9: 0 | D9: 1350-1375 and 1492-1517 | E9: X | M9: X | P9: 17 | T9: X | W9: 0.9 | Y9: 73.55
A10: Czech Republic | B10: CZE | C10: 0 | D10: 1350-1375 and 1492-1517 | O10: MD | S10: T/R 13-01 Annex A
A11: Denmark | B11: DNK | C11: 0 | D11: 1350-1375 and 1492-1517 | S11: T/R 13-01 Annex A
A12: Estonia | B12: EST | C12: 0 | D12: 1350-1375 and 1492-1517 | S12: T/R 13-01 Annex A
A13: Finland | B13: FIN | C13: 0 | D13: 1350-1375 and 1492-1517 | S13: T/R 13-01 Annex A | AC13: Planned opening 2011-2012
A14: France | B14: FRA | C14: 0 | D14: 1350-1375 and 1492-1517 | S14: T/R 13-01 Annex A
A15: UK | B15: GBR | C15: 0 | D15: 1350-1375 and 1492-1517 | E15: X | N15: X | P15: 860 | S15: T/R 13-01 Annex A | T15: X
A16: Croatia | B16: HRV | C16: 0 | D16: 1350-1375 and 1492-1517 | S16: T/R 13-01 Annex A
A17: Hungary | B17: HUN | C17: 0 | D17: 1350-1375 and 1492-1517 | E17: X | I17: X | J17: X | K17: X | O17: Non-Civil P-P, P-MP systems | S17: T/R 13-01 Annex A | Z17: 0.1
A18: Iceland | B18: ICE | C18: 0 | D18: 1350-1375 and 1492-1517 | E18: x | I18: X | Q18: 0 | S18: T/R 13-01 Annex A | Z18: 0
A19: Ireland | B19: IRL | C19: 0 | D19: 1350-1375 and 1492-1517 | E19: X | K19: X | P19: 0 | Q19: 69 | S19: T/R 13-01 Annex A | T19: X | U19: X | V19: X | W19: 0.02 | X19: 23 | Y19: 83 | Z19: 48 | AB19: X
A20: Ireland | B20: IRL | C20: 0 | D20: 1350-1375 and 1492-1517 | S20: National Legislation: S.I. 370 of 2009
A21: Italy | B21: ITA | C21: 0 | D21: 1350-1375 and 1492-1517 | S21: T/R 13-01 Annex A
A22: Lithuania | B22: LTU | C22: 0 | D22: 1350-1375 and 1492-1517 | E22: X | I22: X | P22: 0 | Q22: 0 | S22: T/R 13-01 Annex A
A23: Lithuania | B23: LTU | C23: 0 | D23: 1350-1375 and 1492-1517 | F23: X | J23: X | K23: X | R23: 8 | S23: local | Z23: -100
A24: Luxembourg | B24: LUX | C24: 0 | D24: 1350-1375 and 1492-1517 | E24: X | I24: X | K24: X | P24: 0 | Q24: 0 | S24: T/R 13-01 Annex A | T24: X | Z24: N/A | AA24: NO | AB24: NO
A25: Luxembourg | B25: LUX | C25: 0 | D25: 1350-1375 and 1492-1517 | S25: Nat. freq. plan
A26: Latvia | B26: LVA | C26: 0 | D26: 1350-1375 and 1492-1517 | E26: X | I26: X | S26: T/R 13-01 Annex A
A27: Latvia | B27: LVA | C27: 0 | D27: 1350-1375 and 1492-1517 | F27: X | J27: X | R27: 30 | S27: national plan | T27: X | Z27: -50
A28: Netherlands | B28: NLD | C28: 0 | D28: 1350-1375 and 1492-1517 | S28: T/R 13-01 Annex A
A29: Norway | B29: NOR | C29: 0 | D29: 1350-1375 and 1492-1517 | E29: X | N29: X | P29: 8 | Q29: 46 | S29: T/R 13-01 Annex A | T29: x | W29: 1 | X29: 12 | Y29: 42
A30: Portugal | B30: PRT | C30: 0 | D30: 1350-1375 and 1492-1517 | E30: X | I30: X | Q30: 55 | S30: T/R 13-01 Annex A | T30: X | W30: 12 | X30: 40 | Y30: 57 | Z30: 5
A31: Portugal | B31: PRT | C31: 0 | D31: 1350-1375 and 1492-1517 | E31: X | J31: X | R31: 9 | S31: T/R 13-01 Annex A | T31: X | W31: 2 | X31: 10 | Y31: 18 | Z31: 0
A32: Russia | B32: RUS | C32: 0 | D32: 1350-1375 and 1492-1517 | E32: X | F32: X | K32: X | Q32: 25 | R32: 49 | S32: T/R 13-01 Annex A | T32: X | U32: X | W32: 40 | X32: 80 | Y32: 90 | Z32: Currently no frequencies are assigned to P-P links. In the near future frequency assignments to the fixed service are not planned.
A33: Serbia | B33: SRB | C33: 0 | D33: 1350-1375 and 1492-1517 | N33: X | AC33: defence systems
A34: Slovenia | B34: SVN | C34: 0 | D34: 1350-1375 and 1492-1517 | E34: X | I34: X | M34: X | P34: 52 | S34: T/R 13-01 Annex A | T34: x | W34: 2 | X34: 15 | Y34: 52 | Z34: 100 | AC34: From band 1517.5 - 1530 MHz
A35: Slovenia | B35: SVN | C35: 0 | D35: 1350-1375 and 1492-1517 | F35: X | N35: X | Q35: N/A | S35: T/R 13-01 Annex A | T35: x | W35: 5 | X35: 20 | Y35: 90 | Z35: 0 | AA35: x | AD35: assigned all SVN (2MHz Ch.1)
A36: Slovenia | B36: SVN | C36: 0 | D36: 1350-1375 and 1492-1517 | E36: X | J36: X | K36: X | R36: 17 | S36: T/R 13-01 Annex A | T36: x | W36: 5 | X36: 15 | Y36: 50 | Z36: 2 | AA36: x
A37: Slovenia | B37: SVN | C37: 0 | D37: 1350-1375 and 1492-1517 | E37: X | I37: X | K37: X | Q37: 20 | S37: T/R 13-01 Annex A | T37: x | W37: 5 | X37: 20 | Y37: 90 | Z37: 10 | AA37: x
A38: Telia | B38: TELIASON | C38: 0 | D38: 1350-1375 and 1492-1517 | S38: T/R 13-01 Annex A
A39: Austria | B39: AUT | C39: 0 | D39: 1375-1400 and 1427-1452 | E39: X | I39: X | K39: X | Q39: 8 | S39: T/R 13-01 Annex B | T39: x | W39: 3 | X39: 20 | Y39: 60
A40: Bosnia and Herzegovina | B40: BIH | C40: 0 | D40: 1375-1400 and 1427-1452 | E40: X | M40: X | P40: 5 | S40: T/R 13-01 Annex B | T40: X | W40: 5 | X40: 20 | Y40: 90 | Z40: +15
A41: switzerland | B41: CHE | C41: 0 | D41: 1375-1400 and 1427-1452 | E41: X | I41: X | N41: X | Q41: 152 | S41: T/R 13-01 Annex B | T41: 152 | W41: 20 | Y41: 61.9 | Z41: reduction
A42: Cyprus | B42: CYP | C42: 0 | D42: 1375-1400 and 1427-1452 | E42: X | M42: X | P42: 6 | S42: T/R 13-01 Annex B | T42: X | W42: 3.52 | Y42: 35.47
A43: Cyprus | B43: CYP | C43: 0 | D43: 1375-1400 and 1427-1452 | E43: X | M43: X | P43: 8 | T43: X | W43: 22.62 | Y43: 74.21
A44: Czech Republic | B44: CZE | C44: 0 | D44: 1375-1400 and 1427-1452 | O44: MD | S44: T/R 13-01 Annex B
A45: Denmark | B45: DNK | C45: 0 | D45: 1375-1400 and 1427-1452 | S45: T/R 13-01 Annex B
A46: Estonia | B46: EST | C46: 0 | D46: 1375-1400 and 1427-1452 | S46: T/R 13-01 Annex B
A47: Finland | B47: FIN | C47: 0 | D47: 1375-1400 and 1427-1452 | E47: X | K47: X | Q47: 4 | S47: T/R 13-01 Annex B | T47: X | U47: X | AC47: Planned closing 2011-2012
A48: France | B48: FRA | C48: 0 | D48: 1375-1400 and 1427-1452 | E48: X | I48: X | K48: X | Q48: 1259 | S48: T/R 13-01 Annex B | T48: 1259 | W48: 0.1 | Y48: 95 | Z48: + 10 %
A49: Croatia | B49: HRV | C49: 0 | D49: 1375-1400 and 1427-1452 | S49: T/R 13-01 Annex B
A50: Hungary | B50: HUN | C50: 0 | D50: 1375-1400 and 1427-1452 | E50: X | I50: X | J50: X | S50: T/R 13-01 Annex B | T50: X | X50: 20 | Z50: 0.1
A51: Hungary | B51: HUN | C51: 0 | D51: 1375-1400 and 1427-1452 | E51: X | I51: X | J51: X | T51: X | X51: 20
A52: Iceland | B52: ICE | C52: 0 | D52: 1375-1400 and 1427-1452 | E52: x | I52: X | Q52: 2 | S52: T/R 13-01 Annex B | X52: 25 | Z52: 0
A53: Ireland | B53: IRL | C53: 0 | D53: 1375-1400 and 1427-1452 | E53: X | K53: X | P53: 37 | Q53: 18 | S53: T/R 13-01 Annex B | T53: X | W53: 0.45 | X53: 23 | Y53: 69 | Z53: 0 | AB53: X
A54: Ireland | B54: IRL | C54: 0 | D54: 1375-1400 and 1427-1452 | S54: National Legislation: S.I. 370 of 2009
A55: Italy | B55: ITA | C55: 0 | D55: 1375-1400 and 1427-1452 | S55: T/R 13-01 Annex B
A56: Lithuania | B56: LTU | C56: 0 | D56: 1375-1400 and 1427-1452 | E56: X | I56: X | P56: 0 | Q56: 0 | S56: T/R 13-01 Annex B
A57: Lithuania | B57: LTU | C57: 0 | D57: 1375-1400 and 1427-1452 | F57: X | J57: X | K57: X | R57: 8 | S57: local | Z57: -100
A58: Luxembourg | B58: LUX | C58: 0 | D58: 1375-1400 and 1427-1452 | E58: X | I58: X | K58: X | P58: 0 | Q58: 0 | S58: T/R 13-01 Annex B | T58: X | Z58: N/A | AA58: NO | AB58: NO
A59: Luxembourg | B59: LUX | C59: 0 | D59: 1375-1400 and 1427-1452 | S59: Nat. freq. plan
A60: Latvia | B60: LVA | C60: 0 | D60: 1375-1400 and 1427-1452 | E60: X | I60: X | S60: T/R 13-01 Annex B
A61: Netherlands | B61: NLD | C61: 0 | D61: 1375-1400 and 1427-1452 | S61: T/R 13-01 Annex B
A62: Netherlands | B62: NLD | C62: 0 | D62: 1375-1400 and 1427-1452 | E62: X | N62: X | P62: 2 | Q62: 7 | S62: nat. plan 1427 - 1517 | T62: x | W62: 39.3 | X62: 58.9 | Y62: 71.4 | Z62: 10
A63: Norway | B63: NOR | C63: 0 | D63: 1375-1400 and 1427-1452 | E63: X | N63: X | P63: 1 | Q63: 26 | S63: T/R 13-01 Annex B | T63: x | W63: 1 | X63: 18 | Y63: 42.5
A64: Portugal | B64: PRT | C64: 0 | D64: 1375-1400 and 1427-1452 | E64: X | I64: X | J64: X | S64: T/R 13-01 Annex B | T64: X | X64: 40 | Z64: No use at the moment.
A65: Russia | B65: RUS | C65: 0 | D65: 1375-1400 and 1427-1452 | E65: X | F65: X | K65: X | Q65: 30 | R65: 49 | S65: T/R 13-01 Annex B | T65: X | U65: X | W65: 40 | X65: 80 | Y65: 90 | Z65: Currently no frequencies are assigned to P-P links. In the near future frequency assignments to the fixed service are not planned.
A66: Serbia | B66: SRB | C66: 0 | D66: 1375-1400 and 1427-1452 | N66: X | AC66: defence systems
A67: Slovak Republic | B67: SVK | C67: 0 | D67: 1375-1400 and 1427-1452 | AC67: N.A.
A68: Slovenia | B68: SVN | C68: 0 | D68: 1375-1400 and 1427-1452 | E68: X | I68: X | M68: X | P68: 12 | S68: T/R 13-01 Annex B | T68: x | W68: 2 | X68: 15 | Y68: 52 | Z68: 200 | AC68: From band 1517.5 - 1530 MHz
A69: Slovenia | B69: SVN | C69: 0 | D69: 1375-1400 and 1427-1452 | E69: X | I69: X | K69: X | Q69: 1 | S69: T/R 13-01 Annex B | W69: 5 | X69: 10 | Y69: 30 | Z69: 200
A70: Sweden | B70: SWE | C70: 0 | D70: 1375-1400 and 1427-1452 | E70: X | I70: X | P70: 59 | Q70: 99 | S70: T/R 13-01 Annex B | AA70: N
A71: Telia | B71: TELIASON | C71: 0 | D71: 1375-1400 and 1427-1452 | E71: X | K71: X | Q71: 17 | S71: T/R 13-01 Annex B | T71: X | W71: 4 | Y71: 19 | Z71: 0 | AD71: IDR140
A72: Italy | B72: ITA | C72: 0 | D72: 1400-1525 | E72: X | K72: X | Q72: 530 | S72: national | T72: X
A73: Slovak Republic | B73: SVK | C73: 0 | D73: 1427-1530 | E73: X | J73: X | S73: Rep.CCIR 379-5, DS 65,5MHz | T73: x | Z73: -100 | AB73: x | AC73: no new links
A74: Slovak Republic | B74: SVK | C74: 0 | D74: 1427-1530 | AC74: relocation to other band
A75: Slovenia | B75: SVN | C75: 0 | D75: 1517-1525 | E75: X | I75: X | M75: X | P75: 92 | S75: national (500kHz) | T75: x | W75: 2 | X75: 15 | Y75: 52 | Z75: -50 | AB75: x | AC75: realocated into 1.4 GHz bands
A76: Portugal | B76: PRT | C76: 0 | D76: 1517-1525 | E76: X | M76: X | P76: 365 | S76: National plan (STL) | T76: X | X76: 15 | Z76: 5
A77: Slovenia | B77: SVN | C77: 0 | D77: 1525-1530 | E77: X | I77: X | M77: X | P77: 6 | S77: national (500kHz) | T77: x | W77: 2 | X77: 15 | Y77: 52 | Z77: -100 | AB77: x | AC77: realocated into 1.4 GHz bands
A78: Greece | B78: GRC | C78: 0 | D78: 1700-1710 and 1785-1800 | E78: X | M78: X | P78: 615 | S78: national plan | T78: X | U78: X | W78: 0.4 | X78: 14 | Y78: 90 | AA78: congested in urban areas
A79: Austria | B79: AUT | C79: 0 | D79: 2025-2110 and 2200-2290 | E79: X | M79: X | O79: mo | S79: T/R 13-01 Annex C
A80: Austria | B80: AUT | C80: 0 | D80: 2025-2110 and 2200-2290 | M80: X | O80: mo | S80: national
A81: Bosnia and Herzegovina | B81: BIH | C81: 0 | D81: 2025-2110 and 2200-2290 | E81: X | M81: X | P81: 27 | S81: T/R 13-01 Annex C | T81: X | W81: 1 | X81: 55 | Y81: 99 | Z81: +10
A82: switzerland | B82: CHE | C82: 0 | D82: 2025-2110 and 2200-2290 | O82: No civil FS use | S82: T/R 13-01 Annex C
A83: Cyprus | B83: CYP | C83: 0 | D83: 2025-2110 and 2200-2290 | S83: T/R 13-01 Annex C | AB83: X
A84: Czech Republic | B84: CZE | C84: 0 | D84: 2025-2110 and 2200-2290 | E84: X | J84: X | O84: MD shared | R84: 110 | S84: T/R 13-01 Annex C | Z84: 0
A85: Denmark | B85: DNK | C85: 0 | D85: 2025-2110 and 2200-2290 | S85: T/R 13-01 Annex C
A86: Estonia | B86: EST | C86: 0 | D86: 2025-2110 and 2200-2290 | S86: T/R 13-01 Annex C
A87: Finland | B87: FIN | C87: 0 | D87: 2025-2110 and 2200-2290 | E87: X | K87: X | Q87: 12 | S87: T/R 13-01 Annex C | T87: X | U87: X
A88: France | B88: FRA | C88: 0 | D88: 2025-2110 and 2200-2290 | S88: T/R 13-01 Annex C
A89: UK | B89: GBR | C89: 0 | D89: 2025-2110 and 2200-2290 | S89: T/R 13-01 Annex C | AC89: row missing in the questionnaire
A90: Greece | B90: GRC | C90: 0 | D90: 2025-2110 and 2200-2290 | E90: X | K90: X | Q90: 206 | S90: T/R 13-01 Annex C | T90: X | U90: X | W90: 0.6 | X90: 21 | Y90: 60 | Z90: reduction
A91: Croatia | B91: HRV | C91: 0 | D91: 2025-2110 and 2200-2290 | E91: X | M91: X | P91: 182 | S91: National plan | T91: X | W91: 0.09 | X91: 8.9 | Y91: 55.6
A92: Hungary | B92: HUN | C92: 0 | D92: 2025-2110 and 2200-2290 | E92: X | I92: X | O92: 2070-2110 and 2245-2290 MHz Non-Civil digital P-P links | Q92: 3 | S92: T/R 13-01 Annex C | T92: X | U92: X | X92: 20
A93: Iceland | B93: ICE | C93: 0 | D93: 2025-2110 and 2200-2290 | E93: X | I93: X | Q93: 90 | S93: T/R 13-01 Annex C | T93: 45 | U93: 45 | W93: 20 | X93: 40 | Y93: 70 | Z93: 0
A94: Ireland | B94: IRL | C94: 0 | D94: 2025-2110 and 2200-2290 | E94: X | K94: X | Q94: 47 | S94: T/R 13-01 Annex C | T94: X | U94: X | W94: 1.5 | X94: 24 | Y94: 66 | Z94: 0
A95: Ireland | B95: IRL | C95: 0 | D95: 2025-2110 and 2200-2290 | S95: National Legislation: S.I. 370 of 2009
A96: Italy | B96: ITA | C96: 0 | D96: 2025-2110 and 2200-2290 | E96: X | J96: X | K96: X | P96: 12 | Q96: 21 | S96: T/R 13-01 Annex C | T96: x | W96: 6.71 | X96: 30.92 | Y96: 64.77 | Z96: 0.15
A97: Italy | B97: ITA | C97: 0 | D97: 2025-2110 and 2200-2290 | E97: X | J97: X | K97: X | P97: 95 | Q97: 3 | S97: T/R 13-01 Annex C | U97: x | W97: 3.28 | X97: 52.12 | Y97: 238.26 | Z97: 0.15
A98: Italy | B98: ITA | C98: 0 | D98: 2025-2110 and 2200-2290 | E98: X | J98: X | K98: X | Q98: 122 | S98: T/R 13-01 Annex C | V98: x | W98: 0.49 | X98: 67.06 | Y98: 238.26 | Z98: 0.15
A99: Italy | B99: ITA | C99: 0 | D99: 2025-2110 and 2200-2290 | E99: X | J99: X | R99: 10 | S99: T/R 13-01 Annex C | T99: X | Z99: 0.05 | AA99: stable
A100: Lithuania | B100: LTU | C100: 0 | D100: 2025-2110 and 2200-2290 | E100: X | I100: X | N100: X | Q100: 5 | S100: T/R 13-01 Annex C | T100: 5
A101: Luxembourg | B101: LUX | C101: 0 | D101: 2025-2110 and 2200-2290 | S101: ///
A102: Latvia | B102: LVA | C102: 0 | D102: 2025-2110 and 2200-2290 | E102: X | I102: X | Q102: 3 | S102: T/R 13-01 Annex C | T102: X | W102: 5 | Y102: 41
A103: Netherlands | B103: NLD | C103: 0 | D103: 2025-2110 and 2200-2290 | S103: T/R 13-01 Annex C
A104: Norway | B104: NOR | C104: 0 | D104: 2025-2110 and 2200-2290 | E104: X | F104: X | O104: X | S104: T/R 13-01 Annex C | AC104: SAP/SAB
A105: Norway | B105: NOR | C105: 0 | D105: 2025-2110 and 2200-2290 | E105: X | N105: X | Q105: 2 | U105: x | W105: 17 | X105: 19.7 | Y105: 22 | AC105: Offshore
A106: Portugal | B106: PRT | C106: 0 | D106: 2025-2110 and 2200-2290 | E106: X | I106: X | O106: TCR, SAP/SAB | Q106: 11 | S106: T/R 13-01 Annex C | T106: X | W106: 2 | X106: 40 | Y106: 193 | Z106: 0
A107: Portugal | B107: PRT | C107: 0 | D107: 2025-2110 and 2200-2290 | E107: X | I107: X | O107: TCR, SAP/SAB | Q107: 2 | S107: National plan | U107: X | W107: 20 | X107: 40 | Y107: 64 | Z107: 0
A108: Russia | B108: RUS | C108: 0 | D108: 2025-2110 and 2200-2290 | E108: X | F108: X | K108: X | Q108: 73 | R108: 1 | S108: T/R 13-01 Annex C | T108: X | U108: X | W108: 40 | X108: 80 | Y108: 90 | Z108: Currently no frequencies are assigned to P-P links. In the near future frequency assignments to the fixed service are not planned.
A109: Serbia | B109: SRB | C109: 0 | D109: 2025-2110 and 2200-2290 | AC109: defense systems
A110: Slovak Republic | B110: SVK | C110: 0 | D110: 2025-2110 and 2200-2290 | AC110: N.A.
A111: Slovenia | B111: SVN | C111: 0 | D111: 2025-2110 and 2200-2290 | S111: T/R 13-01 Annex C
A112: Sweden | B112: SWE | C112: 0 | D112: 2025-2110 and 2200-2290 | S112: T/R 13-01 Annex C
A113: Telia | B113: TELIASON | C113: 0 | D113: 2025-2110 and 2200-2290 | S113: T/R 13-01 Annex C
A114: Italy | B114: ITA | C114: 0 | D114: 2300-2400 | E114: X | I114: X | Q114: 275 | S114: national | T114: X
A115: Austria | B115: AUT | C115: 0 | D115: 3400-3600 | E115: X | J115: X | K115: X | R115: 240 | S115: ERC/REC 14-03 | T115: X | W115: 3 | X115: 15 | Y115: 30
A116: Bosnia and Herzegovina | B116: BIH | C116: 0 | D116: 3400-3600 | E116: X | K116: X | M116: X | P116: 9 | Q116: 1 | S116: ERC/REC 14-03 Annex B | T116: X | U116: X | X116: 2 | AC116: 3400-3600 MHz: Only two channels are available for P-P links out of FWA systems. We still do not have active implemented FWA systems. 3400-3600, 3600-3800, 7725-8275, 10700-11700 MHz: Broadcast infrastructure P-P links are planned to migrate in 3800-4200 MHz
A117: Bosnia and Herzegovina | B117: BIH | C117: 0 | D117: 3400-3600 | F117: X | I117: X | J117: X | U117: X | V117: X | Z117: +25 | AC117: 3400-3600, 3600-3800, 7725-8275, 10700-11700 MHz: Broadcast infrastructure P-P links are planned to migrate in 3800-4200 MHz
A118: switzerland | B118: CHE | C118: 0 | D118: 3400-3600 | O118: ENG-Outside Broadcast | S118: ERC/REC 14-03
A119: Cyprus | B119: CYP | C119: 0 | D119: 3400-3600 | E119: P.C. | S119: 2008/411/EC
A120: Czech Republic | B120: CZE | C120: 0 | D120: 3400-3600 | E120: X | F120: X | I120: X | J120: X | R120: 667 | S120: ERC/REC 14-03 | Z120: 100 | AC120: P-MP, FWA planned
A121: Denmark | B121: DNK | C121: 0 | D121: 3400-3600 | E121: X | R121: 29 | S121: ERC/REC 14-03
A122: Denmark | B122: DNK | C122: 0 | D122: 3400-3600 | F122: X | AC122: No info
A123: Estonia | B123: EST | C123: 0 | D123: 3400-3600 | S123: ERC/REC 14-03 | AC123: No info
A124: Finland | B124: FIN | C124: 0 | D124: 3400-3600 | F124: X | J124: X | R124: 540 | S124: ERC/REC 14-03
A125: France | B125: FRA | C125: 0 | D125: 3400-3600 | E125: X | F125: X | I125: X | J125: X | K125: X | Q125: 236 | R125: 1135 | S125: ERC/REC 14-03 | T125: 236 | W125: 2 | X125: 20<x>80 | Y125: 135 | Z125: -30
A126: Germany | B126: GER | C126: 0 | D126: 3400-3600 | F126: x | J126: x | R126: 392 | S126: ERC/REC 14-03 | U126: x
A127: Greece | B127: GRC | C127: 0 | D127: 3400-3600 | F127: X | I127: X | J127: X | S127: ERC/REC 14-03 | T127: - | Z127: 4 issued licenses
A128: Croatia | B128: HRV | C128: 0 | D128: 3400-3600 | F128: X | J128: X | R128: 67 | S128: ERC/REC 14-03 | Z128: -30
A129: Hungary | B129: HUN | C129: 0 | D129: 3400-3600 | S129: ERC/REC 14-03
A130: Hungary | B130: HUN | C130: 0 | D130: 3400-3600 | F130: X | H130: X | J130: X | R130: 383 | S130: ECC/DEC/(07)02 | Z130: 20
A131: Iceland | B131: ICE | C131: 0 | D131: 3400-3600 | F131: X | J131: X | R131: 20 | S131: ERC/REC 14-03 | X131: 10
A132: Ireland | B132: IRL | C132: 0 | D132: 3400-3600 | E132: X | J132: X | R132: 120 | S132: ERC/REC 14-03 | Z132: 66
A133: Italy | B133: ITA | C133: 0 | D133: 3400-3600 | F133: X | J133: X | S133: ERC/REC 14-03 | AC133: No info
A134: Lithuania | B134: LTU | C134: 0 | D134: 3400-3600 | E134: X | I134: X | P134: 0 | Q134: 0 | S134: ERC/REC 14-03
A135: Lithuania | B135: LTU | C135: 0 | D135: 3400-3600 | F135: X | J135: X | R135: 402 | S135: ERC/REC 14-03 | Z135: 50 | AC135: Fixed and mobile P-MP (BWA)
A136: Luxembourg | B136: LUX | C136: 0 | D136: 3400-3600 | F136: X | J136: X | K136: X | R136: 3 | S136: Nat. freq. Plan | Z136: N/A | AA136: NO | AB136: NO
A137: Latvia | B137: LVA | C137: 0 | D137: 3400-3600 | F137: X | J137: X | R137: 69 | S137: ERC/REC 14-03 | U137: X | X137: 10 | Z137: 50
A138: Netherlands | B138: NLD | C138: 0 | D138: 3400-3600 | S138: ERC/REC 14-03
A139: Portugal | B139: PRT | C139: 0 | D139: 3400-3600 | F139: X | J139: X | R139: 64 | S139: ERC/REC 14-03 | T139: X | X139: 20 | Z139: BWA
A140: Russia | B140: RUS | C140: 0 | D140: 3400-3600 | E140: X | F140: X | J140: X | K140: X | M140: X | Q140: 2190 | R140: 8033 | S140: ERC/REC 14-03 | T140: X | U140: X | W140: 40 | X140: 80 | Y140: 90 | Z140: Currently no frequencies are assigned to P-P links. In the near future frequency assignments to the fixed service are not planned.
A141: Serbia | B141: SRB | C141: 0 | D141: 3400-3600 | F141: X | J141: X | R141: 51 | S141: ERC/REC 14-03 | Z141: 50
A142: Slovak Republic | B142: SVK | C142: 0 | D142: 3400-3600 | F142: X | J142: X | R142: 198 | S142: ERC/REC 14-03 | T142: X | Z142: 10
A143: Slovenia | B143: SVN | C143: 0 | D143: 3400-3600 | F143: X | J143: X | O143: BWA | R143: 10 | S143: ERC/REC 14-03 | U143: X | W143: 5 | X143: 30 | Y143: 70 | Z143: 400
A144: Sweden | B144: SWE | C144: 0 | D144: 3400-3600 | F144: X | I144: X | J144: X | K144: X | M144: X | O144: X | S144: ERC/REC 14-03 | Z144: Y | AA144: N | AC144: IMT-?
A145: Telia | B145: TELIASON | C145: 0 | D145: 3400-3600 | S145: ERC/REC 14-03
A146: Norway | B146: NOR | C146: 0 | D146: 3410-3600 | F146: X | N146: X | S146: ERC/REC 14-03 Annex A
A147: Norway | B147: NOR | C147: 0 | D147: 3410-3600 | E147: X | N147: X | Q147: 0
A148: Bosnia and Herzegovina | B148: BIH | C148: 0 | D148: 3600-3800 | E148: X | M148: X | P148: 9 | S148: ERC/REC 12-08 | U148: X | V148: X | AC148: 3400-3600, 3600-3800, 7725-8275, 10700-11700 MHz: Broadcast infrastructure P-P links are planned to migrate in 3800-4200 MHz
A149: Bosnia and Herzegovina | B149: BIH | C149: 0 | D149: 3600-3800 | F149: X | I149: X | J149: X | R149: 65 | V149: X | Z149: +25
A150: Czech Republic | B150: CZE | C150: 0 | D150: 3600-3800 | E150: X | I150: X | Q150: 150 | S150: ERC/REC 12-08 | AB150: X | AC150: DEC EC/411/EC
A151: Germany | B151: GER | C151: 0 | D151: 3600-3800 | F151: x | J151: x | R151: 0 | S151: ERC/REC 14-03 | U151: x
A152: Norway | B152: NOR | C152: 0 | D152: 3600-3800 | F152: X | N152: X | S152: ERC/REC 12-08
A153: Norway | B153: NOR | C153: 0 | D153: 3600-3800 | E153: X | N153: X | Q153: 0
A154: Serbia | B154: SRB | C154: 0 | D154: 3600-3800 | F154: X | J154: X | R154: 1 | S154: ERC/REC 12-08
A155: Slovenia | B155: SVN | C155: 0 | D155: 3600-3800 | E155: X | I155: X | M155: X | Q155: 2 | S155: ERC/REC 12-08 | V155: X | Z155: -100 | AB155: x | AC155: BWA
A156: Slovenia | B156: SVN | C156: 0 | D156: 3600-3800 | E156: X | I156: X | M156: X | P156: 1 | S156: ERC/REC 12-08 | V156: X | W156: 10 | X156: 45 | Y156: 90 | Z156: -100 | AB156: x | AC156: BWA
A157: Slovenia | B157: SVN | C157: 0 | D157: 3600-3800 | F157: X | J157: X | O157: BWA | R157: planned | S157: ERC/REC 12-08 | U157: X | Z157: >400 | AC157: BWA
A158: Austria | B158: AUT | C158: 0 | D158: 3600-4200 | E158: X | I158: X | K158: X | Q158: 90 | S158: ERC/REC 12-08 | U158: X | W158: 13 | X158: 50 | Y158: 100
A159: switzerland | B159: CHE | C159: 0 | D159: 3600-4200 | O159: ENG-Outside Broadcast | S159: ERC/REC 12-08
A160: Cyprus | B160: CYP | C160: 0 | D160: 3600-4200 | E160: P.C. (3.6-3.8 GHz) | S160: 2008/411/EC
A161: Denmark | B161: DNK | C161: 0 | D161: 3600-4200 | E161: X | R161: 21 | S161: ERC/REC 12-08
A162: Denmark | B162: DNK | C162: 0 | D162: 3600-4200 | F162: X | AC162: No info
A163: Estonia | B163: EST | C163: 0 | D163: 3600-4200 | S163: ERC/REC 12-08 | AC163: No info
A164: Finland | B164: FIN | C164: 0 | D164: 3600-4200 | E164: X | K164: X | M164: X | Q164: 160 | S164: ERC/REC 12-08 | V164: X
A165: Finland | B165: FIN | C165: 0 | D165: 3600-4200 | M165: X | P165: 40 | S165: National | T165: Analog | U165: Analog | AC165: Will be phased out
A166: Finland | B166: FIN | C166: 0 | D166: 3600-4200 | E166: X | M166: X | P166: 120 | S166: ITU-R F.382 | T166: Analog | U166: Analog | AC166: Will be phased out
A167: France | B167: FRA | C167: 0 | D167: 3600-4200 | E167: X | I167: X | K167: X | Q167: 11 | S167: ERC/REC 12-08 | V167: 11 | W167: 2 | X167: 20<x>80 | Y167: 135 | Z167: -20
A168: UK | B168: GBR | C168: 0 | D168: 3600-4200 | E168: X | N168: X | P168: 40 | S168: ERC/REC 12-08 | U168: X | V168: X
A169: Croatia | B169: HRV | C169: 0 | D169: 3600-4200 | E169: X | M169: X | Q169: 9 | S169: ERC/REC 12-08 | U169: X
A170: Croatia | B170: HRV | C170: 0 | D170: 3600-4200 | E170: X | K170: X | P170: 1 | Q170: 70 | V170: X | W170: 20.2 | X170: 44.2 | Y170: 91.4 | Z170: 10
A171: Hungary | B171: HUN | C171: 0 | D171: 3600-4200 | E171: X | I171: X | Q171: 20 | S171: ERC/REC 12-08 | V171: X | X171: 30 | Z171: 25
A172: Hungary | B172: HUN | C172: 0 | D172: 3600-4200
A173: Iceland | B173: ICE | C173: 0 | D173: 3600-4200 | E173: X | I173: X | Q173: 7 | S173: ERC/REC 12-08 | V173: 7 | W173: 20 | X173: 30 | Y173: 40 | Z173: 0
A174: Ireland | B174: IRL | C174: 0 | D174: 3600-4200 | S174: ERC/REC 12-08
A175: Italy | B175: ITA | C175: 0 | D175: 3600-4200 | E175: X | I175: X | K175: X | Q175: 77 | S175: ERC/REC 12-08 | V175: X | W175: 13.6 | X175: 60 | Y175: 238 | Z175: -5
A176: Italy | B176: ITA | C176: 0 | D176: 3600-4200 | E176: X | K176: X | M176: X | P176: 105 | Q176: 9 | S176: ERC/REC 12-08 | U176: X | V176: X | W176: 17.46 | X176: 88.5 | Y176: 238.26 | Z176: -5
A177: Italy | B177: ITA | C177: 0 | D177: 3600-4200 | F177: X | K177: X | M177: X | Q177: 210 | S177: ERC/REC 12-08 | V177: X | W177: 13.6 | X177: 67.34 | Y177: 238.26 | Z177: -5
A178: Lithuania | B178: LTU | C178: 0 | D178: 3600-4200 | E178: X | I178: X | N178: X | Q178: 30 | S178: ERC/REC 12-08 | V178: 30
A179: Lithuania | B179: LTU | C179: 0 | D179: 3600-4200 | F179: X | J179: X | N179: X | S179: ERC/REC 12-08 | AC179: 3600-3800 future for BWA
A180: Luxembourg | B180: LUX | C180: 0 | D180: 3600-4200 | E180: X | I180: X | K180: X | M180: X | P180: 1 | Q180: 0 | S180: Nat. freq. Plan | U180: X | V180: X | X180: 20-80 | Z180: N/A | AA180: NO | AB180: NO
A181: Latvia | B181: LVA | C181: 0 | D181: 3600-4200 | F181: X | J181: X | R181: 154 | S181: ERC/REC 12-08 | U181: X | X181: 10 | Z181: 50
A182: Netherlands | B182: NLD | C182: 0 | D182: 3600-4200 | S182: ERC/REC 12-08
A183: Portugal | B183: PRT | C183: 0 | D183: 3600-4200 | F183: X | J183: X | O183: VSAT (3.8-4.2 GHz) | S183: ERC/REC 12-08 | T183: X | U183: X | X183: 20 | AC183: BWA in 3.3 -3.6GHz and FSS in 3.8-4.2GHz
A184: Russia | B184: RUS | C184: 0 | D184: 3600-4200 | E184: X | F184: X | K184: X | M184: X | Q184: 688 | S184: ERC/REC 12-08 | T184: X | U184: X | V184: X | W184: 40 | X184: 80 | Y184: 90
A185: Russia | B185: RUS | C185: 0 | D185: 3600-4200 | S185: F.635 ITU-R
A186: Slovak Republic | B186: SVK | C186: 0 | D186: 3600-4200 | S186: ERC/REC 12-08 | AC186: N.A. FWA planned
A187: Sweden | B187: SWE | C187: 0 | D187: 3600-4200 | F187: X | I187: X | J187: X | K187: X | M187: X | O187: X | S187: ERC/REC 12-08 | Z187: Y | AA187: N | AC187: IMT-?
A188: Telia | B188: TELIASON | C188: 0 | D188: 3600-4200 | S188: ERC/REC 12-08
A189: Bosnia and Herzegovina | B189: BIH | C189: 0 | D189: 3800-4200 | E189: X | M189: X | P189: 11 | Q189: 3 | S189: ERC/REC 12-08 Annex B | W189: 27 | X189: 35 | Y189: 85 | Z189: +40
A190: Czech Republic | B190: CZE | C190: 0 | D190: 3800-4200 | E190: X | I190: X | Q190: 479 | S190: ERC/REC 12-08
A191: Germany | B191: GER | C191: 0 | D191: 3800-4200 | E191: x | I191: x | P191: 269 | S191: ERC/REC 12-08 | V191: x | W191: 14.4 | X191: 42 | Y191: 64.8
A192: Greece | B192: GRC | C192: 0 | D192: 3800-4200 | E192: X | K192: X | Q192: 163 | S192: ERC/REC 12-08 Annex B | U192: X | V192: X | W192: 5 | X192: 55 | Y192: 101 | Z192: reduction
A193: Norway | B193: NOR | C193: 0 | D193: 3800-4200 | F193: X | N193: X | S193: ERC/REC 12-08
A194: Norway | B194: NOR | C194: 0 | D194: 3800-4200 | E194: X | N194: X | Q194: 2 | U194: X | W194: 2.5 | X194: 2.7 | Y194: 2.9 | AE194: Offshore
A195: Serbia | B195: SRB | C195: 0 | D195: 3800-4200 | E195: X | K195: X | Q195: 3 | S195: ITU-R F.382-8 | V195: X | W195: 72.09 | X195: 74.02 | Y195: 77.89
A196: Slovenia | B196: SVN | C196: 0 | D196: 3800-4200 | E196: X | I196: X | M196: X | Q196: 18 | S196: ERC/REC 12-08 | V196: X | W196: 30 | X196: 60 | Y196: 90 | AA196: X* | AC196: congested in backbone directions
A197: Slovenia | B197: SVN | C197: 0 | D197: 3800-4200 | E197: X | I197: X | M197: X | P197: 18 | S197: ERC/REC 12-08 | V197: X | W197: 10 | X197: 30 | Y197: 90 | AA197: X* | AC197: congested in backbone directions
A198: Austria | B198: AUT | C198: 0 | D198: 4400-5000 | E198: X | M198: X | O198: mo | S198: national
A199: Austria | B199: AUT | C199: 0 | D199: 4400-5000
A200: switzerland | B200: CHE | C200: 0 | D200: 4400-5000 | O200: No civil FS use
... 823 more rows

Sheet Country names
A1: Member | C1: CEPT | F1: 6
C2: Country
C3: Code
A5: Albania | C5: ALB
A6: Andorra | C6: AND | G6: respondent to 2016 Quest
A7: Austria | C7: AUT | G7: respondent to 2010 Quest
A8: Azerbaijan | C8: AZE
A9: Belarus | C9: BLR
A10: Belgium | C10: BEL | J10: E
A11: Bosnia and Herzegovina | C11: BIH
A12: Bulgaria | C12: BUL | J12: E
A13: Croatia | C13: HRV
A14: Cyprus | C14: CYP | J14: E
A15: Czech Republic | C15: CZE
A16: Denmark | C16: DNK | J16: E
A17: Estonia | C17: EST
A18: Finland | C18: FIN
A19: France | C19: FRA
A20: Georgia | C20: GEO
A21: Germany | C21: GER
A22: Greece | C22: GRC
A23: Hungary | C23: HUN
A24: Iceland | C24: ICE | J24: E
A25: Ireland | C25: IRL
A26: Italy | C26: ITA
A27: Latvia | C27: LVA
A28: Liechtenstein | C28: LIE
A29: Lithuania | C29: LTU | J29: E
A30: Luxembourg | C30: LUX | J30: E
A31: The Former Yugoslav Republic of Macedonia (FYROM) | C31: MKD
A32: Malta | C32: MLT | J32: E
A33: Moldova | C33: MDA
A34: Monaco | C34: MCO
A35: Montenegro | C35: MNE
A36: Netherlands | C36: NLD
A37: Norway | C37: NOR
A38: Poland | C38: POL | J38: E
A39: Portugal | C39: PRT
A40: Romania | C40: ROU
A41: Russia | C41: RUS
A42: San Marino | C42: SMR
A43: Serbia | C43: SRB | J43: E
A44: Slovak Republic | C44: SVK
A45: Slovenia | C45: SVN
A46: Spain | C46: E | J46: E
A47: Sweden | C47: SWE
A48: Switzerland | C48: CHE
A49: Turkey | C49: TUR | J49: E
A50: Ukraine | C50: UKR
A51: UK | C51: GBR
A52: Vatican | C52: CVA
A54: Telia | C54: TELIASON | J54: E
A55: Portugal | C55: POR

Sheet Admins analyzes
A1: 1 | B1: =A1+1 -> 2 | C1: =B1+1 -> 3 | D1: 4 | E1: 5 | F1: 6 | G1: 7 | H1: 8 | I1: 9 | J1: 10 | K1: 11 | L1: 12 | M1: 13 | N1: 14 | O1: 15 | P1: 16 | Q1: 17 | R1: 18 | S1: 19 | T1: 20 | U1: 21 | V1: 22 | W1: 23 | X1: 24 | Y1: 25 | Z1: 26 | AA1: 27 | AB1: 28 | AC1: 29 | AD1: 30 | AE1: 31 | AF1: 32 | AG1: 33 | AH1: 34 | AI1: 35 | AJ1: 36 | AK1: 37 | AL1: 38 | AM1: 39 | AN1: 40 | AO1: 41 | AP1: =AO1+1 -> 42 | AQ1: 43 | AR1: 44 | AS1: 45 | AT1: 46 | AU1: 47 | AV1: 48 | AW1: 49 | AX1: 50 | AY1: 51 | AZ1: 52 | BA1: 53 | BB1: 54 | BC1: 55
A2: Respondent | B2: Country code | C2: Band index | D2: Frequency band (MHz) | E2: Licensing regime | I2: Topo-logy | K2: Application | P2: Number of P-P links | R2: Number of CS | S2: Channel/Frequency plan used (e.g. ERC/ECC Rec. ITU-R Rec.) | T2: Link characteristics | Z2: Future trends (e.g. in the next 5 years)
I3: FWA | K3: Network Infrastruc-ture | T3: Capacity | W3: Hop length (km)
E4: Link by link | F4: Block | G4: Light licensed | H4: Licence exempt | I4: P-P | J4: P-MP | K4: Mobile backhaul | L4: Others | M4: Broadcasting Infrastructure | N4: No Information available on the application | O4: Other (please indicate) | P4: unidirection | Q4: bidirectional (1 bidirectional link counts 1) | R4: (applicable only for P-MP and mesh networks) | T4: LOW (<10 Mbit/s) | U4: MEDIUM (10 to 100 Mbit/s) | V4: HIGH (>100 Mbit/s) | W4: MIN | X4: Typical figure | Y4: MAX | Z4: Anticipated growth/reduction (+/-%) | AA4: Currently congested | AB4: Planned reallocation to other service/application | AC4: Other (please describe) (see Question 3 of the Questionnaire)
A5: Bosnia and Herzegovina | B5: BIH | C5: 0 | D5: 370-400 | E5: X | M5: X | P5: 129 | T5: X | W5: 1 | X5: 30 | Y5: 100 | AC5: 370-400 MHz: Planned migration of P-P links to 1350-1375/1492-1517 and 1375-1400/1427-1452 MHz
A7: Bosnia and Herzegovina | B7: BIH | C7: 0 | D7: 1350-1375 and 1492-1517 | E7: X | M7: X | P7: 48 | S7: T/R 13-01 Annex A | T7: X | W7: 0.5 | X7: 7 | Y7: 70 | Z7: +15
A8: switzerland | B8: CHE | C8: 0 | D8: 1350-1375 and 1492-1517 | E8: X | I8: X | N8: X | Q8: 15 | S8: T/R 13-01 Annex A | T8: 15 | W8: 20 | Y8: 30.5 | Z8: reduction
A9: Cyprus | B9: CYP | C9: 0 | D9: 1350-1375 and 1492-1517 | E9: X | M9: X | P9: 13 | S9: T/R 13-01 Annex A | T9: X | W9: 0.9 | Y9: 58.65
A10: Cyprus | B10: CYP | C10: 0 | D10: 1350-1375 and 1492-1517 | E10: X | M10: X | P10: 17 | T10: X | W10: 0.9 | Y10: 73.55
A11: Czech Republic | B11: CZE | C11: 0 | D11: 1350-1375 and 1492-1517 | O11: MD | S11: T/R 13-01 Annex A
A12: Denmark | B12: DNK | C12: 0 | D12: 1350-1375 and 1492-1517 | S12: T/R 13-01 Annex A
A13: Estonia | B13: EST | C13: 0 | D13: 1350-1375 and 1492-1517 | S13: T/R 13-01 Annex A
A14: Finland | B14: FIN | C14: 0 | D14: 1350-1375 and 1492-1517 | S14: T/R 13-01 Annex A | AC14: Planned opening 2011-2012
A15: France | B15: FRA | C15: 0 | D15: 1350-1375 and 1492-1517 | S15: T/R 13-01 Annex A
A16: UK | B16: GBR | C16: 0 | D16: 1350-1375 and 1492-1517 | E16: X | N16: X | P16: 860 | S16: T/R 13-01 Annex A | T16: X
A17: Croatia | B17: HRV | C17: 0 | D17: 1350-1375 and 1492-1517 | S17: T/R 13-01 Annex A
A18: Hungary | B18: HUN | C18: 0 | D18: 1350-1375 and 1492-1517 | E18: X | I18: X | J18: X | K18: X | O18: Non-Civil P-P, P-MP systems | S18: T/R 13-01 Annex A | Z18: 0.1
A19: Iceland | B19: ICE | C19: 0 | D19: 1350-1375 and 1492-1517 | E19: x | I19: X | Q19: 0 | S19: T/R 13-01 Annex A | Z19: 0
A20: Ireland | B20: IRL | C20: 0 | D20: 1350-1375 and 1492-1517 | E20: X | K20: X | P20: 0 | Q20: 69 | S20: T/R 13-01 Annex A | T20: X | U20: X | V20: X | W20: 0.02 | X20: 23 | Y20: 83 | Z20: 48 | AB20: X
A21: Ireland | B21: IRL | C21: 0 | D21: 1350-1375 and 1492-1517 | S21: National Legislation: S.I. 370 of 2009
A22: Italy | B22: ITA | C22: 0 | D22: 1350-1375 and 1492-1517 | S22: T/R 13-01 Annex A
A23: Lithuania | B23: LTU | C23: 0 | D23: 1350-1375 and 1492-1517 | E23: X | I23: X | P23: 0 | Q23: 0 | S23: T/R 13-01 Annex A
A24: Lithuania | B24: LTU | C24: 0 | D24: 1350-1375 and 1492-1517 | F24: X | J24: X | K24: X | R24: 8 | S24: local | Z24: -100
A25: Luxembourg | B25: LUX | C25: 0 | D25: 1350-1375 and 1492-1517 | E25: X | I25: X | K25: X | P25: 0 | Q25: 0 | S25: T/R 13-01 Annex A | T25: X | Z25: N/A | AA25: NO | AB25: NO
A26: Luxembourg | B26: LUX | C26: 0 | D26: 1350-1375 and 1492-1517 | S26: Nat. freq. plan
A27: Latvia | B27: LVA | C27: 0 | D27: 1350-1375 and 1492-1517 | E27: X | I27: X | S27: T/R 13-01 Annex A
A28: Latvia | B28: LVA | C28: 0 | D28: 1350-1375 and 1492-1517 | F28: X | J28: X | R28: 30 | S28: national plan | T28: X | Z28: -50
A29: Netherlands | B29: NLD | C29: 0 | D29: 1350-1375 and 1492-1517 | S29: T/R 13-01 Annex A
A30: Norway | B30: NOR | C30: 0 | D30: 1350-1375 and 1492-1517 | E30: X | N30: X | P30: 8 | Q30: 46 | S30: T/R 13-01 Annex A | T30: x | W30: 1 | X30: 12 | Y30: 42
A31: Portugal | B31: PRT | C31: 0 | D31: 1350-1375 and 1492-1517 | E31: X | I31: X | Q31: 55 | S31: T/R 13-01 Annex A | T31: X | W31: 12 | X31: 40 | Y31: 57 | Z31: 5
A32: Portugal | B32: PRT | C32: 0 | D32: 1350-1375 and 1492-1517 | E32: X | J32: X | R32: 9 | S32: T/R 13-01 Annex A | T32: X | W32: 2 | X32: 10 | Y32: 18 | Z32: 0
A33: Russia | B33: RUS | C33: 0 | D33: 1350-1375 and 1492-1517 | E33: X | F33: X | K33: X | Q33: 25 | R33: 49 | S33: T/R 13-01 Annex A | T33: X | U33: X | W33: 40 | X33: 80 | Y33: 90 | Z33: Currently no frequencies are assigned to P-P links. In the near future frequency assignments to the fixed service are not planned.
A34: Serbia | B34: SRB | C34: 0 | D34: 1350-1375 and 1492-1517 | N34: X | AC34: defence systems
A35: Slovenia | B35: SVN | C35: 0 | D35: 1350-1375 and 1492-1517 | E35: X | I35: X | M35: X | P35: 52 | S35: T/R 13-01 Annex A | T35: x | W35: 2 | X35: 15 | Y35: 52 | Z35: 100 | AC35: From band 1517.5 - 1530 MHz
A36: Slovenia | B36: SVN | C36: 0 | D36: 1350-1375 and 1492-1517 | F36: X | N36: X | Q36: N/A | S36: T/R 13-01 Annex A | T36: x | W36: 5 | X36: 20 | Y36: 90 | Z36: 0 | AA36: x | AD36: assigned all SVN (2MHz Ch.1)
A37: Slovenia | B37: SVN | C37: 0 | D37: 1350-1375 and 1492-1517 | E37: X | J37: X | K37: X | R37: 17 | S37: T/R 13-01 Annex A | T37: x | W37: 5 | X37: 15 | Y37: 50 | Z37: 2 | AA37: x
A38: Slovenia | B38: SVN | C38: 0 | D38: 1350-1375 and 1492-1517 | E38: X | I38: X | K38: X | Q38: 20 | S38: T/R 13-01 Annex A | T38: x | W38: 5 | X38: 20 | Y38: 90 | Z38: 10 | AA38: x
A39: Telia | B39: TELIASON | C39: 0 | D39: 1350-1375 and 1492-1517 | S39: T/R 13-01 Annex A
A41: Austria | B41: AUT | C41: 0 | D41: 1375-1400 and 1427-1452 | E41: X | I41: X | K41: X | Q41: 8 | S41: T/R 13-01 Annex B | T41: x | W41: 3 | X41: 20 | Y41: 60
A42: Bosnia and Herzegovina | B42: BIH | C42: 0 | D42: 1375-1400 and 1427-1452 | E42: X | M42: X | P42: 5 | S42: T/R 13-01 Annex B | T42: X | W42: 5 | X42: 20 | Y42: 90 | Z42: +15
A43: switzerland | B43: CHE | C43: 0 | D43: 1375-1400 and 1427-1452 | E43: X | I43: X | N43: X | Q43: 152 | S43: T/R 13-01 Annex B | T43: 152 | W43: 20 | Y43: 61.9 | Z43: reduction
A44: Cyprus | B44: CYP | C44: 0 | D44: 1375-1400 and 1427-1452 | E44: X | M44: X | P44: 6 | S44: T/R 13-01 Annex B | T44: X | W44: 3.52 | Y44: 35.47
A45: Cyprus | B45: CYP | C45: 0 | D45: 1375-1400 and 1427-1452 | E45: X | M45: X | P45: 8 | T45: X | W45: 22.62 | Y45: 74.21
A46: Czech Republic | B46: CZE | C46: 0 | D46: 1375-1400 and 1427-1452 | O46: MD | S46: T/R 13-01 Annex B
A47: Denmark | B47: DNK | C47: 0 | D47: 1375-1400 and 1427-1452 | S47: T/R 13-01 Annex B
A48: Estonia | B48: EST | C48: 0 | D48: 1375-1400 and 1427-1452 | S48: T/R 13-01 Annex B
A49: Finland | B49: FIN | C49: 0 | D49: 1375-1400 and 1427-1452 | E49: X | K49: X | Q49: 4 | S49: T/R 13-01 Annex B | T49: X | U49: X | AC49: Planned closing 2011-2012
A50: France | B50: FRA | C50: 0 | D50: 1375-1400 and 1427-1452 | E50: X | I50: X | K50: X | Q50: 1259 | S50: T/R 13-01 Annex B | T50: 1259 | W50: 0.1 | Y50: 95 | Z50: + 10 %
A51: Croatia | B51: HRV | C51: 0 | D51: 1375-1400 and 1427-1452 | S51: T/R 13-01 Annex B
A52: Hungary | B52: HUN | C52: 0 | D52: 1375-1400 and 1427-1452 | E52: X | I52: X | J52: X | S52: T/R 13-01 Annex B | T52: X | X52: 20 | Z52: 0.1
A53: Hungary | B53: HUN | C53: 0 | D53: 1375-1400 and 1427-1452 | E53: X | I53: X | J53: X | T53: X | X53: 20
A54: Iceland | B54: ICE | C54: 0 | D54: 1375-1400 and 1427-1452 | E54: x | I54: X | Q54: 2 | S54: T/R 13-01 Annex B | X54: 25 | Z54: 0
A55: Ireland | B55: IRL | C55: 0 | D55: 1375-1400 and 1427-1452 | E55: X | K55: X | P55: 37 | Q55: 18 | S55: T/R 13-01 Annex B | T55: X | W55: 0.45 | X55: 23 | Y55: 69 | Z55: 0 | AB55: X
A56: Ireland | B56: IRL | C56: 0 | D56: 1375-1400 and 1427-1452 | S56: National Legislation: S.I. 370 of 2009
A57: Italy | B57: ITA | C57: 0 | D57: 1375-1400 and 1427-1452 | S57: T/R 13-01 Annex B
A58: Lithuania | B58: LTU | C58: 0 | D58: 1375-1400 and 1427-1452 | E58: X | I58: X | P58: 0 | Q58: 0 | S58: T/R 13-01 Annex B
A59: Lithuania | B59: LTU | C59: 0 | D59: 1375-1400 and 1427-1452 | F59: X | J59: X | K59: X | R59: 8 | S59: local | Z59: -100
A60: Luxembourg | B60: LUX | C60: 0 | D60: 1375-1400 and 1427-1452 | E60: X | I60: X | K60: X | P60: 0 | Q60: 0 | S60: T/R 13-01 Annex B | T60: X | Z60: N/A | AA60: NO | AB60: NO
A61: Luxembourg | B61: LUX | C61: 0 | D61: 1375-1400 and 1427-1452 | S61: Nat. freq. plan
A62: Latvia | B62: LVA | C62: 0 | D62: 1375-1400 and 1427-1452 | E62: X | I62: X | S62: T/R 13-01 Annex B
A63: Netherlands | B63: NLD | C63: 0 | D63: 1375-1400 and 1427-1452 | S63: T/R 13-01 Annex B
A64: Netherlands | B64: NLD | C64: 0 | D64: 1375-1400 and 1427-1452 | E64: X | N64: X | P64: 2 | Q64: 7 | S64: nat. plan 1427 - 1517 | T64: x | W64: 39.3 | X64: 58.9 | Y64: 71.4 | Z64: 10
A65: Norway | B65: NOR | C65: 0 | D65: 1375-1400 and 1427-1452 | E65: X | N65: X | P65: 1 | Q65: 26 | S65: T/R 13-01 Annex B | T65: x | W65: 1 | X65: 18 | Y65: 42.5
A66: Portugal | B66: PRT | C66: 0 | D66: 1375-1400 and 1427-1452 | E66: X | I66: X | J66: X | S66: T/R 13-01 Annex B | T66: X | X66: 40 | Z66: No use at the moment.
A67: Russia | B67: RUS | C67: 0 | D67: 1375-1400 and 1427-1452 | E67: X | F67: X | K67: X | Q67: 30 | R67: 49 | S67: T/R 13-01 Annex B | T67: X | U67: X | W67: 40 | X67: 80 | Y67: 90 | Z67: Currently no frequencies are assigned to P-P links. In the near future frequency assignments to the fixed service are not planned.
A68: Serbia | B68: SRB | C68: 0 | D68: 1375-1400 and 1427-1452 | N68: X | AC68: defence systems
A69: Slovak Republic | B69: SVK | C69: 0 | D69: 1375-1400 and 1427-1452 | AC69: N.A.
A70: Slovenia | B70: SVN | C70: 0 | D70: 1375-1400 and 1427-1452 | E70: X | I70: X | M70: X | P70: 12 | S70: T/R 13-01 Annex B | T70: x | W70: 2 | X70: 15 | Y70: 52 | Z70: 200 | AC70: From band 1517.5 - 1530 MHz
A71: Slovenia | B71: SVN | C71: 0 | D71: 1375-1400 and 1427-1452 | E71: X | I71: X | K71: X | Q71: 1 | S71: T/R 13-01 Annex B | W71: 5 | X71: 10 | Y71: 30 | Z71: 200
A72: Sweden | B72: SWE | C72: 0 | D72: 1375-1400 and 1427-1452 | E72: X | I72: X | P72: 59 | Q72: 99 | S72: T/R 13-01 Annex B | AA72: N
A73: Telia | B73: TELIASON | C73: 0 | D73: 1375-1400 and 1427-1452 | E73: X | K73: X | Q73: 17 | S73: T/R 13-01 Annex B | T73: X | W73: 4 | Y73: 19 | Z73: 0 | AD73: IDR140
A75: Italy | B75: ITA | C75: 0 | D75: 1400-1525 | E75: X | K75: X | Q75: 530 | S75: national | T75: X
A77: Slovak Republic | B77: SVK | C77: 0 | D77: 1427-1530 | E77: X | J77: X | S77: Rep.CCIR 379-5, DS 65,5MHz | T77: x | Z77: -100 | AB77: x | AC77: no new links
A78: Slovak Republic | B78: SVK | C78: 0 | D78: 1427-1530 | AC78: relocation to other band
A80: Slovenia | B80: SVN | C80: 0 | D80: 1517-1525 | E80: X | I80: X | M80: X | P80: 92 | S80: national (500kHz) | T80: x | W80: 2 | X80: 15 | Y80: 52 | Z80: -50 | AB80: x | AC80: realocated into 1.4 GHz bands
A81: Portugal | B81: PRT | C81: 0 | D81: 1517-1525 | E81: X | M81: X | P81: 365 | S81: National plan (STL) | T81: X | X81: 15 | Z81: 5
A83: Slovenia | B83: SVN | C83: 0 | D83: 1525-1530 | E83: X | I83: X | M83: X | P83: 6 | S83: national (500kHz) | T83: x | W83: 2 | X83: 15 | Y83: 52 | Z83: -100 | AB83: x | AC83: realocated into 1.4 GHz bands
A85: Greece | B85: GRC | C85: 0 | D85: 1700-1710 and 1785-1800 | E85: X | M85: X | P85: 615 | S85: national plan | T85: X | U85: X | W85: 0.4 | X85: 14 | Y85: 90 | AA85: congested in urban areas
A87: Austria | B87: AUT | C87: 0 | D87: 2025-2110 and 2200-2290 | E87: X | M87: X | O87: mo | S87: T/R 13-01 Annex C
A88: Austria | B88: AUT | C88: 0 | D88: 2025-2110 and 2200-2290 | M88: X | O88: mo | S88: national
A89: Bosnia and Herzegovina | B89: BIH | C89: 0 | D89: 2025-2110 and 2200-2290 | E89: X | M89: X | P89: 27 | S89: T/R 13-01 Annex C | T89: X | W89: 1 | X89: 55 | Y89: 99 | Z89: +10
A90: switzerland | B90: CHE | C90: 0 | D90: 2025-2110 and 2200-2290 | O90: No civil FS use | S90: T/R 13-01 Annex C
A91: Cyprus | B91: CYP | C91: 0 | D91: 2025-2110 and 2200-2290 | S91: T/R 13-01 Annex C | AB91: X
A92: Czech Republic | B92: CZE | C92: 0 | D92: 2025-2110 and 2200-2290 | E92: X | J92: X | O92: MD shared | R92: 110 | S92: T/R 13-01 Annex C | Z92: 0
A93: Denmark | B93: DNK | C93: 0 | D93: 2025-2110 and 2200-2290 | S93: T/R 13-01 Annex C
A94: Estonia | B94: EST | C94: 0 | D94: 2025-2110 and 2200-2290 | S94: T/R 13-01 Annex C
A95: Finland | B95: FIN | C95: 0 | D95: 2025-2110 and 2200-2290 | E95: X | K95: X | Q95: 12 | S95: T/R 13-01 Annex C | T95: X | U95: X
A96: France | B96: FRA | C96: 0 | D96: 2025-2110 and 2200-2290 | S96: T/R 13-01 Annex C
A97: UK | B97: GBR | C97: 0 | D97: 2025-2110 and 2200-2290 | S97: T/R 13-01 Annex C | AC97: row missing in the questionnaire
A98: Greece | B98: GRC | C98: 0 | D98: 2025-2110 and 2200-2290 | E98: X | K98: X | Q98: 206 | S98: T/R 13-01 Annex C | T98: X | U98: X | W98: 0.6 | X98: 21 | Y98: 60 | Z98: reduction
A99: Croatia | B99: HRV | C99: 0 | D99: 2025-2110 and 2200-2290 | E99: X | M99: X | P99: 182 | S99: National plan | T99: X | W99: 0.09 | X99: 8.9 | Y99: 55.6
A100: Hungary | B100: HUN | C100: 0 | D100: 2025-2110 and 2200-2290 | E100: X | I100: X | O100: 2070-2110 and 2245-2290 MHz Non-Civil digital P-P links | Q100: 3 | S100: T/R 13-01 Annex C | T100: X | U100: X | X100: 20
A101: Iceland | B101: ICE | C101: 0 | D101: 2025-2110 and 2200-2290 | E101: X | I101: X | Q101: 90 | S101: T/R 13-01 Annex C | T101: 45 | U101: 45 | W101: 20 | X101: 40 | Y101: 70 | Z101: 0
A102: Ireland | B102: IRL | C102: 0 | D102: 2025-2110 and 2200-2290 | E102: X | K102: X | Q102: 47 | S102: T/R 13-01 Annex C | T102: X | U102: X | W102: 1.5 | X102: 24 | Y102: 66 | Z102: 0
A103: Ireland | B103: IRL | C103: 0 | D103: 2025-2110 and 2200-2290 | S103: National Legislation: S.I. 370 of 2009
A104: Italy | B104: ITA | C104: 0 | D104: 2025-2110 and 2200-2290 | E104: X | J104: X | K104: X | P104: 12 | Q104: 21 | S104: T/R 13-01 Annex C | T104: x | W104: 6.71 | X104: 30.92 | Y104: 64.77 | Z104: 0.15
A105: Italy | B105: ITA | C105: 0 | D105: 2025-2110 and 2200-2290 | E105: X | J105: X | K105: X | P105: 95 | Q105: 3 | S105: T/R 13-01 Annex C | U105: x | W105: 3.28 | X105: 52.12 | Y105: 238.26 | Z105: 0.15
A106: Italy | B106: ITA | C106: 0 | D106: 2025-2110 and 2200-2290 | E106: X | J106: X | K106: X | Q106: 122 | S106: T/R 13-01 Annex C | V106: x | W106: 0.49 | X106: 67.06 | Y106: 238.26 | Z106: 0.15
A107: Italy | B107: ITA | C107: 0 | D107: 2025-2110 and 2200-2290 | E107: X | J107: X | R107: 10 | S107: T/R 13-01 Annex C | T107: X | Z107: 0.05 | AA107: stable
A108: Lithuania | B108: LTU | C108: 0 | D108: 2025-2110 and 2200-2290 | E108: X | I108: X | N108: X | Q108: 5 | S108: T/R 13-01 Annex C | T108: 5
A109: Luxembourg | B109: LUX | C109: 0 | D109: 2025-2110 and 2200-2290 | S109: ///
A110: Latvia | B110: LVA | C110: 0 | D110: 2025-2110 and 2200-2290 | E110: X | I110: X | Q110: 3 | S110: T/R 13-01 Annex C | T110: X | W110: 5 | Y110: 41
A111: Netherlands | B111: NLD | C111: 0 | D111: 2025-2110 and 2200-2290 | S111: T/R 13-01 Annex C
A112: Norway | B112: NOR | C112: 0 | D112: 2025-2110 and 2200-2290 | E112: X | F112: X | O112: X | S112: T/R 13-01 Annex C | AC112: SAP/SAB
A113: Norway | B113: NOR | C113: 0 | D113: 2025-2110 and 2200-2290 | E113: X | N113: X | Q113: 2 | U113: x | W113: 17 | X113: 19.7 | Y113: 22 | AC113: Offshore
A114: Portugal | B114: PRT | C114: 0 | D114: 2025-2110 and 2200-2290 | E114: X | I114: X | O114: TCR, SAP/SAB | Q114: 11 | S114: T/R 13-01 Annex C | T114: X | W114: 2 | X114: 40 | Y114: 193 | Z114: 0
A115: Portugal | B115: PRT | C115: 0 | D115: 2025-2110 and 2200-2290 | E115: X | I115: X | O115: TCR, SAP/SAB | Q115: 2 | S115: National plan | U115: X | W115: 20 | X115: 40 | Y115: 64 | Z115: 0
A116: Russia | B116: RUS | C116: 0 | D116: 2025-2110 and 2200-2290 | E116: X | F116: X | K116: X | Q116: 73 | R116: 1 | S116: T/R 13-01 Annex C | T116: X | U116: X | W116: 40 | X116: 80 | Y116: 90 | Z116: Currently no frequencies are assigned to P-P links. In the near future frequency assignments to the fixed service are not planned.
A117: Serbia | B117: SRB | C117: 0 | D117: 2025-2110 and 2200-2290 | AC117: defense systems
A118: Slovak Republic | B118: SVK | C118: 0 | D118: 2025-2110 and 2200-2290 | AC118: N.A.
A119: Slovenia | B119: SVN | C119: 0 | D119: 2025-2110 and 2200-2290 | S119: T/R 13-01 Annex C
A120: Sweden | B120: SWE | C120: 0 | D120: 2025-2110 and 2200-2290 | S120: T/R 13-01 Annex C
A121: Telia | B121: TELIASON | C121: 0 | D121: 2025-2110 and 2200-2290 | S121: T/R 13-01 Annex C
A123: Italy | B123: ITA | C123: 0 | D123: 2300-2400 | E123: X | I123: X | Q123: 275 | S123: national | T123: X
A125: Austria | B125: AUT | C125: 0 | D125: 3400-3600 | E125: X | J125: X | K125: X | R125: 240 | S125: ERC/REC 14-03 | T125: X | W125: 3 | X125: 15 | Y125: 30
A126: Bosnia and Herzegovina | B126: BIH | C126: 0 | D126: 3400-3600 | E126: X | K126: X | M126: X | P126: 9 | Q126: 1 | S126: ERC/REC 14-03 Annex B | T126: X | U126: X | X126: 2 | AC126: 3400-3600 MHz: Only two channels are available for P-P links out of FWA systems. We still do not have active implemented FWA systems. 3400-3600, 3600-3800, 7725-8275, 10700-11700 MHz: Broadcast infrastructure P-P links are planned to migrate in 3800-4200 MHz
A127: Bosnia and Herzegovina | B127: BIH | C127: 0 | D127: 3400-3600 | F127: X | I127: X | J127: X | U127: X | V127: X | Z127: +25 | AC127: 3400-3600, 3600-3800, 7725-8275, 10700-11700 MHz: Broadcast infrastructure P-P links are planned to migrate in 3800-4200 MHz
A128: switzerland | B128: CHE | C128: 0 | D128: 3400-3600 | O128: ENG-Outside Broadcast | S128: ERC/REC 14-03
A129: Cyprus | B129: CYP | C129: 0 | D129: 3400-3600 | E129: P.C. | S129: 2008/411/EC
A130: Czech Republic | B130: CZE | C130: 0 | D130: 3400-3600 | E130: X | F130: X | I130: X | J130: X | R130: 667 | S130: ERC/REC 14-03 | Z130: 100 | AC130: P-MP, FWA planned
A131: Denmark | B131: DNK | C131: 0 | D131: 3400-3600 | E131: X | R131: 29 | S131: ERC/REC 14-03
A132: Denmark | B132: DNK | C132: 0 | D132: 3400-3600 | F132: X | AC132: No info
A133: Estonia | B133: EST | C133: 0 | D133: 3400-3600 | S133: ERC/REC 14-03 | AC133: No info
A134: Finland | B134: FIN | C134: 0 | D134: 3400-3600 | F134: X | J134: X | R134: 540 | S134: ERC/REC 14-03
A135: France | B135: FRA | C135: 0 | D135: 3400-3600 | E135: X | F135: X | I135: X | J135: X | K135: X | Q135: 236 | R135: 1135 | S135: ERC/REC 14-03 | T135: 236 | W135: 2 | X135: 20<x>80 | Y135: 135 | Z135: -30
A136: Germany | B136: GER | C136: 0 | D136: 3400-3600 | F136: x | J136: x | R136: 392 | S136: ERC/REC 14-03 | U136: x
A137: Greece | B137: GRC | C137: 0 | D137: 3400-3600 | F137: X | I137: X | J137: X | S137: ERC/REC 14-03 | T137: - | Z137: 4 issued licenses
A138: Croatia | B138: HRV | C138: 0 | D138: 3400-3600 | F138: X | J138: X | R138: 67 | S138: ERC/REC 14-03 | Z138: -30
A139: Hungary | B139: HUN | C139: 0 | D139: 3400-3600 | S139: ERC/REC 14-03
A140: Hungary | B140: HUN | C140: 0 | D140: 3400-3600 | F140: X | H140: X | J140: X | R140: 383 | S140: ECC/DEC/(07)02 | Z140: 20
A141: Iceland | B141: ICE | C141: 0 | D141: 3400-3600 | F141: X | J141: X | R141: 20 | S141: ERC/REC 14-03 | X141: 10
A142: Ireland | B142: IRL | C142: 0 | D142: 3400-3600 | E142: X | J142: X | R142: 120 | S142: ERC/REC 14-03 | Z142: 66
A143: Italy | B143: ITA | C143: 0 | D143: 3400-3600 | F143: X | J143: X | S143: ERC/REC 14-03 | AC143: No info
A144: Lithuania | B144: LTU | C144: 0 | D144: 3400-3600 | E144: X | I144: X | P144: 0 | Q144: 0 | S144: ERC/REC 14-03
A145: Lithuania | B145: LTU | C145: 0 | D145: 3400-3600 | F145: X | J145: X | R145: 402 | S145: ERC/REC 14-03 | Z145: 50 | AC145: Fixed and mobile P-MP (BWA)
A146: Luxembourg | B146: LUX | C146: 0 | D146: 3400-3600 | F146: X | J146: X | K146: X | R146: 3 | S146: Nat. freq. Plan | Z146: N/A | AA146: NO | AB146: NO
A147: Latvia | B147: LVA | C147: 0 | D147: 3400-3600 | F147: X | J147: X | R147: 69 | S147: ERC/REC 14-03 | U147: X | X147: 10 | Z147: 50
A148: Netherlands | B148: NLD | C148: 0 | D148: 3400-3600 | S148: ERC/REC 14-03
A149: Portugal | B149: PRT | C149: 0 | D149: 3400-3600 | F149: X | J149: X | R149: 64 | S149: ERC/REC 14-03 | T149: X | X149: 20 | Z149: BWA
A150: Russia | B150: RUS | C150: 0 | D150: 3400-3600 | E150: X | F150: X | J150: X | K150: X | M150: X | Q150: 2190 | R150: 8033 | S150: ERC/REC 14-03 | T150: X | U150: X | W150: 40 | X150: 80 | Y150: 90 | Z150: Currently no frequencies are assigned to P-P links. In the near future frequency assignments to the fixed service are not planned.
A151: Serbia | B151: SRB | C151: 0 | D151: 3400-3600 | F151: X | J151: X | R151: 51 | S151: ERC/REC 14-03 | Z151: 50
A152: Slovak Republic | B152: SVK | C152: 0 | D152: 3400-3600 | F152: X | J152: X | R152: 198 | S152: ERC/REC 14-03 | T152: X | Z152: 10
A153: Slovenia | B153: SVN | C153: 0 | D153: 3400-3600 | F153: X | J153: X | O153: BWA | R153: 10 | S153: ERC/REC 14-03 | U153: X | W153: 5 | X153: 30 | Y153: 70 | Z153: 400
A154: Sweden | B154: SWE | C154: 0 | D154: 3400-3600 | F154: X | I154: X | J154: X | K154: X | M154: X | O154: X | S154: ERC/REC 14-03 | Z154: Y | AA154: N | AC154: IMT-?
A155: Telia | B155: TELIASON | C155: 0 | D155: 3400-3600 | S155: ERC/REC 14-03
A157: Norway | B157: NOR | C157: 0 | D157: 3410-3600 | F157: X | N157: X | S157: ERC/REC 14-03 Annex A
A158: Norway | B158: NOR | C158: 0 | D158: 3410-3600 | E158: X | N158: X | Q158: 0
A160: Bosnia and Herzegovina | B160: BIH | C160: 0 | D160: 3600-3800 | E160: X | M160: X | P160: 9 | S160: ERC/REC 12-08 | U160: X | V160: X | AC160: 3400-3600, 3600-3800, 7725-8275, 10700-11700 MHz: Broadcast infrastructure P-P links are planned to migrate in 3800-4200 MHz
A161: Bosnia and Herzegovina | B161: BIH | C161: 0 | D161: 3600-3800 | F161: X | I161: X | J161: X | R161: 65 | V161: X | Z161: +25
A162: Czech Republic | B162: CZE | C162: 0 | D162: 3600-3800 | E162: X | I162: X | Q162: 150 | S162: ERC/REC 12-08 | AB162: X | AC162: DEC EC/411/EC
A163: Germany | B163: GER | C163: 0 | D163: 3600-3800 | F163: x | J163: x | R163: 0 | S163: ERC/REC 14-03 | U163: x
A164: Norway | B164: NOR | C164: 0 | D164: 3600-3800 | F164: X | N164: X | S164: ERC/REC 12-08
A165: Norway | B165: NOR | C165: 0 | D165: 3600-3800 | E165: X | N165: X | Q165: 0
A166: Serbia | B166: SRB | C166: 0 | D166: 3600-3800 | F166: X | J166: X | R166: 1 | S166: ERC/REC 12-08
A167: Slovenia | B167: SVN | C167: 0 | D167: 3600-3800 | E167: X | I167: X | M167: X | Q167: 2 | S167: ERC/REC 12-08 | V167: X | Z167: -100 | AB167: x | AC167: BWA
A168: Slovenia | B168: SVN | C168: 0 | D168: 3600-3800 | E168: X | I168: X | M168: X | P168: 1 | S168: ERC/REC 12-08 | V168: X | W168: 10 | X168: 45 | Y168: 90 | Z168: -100 | AB168: x | AC168: BWA
A169: Slovenia | B169: SVN | C169: 0 | D169: 3600-3800 | F169: X | J169: X | O169: BWA | R169: planned | S169: ERC/REC 12-08 | U169: X | Z169: >400 | AC169: BWA
A171: Austria | B171: AUT | C171: 0 | D171: 3600-4200 | E171: X | I171: X | K171: X | Q171: 90 | S171: ERC/REC 12-08 | U171: X | W171: 13 | X171: 50 | Y171: 100
A172: switzerland | B172: CHE | C172: 0 | D172: 3600-4200 | O172: ENG-Outside Broadcast | S172: ERC/REC 12-08
A173: Cyprus | B173: CYP | C173: 0 | D173: 3600-4200 | E173: P.C. (3.6-3.8 GHz) | S173: 2008/411/EC
A174: Denmark | B174: DNK | C174: 0 | D174: 3600-4200 | E174: X | R174: 21 | S174: ERC/REC 12-08
A175: Denmark | B175: DNK | C175: 0 | D175: 3600-4200 | F175: X | AC175: No info
A176: Estonia | B176: EST | C176: 0 | D176: 3600-4200 | S176: ERC/REC 12-08 | AC176: No info
A177: Finland | B177: FIN | C177: 0 | D177: 3600-4200 | E177: X | K177: X | M177: X | Q177: 160 | S177: ERC/REC 12-08 | V177: X
A178: Finland | B178: FIN | C178: 0 | D178: 3600-4200 | M178: X | P178: 40 | S178: National | T178: Analog | U178: Analog | AC178: Will be phased out
A179: Finland | B179: FIN | C179: 0 | D179: 3600-4200 | E179: X | M179: X | P179: 120 | S179: ITU-R F.382 | T179: Analog | U179: Analog | AC179: Will be phased out
A180: France | B180: FRA | C180: 0 | D180: 3600-4200 | E180: X | I180: X | K180: X | Q180: 11 | S180: ERC/REC 12-08 | V180: 11 | W180: 2 | X180: 20<x>80 | Y180: 135 | Z180: -20
A181: UK | B181: GBR | C181: 0 | D181: 3600-4200 | E181: X | N181: X | P181: 40 | S181: ERC/REC 12-08 | U181: X | V181: X
A182: Croatia | B182: HRV | C182: 0 | D182: 3600-4200 | E182: X | M182: X | Q182: 9 | S182: ERC/REC 12-08 | U182: X
A183: Croatia | B183: HRV | C183: 0 | D183: 3600-4200 | E183: X | K183: X | P183: 1 | Q183: 70 | V183: X | W183: 20.2 | X183: 44.2 | Y183: 91.4 | Z183: 10
A184: Hungary | B184: HUN | C184: 0 | D184: 3600-4200 | E184: X | I184: X | Q184: 20 | S184: ERC/REC 12-08 | V184: X | X184: 30 | Z184: 25
A185: Hungary | B185: HUN | C185: 0 | D185: 3600-4200
A186: Iceland | B186: ICE | C186: 0 | D186: 3600-4200 | E186: X | I186: X | Q186: 7 | S186: ERC/REC 12-08 | V186: 7 | W186: 20 | X186: 30 | Y186: 40 | Z186: 0
A187: Ireland | B187: IRL | C187: 0 | D187: 3600-4200 | S187: ERC/REC 12-08
A188: Italy | B188: ITA | C188: 0 | D188: 3600-4200 | E188: X | I188: X | K188: X | Q188: 77 | S188: ERC/REC 12-08 | V188: X | W188: 13.6 | X188: 60 | Y188: 238 | Z188: -5
A189: Italy | B189: ITA | C189: 0 | D189: 3600-4200 | E189: X | K189: X | M189: X | P189: 105 | Q189: 9 | S189: ERC/REC 12-08 | U189: X | V189: X | W189: 17.46 | X189: 88.5 | Y189: 238.26 | Z189: -5
A190: Italy | B190: ITA | C190: 0 | D190: 3600-4200 | F190: X | K190: X | M190: X | Q190: 210 | S190: ERC/REC 12-08 | V190: X | W190: 13.6 | X190: 67.34 | Y190: 238.26 | Z190: -5
A191: Lithuania | B191: LTU | C191: 0 | D191: 3600-4200 | E191: X | I191: X | N191: X | Q191: 30 | S191: ERC/REC 12-08 | V191: 30
A192: Lithuania | B192: LTU | C192: 0 | D192: 3600-4200 | F192: X | J192: X | N192: X | S192: ERC/REC 12-08 | AC192: 3600-3800 future for BWA
A193: Luxembourg | B193: LUX | C193: 0 | D193: 3600-4200 | E193: X | I193: X | K193: X | M193: X | P193: 1 | Q193: 0 | S193: Nat. freq. Plan | U193: X | V193: X | X193: 20-80 | Z193: N/A | AA193: NO | AB193: NO
A194: Latvia | B194: LVA | C194: 0 | D194: 3600-4200 | F194: X | J194: X | R194: 154 | S194: ERC/REC 12-08 | U194: X | X194: 10 | Z194: 50
A195: Netherlands | B195: NLD | C195: 0 | D195: 3600-4200 | S195: ERC/REC 12-08
A196: Portugal | B196: PRT | C196: 0 | D196: 3600-4200 | F196: X | J196: X | O196: VSAT (3.8-4.2 GHz) | S196: ERC/REC 12-08 | T196: X | U196: X | X196: 20 | AC196: BWA in 3.3 -3.6GHz and FSS in 3.8-4.2GHz
A197: Russia | B197: RUS | C197: 0 | D197: 3600-4200 | E197: X | F197: X | K197: X | M197: X | Q197: 688 | S197: ERC/REC 12-08 | T197: X | U197: X | V197: X | W197: 40 | X197: 80 | Y197: 90
A198: Russia | B198: RUS | C198: 0 | D198: 3600-4200 | S198: F.635 ITU-R
A199: Slovak Republic | B199: SVK | C199: 0 | D199: 3600-4200 | S199: ERC/REC 12-08 | AC199: N.A. FWA planned
A200: Sweden | B200: SWE | C200: 0 | D200: 3600-4200 | F200: X | I200: X | J200: X | K200: X | M200: X | O200: X | S200: ERC/REC 12-08 | Z200: Y | AA200: N | AC200: IMT-?
A201: Telia | B201: TELIASON | C201: 0 | D201: 3600-4200 | S201: ERC/REC 12-08
A203: Bosnia and Herzegovina | B203: BIH | C203: 0 | D203: 3800-4200 | E203: X | M203: X | P203: 11 | Q203: 3 | S203: ERC/REC 12-08 Annex B | W203: 27 | X203: 35 | Y203: 85 | Z203: +40
A204: Czech Republic | B204: CZE | C204: 0 | D204: 3800-4200 | E204: X | I204: X | Q204: 479 | S204: ERC/REC 12-08
A205: Germany | B205: GER | C205: 0 | D205: 3800-4200 | E205: x | I205: x | P205: 269 | S205: ERC/REC 12-08 | V205: x | W205: 14.4 | X205: 42 | Y205: 64.8
A206: Greece | B206: GRC | C206: 0 | D206: 3800-4200 | E206: X | K206: X | Q206: 163 | S206: ERC/REC 12-08 Annex B | U206: X | V206: X | W206: 5 | X206: 55 | Y206: 101 | Z206: reduction
A207: Norway | B207: NOR | C207: 0 | D207: 3800-4200 | F207: X | N207: X | S207: ERC/REC 12-08
A208: Norway | B208: NOR | C208: 0 | D208: 3800-4200 | E208: X | N208: X | Q208: 2 | U208: X | W208: 2.5 | X208: 2.7 | Y208: 2.9 | AE208: Offshore
A209: Serbia | B209: SRB | C209: 0 | D209: 3800-4200 | E209: X | K209: X | Q209: 3 | S209: ITU-R F.382-8 | V209: X | W209: 72.09 | X209: 74.02 | Y209: 77.89
A210: Slovenia | B210: SVN | C210: 0 | D210: 3800-4200 | E210: X | I210: X | M210: X | Q210: 18 | S210: ERC/REC 12-08 | V210: X | W210: 30 | X210: 60 | Y210: 90 | AA210: X* | AC210: congested in backbone directions
A211: Slovenia | B211: SVN | C211: 0 | D211: 3800-4200 | E211: X | I211: X | M211: X | P211: 18 | S211: ERC/REC 12-08 | V211: X | W211: 10 | X211: 30 | Y211: 90 | AA211: X* | AC211: congested in backbone directions
A213: Austria | B213: AUT | C213: 0 | D213: 4400-5000 | E213: X | M213: X | O213: mo | S213: national
A214: Austria | B214: AUT | C214: 0 | D214: 4400-5000
A215: switzerland | B215: CHE | C215: 0 | D215: 4400-5000 | O215: No civil FS use
... 823 more rows

Sheet Ranges summary
A1: 1 | B1: 2 | C1: 3 | D1: 4 | E1: 5 | F1: 6 | G1: 7 | H1: 8 | I1: 9 | J1: 10 | K1: 11 | L1: 12 | M1: 13 | N1: 14 | O1: 15 | P1: 16 | Q1: 17 | R1: 18 | S1: 19 | T1: 20 | U1: 21 | V1: 22 | W1: 23 | X1: 24 | Y1: 25 | Z1: 26 | AA1: 27 | AB1: 28 | AC1: 29 | AD1: 30 | AE1: 31 | AF1: 32 | AG1: 33 | AH1: 34 | AI1: 35 | AJ1: 36 | AK1: 37 | AL1: 38 | AM1: 39 | AN1: 40 | AO1: 41 | AP1: 42 | AQ1: 43 | AR1: 44 | AS1: 45 | AT1: 46 | AU1: 47 | AV1: 48 | AW1: 49 | AX1: 50 | AY1: 51 | AZ1: 52 | BA1: 53 | BB1: 54 | BC1: 55 | BD1: 56 | BE1: 57 | BF1: 58 | BG1: 59 | BH1: 60 | BI1: 61 | BJ1: 62 | BK1: 63 | BL1: 64 | BM1: 65 | BN1: 66 | BO1: 67 | BP1: 68 | BQ1: 69 | BR1: 70 | BS1: 71 | BT1: 72 | BU1: 73 | BV1: 74 | BW1: 75 | BX1: 76 | BY1: 77 | BZ1: 78 | CA1: 79 | CB1: 80
A2: Respondent | B2: Country code | C2: Band index | D2: Frequency band (MHz) | E2: Licensing regime | J2: Topo-logy | M2: Application | R2: Number of P-P links | T2: Number of CS | U2: Channel/Frequency plan used (e.g. ERC/ECC Rec. ITU-R Rec.) | W2: Link characteristics | AC2: Future trends (e.g. in the next 5 years)
J3: FWA | M3: Network Infrastruc-ture | W3: Capacity | Z3: Hop length (km)
E4: Link by link | F4: Block | G4: Light licensed | H4: Licence exempt | I4: link-by-link + Block | J4: P-P | K4: P-MP | L4: PtP + PMP | M4: Mobile backhaul | N4: Others | O4: Broadcasting Infrastructure | P4: No Information available on the application | Q4: Other (please indicate) | R4: unidirection | S4: bidirectional (1 bidirectional link counts 1) | T4: (applicable only for P-MP and mesh networks) | V4: National plans | W4: LOW (<10 Mbit/s) | X4: MEDIUM (10 to 100 Mbit/s) | Y4: HIGH (>100 Mbit/s) | Z4: MIN | AA4: Typical figure | AB4: MAX | AC4: Anticipated growth | AD4: Anticipated reduction | AE4: Currently congested | AF4: Planned reallocation to other service/application | AG4: Other (please describe) (see Question 3 of the Questionnaire)
A5: 1 | B5: 0.385 | C5: 1 | D5: 370-400 | E5: 1 | O5: 1 | R5: 129 | W5: 1 | Z5: 1 | AB5: 100
A6: 24 | B6: 1.4335 | C6: 2 | D6: 1350-1375 and 1492-1517 | E6: 18 | F6: 4 | I6: 1 | J6: 9 | K6: 5 | L6: 1 | M6: 7 | O6: 4 | P6: 5 | R6: 998 | S6: 230 | T6: 113 | U6: 27 | V6: 2 | W6: 15 | X6: 2 | Y6: 1 | Z6: 0.02 | AB6: 90 | AC6: 7 | AD6: 3 | AE6: 3 | AF6: 2
A7: 26 | B7: 1.4135 | C7: 3 | D7: 1375-1400 and 1427-1452 | E7: 22 | F7: 2 | I7: 1 | J7: 13 | K7: 4 | L7: 3 | M7: 9 | O7: 4 | P7: 4 | R7: 130 | S7: 1623 | T7: 57 | U7: 25 | V7: 1 | W7: 15 | X7: 2 | Z7: 0.1 | AB7: 95 | AC7: 6 | AD7: 2 | AF7: 2
A8: 1 | B8: 1.4625 | C8: 4 | D8: 1400-1525 | E8: 1 | M8: 1 | S8: 530 | V8: 1 | W8: 1
A9: 1 | B9: 1.4785 | C9: 5 | D9: 1427-1530 | E9: 1 | K9: 1 | W9: 1 | AD9: 1 | AF9: 1
A10: 2 | B10: 1.521 | C10: 6 | D10: 1517-1525 | E10: 2 | J10: 1 | O10: 2 | R10: 457 | V10: 2 | W10: 2 | Z10: 2 | AB10: 52 | AC10: 1 | AD10: 1 | AF10: 1
A11: 1 | B11: 1.5275 | C11: 7 | D11: 1525-1530 | E11: 1 | J11: 1 | O11: 1 | R11: 6 | V11: 1 | W11: 1 | Z11: 2 | AB11: 52 | AD11: 1 | AF11: 1
A12: 1 | B12: 1.75 | C12: 8 | D12: 1700-1710 and 1785-1800 | E12: 1 | O12: 1 | R12: 615 | V12: 1 | W12: 1 | X12: 1 | Z12: 0.4 | AB12: 90
A13: 28 | B13: 2.1575 | C13: 9 | D13: 2025-2110 and 2200-2290 | E13: 20 | F13: 2 | I13: 2 | J13: 6 | K13: 5 | M13: 7 | O13: 4 | P13: 2 | Q13: 1 | R13: 316 | S13: 600 | T13: 121 | U13: 27 | V13: 4 | W13: 11 | X13: 8 | Y13: 1 | Z13: 0.09 | AB13: 238.26 | AC13: 5 | AD13: 1 | AF13: 1
A14: 1 | B14: 2.35 | C14: 10 | D14: 2300-2400 | E14: 1 | J14: 1 | S14: 275 | V14: 1 | W14: 1
A15: 27 | B15: 3.5 | C15: 11 | D15: 3400-3600 | E15: 8 | F15: 20 | H15: 1 | I15: 3 | J15: 6 | K15: 21 | L15: 5 | M15: 6 | O15: 3 | Q15: 1 | R15: 9 | S15: 2427 | T15: 12423 | U15: 26 | W15: 5 | X15: 6 | Y15: 1 | Z15: 2 | AB15: 135 | AC15: 9 | AD15: 2 | AF15: 1
A16: 1 | B16: 3.505 | C16: 12 | D16: 3410-3600 | E16: 1 | F16: 1 | P16: 2 | U16: 1
A17: 6 | B17: 3.7 | C17: 13 | D17: 3600-3800 | E17: 5 | F17: 5 | J17: 4 | K17: 4 | L17: 1 | O17: 3 | P17: 2 | R17: 10 | S17: 152 | T17: 66 | U17: 8 | X17: 3 | Y17: 4 | Z17: 10 | AB17: 90 | AC17: 1 | AD17: 2 | AF17: 3
A18: 22 | B18: 3.9 | C18: 14 | D18: 3600-4200 | E18: 15 | F18: 7 | I18: 1 | J18: 8 | K18: 4 | L18: 1 | M18: 10 | O18: 9 | P18: 3 | Q18: 1 | R18: 307 | S18: 1381 | T18: 175 | U18: 25 | V18: 1 | W18: 2 | X18: 8 | Y18: 9 | Z18: 2 | AB18: 238.26 | AC18: 3 | AD18: 4 | AF18: 1
A19: 7 | B19: 4 | C19: 15 | D19: 3800-4200 | E19: 8 | F19: 1 | J19: 4 | M19: 2 | O19: 3 | P19: 2 | R19: 298 | S19: 668 | U19: 8 | X19: 2 | Y19: 5 | Z19: 2.5 | AB19: 101 | AC19: 1 | AD19: 1 | AE19: 2
A20: 9 | B20: 4.7 | C20: 16 | D20: 4400-5000 | E20: 3 | F20: 1 | I20: 1 | J20: 1 | K20: 1 | L20: 1 | M20: 1 | O20: 2 | P20: 2 | S20: 484 | U20: 1 | V20: 1 | W20: 2 | X20: 2 | Y20: 2 | Z20: 40 | AB20: 90 | AF20: 1
A21: 1 | B21: 5.7875 | C21: 17 | D21: 5725-5795 and 5815-5850 | H21: 1 | P21: 1 | V21: 1
A22: 25 | B22: 5.8875 | C22: 18 | D22: 5850-5925 | E22: 6 | F22: 3 | H22: 2 | I22: 1 | J22: 4 | K22: 4 | L22: 1 | M22: 4 | O22: 4 | P22: 1 | Q22: 1 | R22: 189 | S22: 1379 | T22: 623 | U22: 1 | V22: 2 | W22: 1 | X22: 3 | Y22: 2 | Z22: 9.47 | AB22: 238 | AC22: 2
A23: 1 | B23: 6.525 | C23: 19 | D23: 5925-6245 and 6425-7125 | E23: 2 | J23: 2 | S23: 56 | U23: 2 | Y23: 2 | Z23: 22 | AB23: 52 | AC23: 2
A24: 3 | B24: 6.175 | C24: 20 | D24: 5925-6425 | E24: 3 | J24: 2 | M24: 1 | P24: 1 | R24: 1214 | S24: 81 | U24: 3 | Y24: 3 | Z24: 8.5 | AB24: 67.3 | AC24: 1
A25: 1 | B25: 6.175 | C25: 21 | D25: 5925–6425 | E25: 2 | F25: 1 | J25: 3 | M25: 1 | O25: 2 | S25: 12 | U25: 3 | Y25: 1 | Z25: 5 | AB25: 75 | AC25: 2 | AE25: 1
A26: 24 | B26: 6.525 | C26: 22 | D26: 5925-7125 | E26: 24 | F26: 2 | I26: 2 | J26: 13 | K26: 2 | L26: 1 | M26: 17 | O26: 6 | P26: 3 | R26: 144 | S26: 13245 | T26: 1942 | U26: 26 | V26: 1 | W26: 2 | X26: 8 | Y26: 14 | Z26: 0.5 | AB26: 134 | AC26: 11 | AE26: 4 | AF26: 1
A27: 3 | B27: 6.775 | C27: 23 | D27: 6425-7125 | E27: 3 | J27: 2 | M27: 1 | P27: 1 | R27: 2895 | S27: 14 | U27: 3 | X27: 1 | Y27: 3 | Z27: 4.3 | AB27: 103.9 | AC27: 1
A28: 1 | B28: 6.77 | C28: 24 | D28: 6430-7110 | E28: 1 | J28: 1 | M28: 1 | S28: 2 | U28: 1 | Y28: 1 | Z28: 44 | AB28: 54
A29: 4 | B29: 7.275 | C29: 25 | D29: 7125-7425 | E29: 6 | J29: 5 | M29: 3 | O29: 1 | P29: 1 | R29: 917 | S29: 245 | U29: 5 | W29: 1 | X29: 2 | Y29: 4 | Z29: 4.2 | AB29: 96 | AC29: 3 | AD29: 1 | AE29: 2 | AF29: 1
A30: 1 | B30: 7.425 | C30: 26 | D30: 7125-7725 | E30: 1 | M30: 1 | S30: 138 | U30: 1 | W30: 1 | X30: 1 | Y30: 1 | Z30: 11.67 | AB30: 104.2 | AC30: 1
A31: 19 | B31: 7.4375 | C31: 27 | D31: 7125-7750 | E31: 23 | F31: 1 | I31: 1 | J31: 11 | M31: 16 | O31: 5 | P31: 1 | R31: 42 | S31: 14792 | U31: 23 | V31: 1 | W31: 9 | X31: 15 | Y31: 13 | Z31: 0.49 | AB31: 99.5 | AC31: 8 | AD31: 1 | AE31: 4 | AF31: 2
A32: 1 | B32: 7.4625 | C32: 28 | D32: 7125-7800 | E32: 1 | J32: 1 | S32: 104 | U32: 1 | Y32: 1 | Z32: 14 | AB32: 54 | AC32: 1
A33: 1 | B33: 7.575 | C33: 29 | D33: 7425–7725 | E33: 2 | J33: 2 | M33: 1 | O33: 1 | S33: 31 | U33: 2 | Y33: 2 | Z33: 3 | AB33: 60 | AC33: 2
A34: 5 | B34: 7.575 | C34: 30 | D34: 7425-7725 | E34: 5 | J34: 3 | M34: 2 | P34: 1 | R34: 3157 | S34: 3159 | U34: 3 | W34: 2 | X34: 3 | Y34: 3 | Z34: 1 | AB34: 113 | AC34: 2 | AE34: 1
A35: 1 | B35: 7.6625 | C35: 31 | D35: 7425-7900 | E35: 1 | P35: 1 | R35: 940 | U35: 1 | W35: 1 | X35: 1 | Y35: 1
A36: 1 | B36: 8 | C36: 32 | D36: 7700-8300 | E36: 1 | J36: 1 | M36: 1 | S36: 35 | U36: 1 | Y36: 1 | Z36: 8 | AB36: 58 | AD36: 1 | AF36: 1
A37: 4 | B37: 8 | C37: 33 | D37: 7725–8275 | E37: 4 | J37: 1 | M37: 3 | O37: 2 | R37: 40 | S37: 1350 | U37: 4 | X37: 3 | Y37: 4 | Z37: 2 | AB37: 150 | AC37: 3 | AE37: 2
A38: 19 | B38: 7.825 | C38: 34 | D38: 7750-7900 | E38: 6 | J38: 3 | M38: 3 | O38: 5 | R38: 45 | S38: 179 | U38: 1 | V38: 2 | X38: 3 | Y38: 3 | Z38: 2 | AB38: 91.4 | AC38: 2 | AE38: 1 | AF38: 1
A39: 1 | B39: 7.85 | C39: 35 | D39: 7800-7900
A40: 1 | B40: 8.05 | C40: 36 | D40: 7900-8200 | F40: 1 | P40: 1 | U40: 1
A41: 21 | B41: 8.2 | C41: 37 | D41: 7900-8500 | E41: 19 | F41: 1 | I41: 1 | J41: 9 | M41: 11 | O41: 5 | R41: 25 | S41: 10626 | U41: 19 | V41: 2 | W41: 5 | X41: 9 | Y41: 7 | Z41: 0.04 | AB41: 105 | AC41: 6 | AD41: 1 | AE41: 1 | AF41: 1
A42: 3 | B42: 8.3875 | C42: 38 | D42: 8275-8500 | E42: 3 | J42: 1 | M42: 3 | S42: 41 | U42: 3 | X42: 3 | Y42: 1 | Z42: 7 | AB42: 98.71 | AC42: 2 | AE42: 2
A43: 1 | B43: 8.3875 | C43: 39 | D43: 8275-8500 | E43: 1 | M43: 1 | S43: 170 | U43: 1 | W43: 1 | X43: 1 | Z43: 1.8 | AB43: 120
A44: 27 | B44: 10.34 | C44: 40 | D44: 10000-10680 | E44: 20 | F44: 7 | H44: 1 | I44: 1 | J44: 9 | K44: 6 | L44: 1 | M44: 6 | O44: 12 | P44: 1 | R44: 2662 | S44: 721 | T44: 1754 | U44: 29 | V44: 3 | W44: 6 | X44: 12 | Y44: 5 | Z44: 0.53 | AB44: 114.99 | AC44: 8 | AD44: 3 | AF44: 3
A45: 1 | B45: 10.4 | C45: 41 | D45: 10150-10300 and 10500-10650 | E45: 1 | F45: 1 | J45: 1 | K45: 1 | M45: 1 | T45: 6 | U45: 2 | AC45: 1
A46: 1 | B46: 10.4 | C46: 42 | D46: 10300-10500 | E46: 1 | J46: 1 | M46: 1 | S46: 420 | U46: 1
A47: 27 | B47: 11.2 | C47: 43 | D47: 10700-11700 | E47: 23 | F47: 2 | I47: 1 | J47: 11 | K47: 1 | M47: 15 | O47: 8 | P47: 2 | R47: 146 | S47: 7152 | T47: 1846 | U47: 30 | V47: 1 | W47: 2 | X47: 7 | Y47: 14 | Z47: 0.3 | AB47: 66.5 | AC47: 14 | AD47: 1
A48: 27 | B48: 12.1 | C48: 44 | D48: 11700-12500 | E48: 3 | F48: 3 | H48: 1 | J48: 1 | K48: 1 | M48: 1 | O48: 4 | R48: 63 | S48: 1 | T48: 195 | V48: 1 | X48: 2 | Y48: 2 | Z48: 1.97 | AB48: 62.94 | AC48: 3 | AE48: 1
A49: 29 | B49: 13 | C49: 45 | D49: 12750-13250 | E49: 33 | F49: 3 | I49: 1 | J49: 17 | M49: 20 | O49: 5 | P49: 4 | R49: 7951 | S49: 43362 | T49: 7 | U49: 31 | V49: 2 | W49: 11 | X49: 18 | Y49: 17 | Z49: 0.1 | AB49: 103 | AC49: 15 | AD49: 1 | AE49: 8 | AF49: 1
A50: 28 | B50: 14.375 | C50: 46 | D50: 14250-14500 | E50: 4 | F50: 1 | I50: 1 | J50: 1 | M50: 1 | O50: 2 | R50: 1044 | S50: 524 | U50: 1 | V50: 1 | W50: 1 | X50: 2 | Y50: 2 | Z50: 3 | AB50: 100 | AC50: 1
A51: 1 | B51: 14.875 | C51: 47 | D51: 14400-15350 | E51: 1 | M51: 1 | S51: 162 | U51: 1 | W51: 1 | X51: 1 | Z51: 1 | AB51: 45
A52: 29 | B52: 14.925 | C52: 48 | D52: 14500-14620 and 15230-15350 | E52: 27 | F52: 1 | I52: 1 | J52: 14 | M52: 15 | O52: 4 | P52: 2 | R52: 12329 | S52: 34505 | U52: 28 | V52: 2 | W52: 12 | X52: 18 | Y52: 9 | Z52: 0.1 | AB52: 75 | AC52: 9 | AD52: 2 | AE52: 4 | AF52: 1
A53: 1 | B53: 14.879 | C53: 49 | D53: 14613-14725 and 15033-15145 | E53: 1 | J53: 1 | M53: 1 | S53: 82 | U53: 2 | X53: 1 | Z53: 7 | AB53: 45 | AD53: 1 | AF53: 2
A54: 8 | B54: 17.5 | C54: 50 | D54: 17300-17700 | E54: 1 | J54: 1 | S54: 33 | V54: 1 | X54: 1
A55: 15 | B55: 18.7 | C55: 51 | D55: 17700-19700 | E55: 21 | F55: 4 | I55: 2 | J55: 11 | M55: 14 | O55: 1 | P55: 4 | R55: 71 | S55: 50762 | U55: 18 | V55: 1 | W55: 5 | X55: 10 | Y55: 14 | Z55: 0.91 | AB55: 45 | AC55: 13 | AE55: 4 | AF55: 1
A56: 11 | B56: 21.6 | C56: 52 | D56: 21200-22000 | E56: 9 | J56: 3 | M56: 3 | O56: 4 | R56: 31 | S56: 360 | U56: 2 | V56: 2 | W56: 4 | X56: 3 | Y56: 1 | Z56: 0.19 | AB56: 20 | AC56: 1 | AE56: 2
A57: 1 | B57: 22.4 | C57: 53 | D57: 21200-23600 | E57: 1 | F57: 1 | I57: 1 | S57: 16816 | U57: 1 | W57: 1 | X57: 1 | Y57: 1 | Z57: 2 | AB57: 8
A58: 27 | B58: 22.8 | C58: 54 | D58: 22000-22600 and 23000-23600 | E58: 30 | F58: 4 | I58: 2 | J58: 18 | M58: 18 | O58: 1 | P58: 4 | R58: 24156 | S58: 55535 | U58: 29 | V58: 1 | W58: 13 | X58: 17 | Y58: 13 | Z58: 0.1 | AB58: 51.1 | AC58: 17 | AD58: 1 | AE58: 7 | AF58: 1
A59: 1 | B59: 22.8 | C59: 55 | D59: 22000-23600 | E59: 1 | M59: 1 | S59: 1724 | U59: 1 | W59: 1 | X59: 1 | Y59: 1 | Z59: 4 | AB59: 16 | AC59: 1
A60: 1 | B60: 22.65 | C60: 56 | D60: 22600-22700
A61: 12 | B61: 22.8 | C61: 57 | D61: 22600-23000 | E61: 10 | J61: 6 | M61: 4 | O61: 5 | P61: 1 | R61: 134 | S61: 125 | U61: 5 | V61: 1 | W61: 4 | X61: 4 | Z61: 0.1 | AB61: 32 | AC61: 1 | AE61: 1 | AF61: 1
A62: 1 | B62: 22.85 | C62: 58 | D62: 22700-23000
A63: 10 | B63: 24.375 | C63: 59 | D63: 24250-24500 | E63: 4 | F63: 2 | I63: 1 | J63: 3 | K63: 2 | L63: 1 | M63: 2 | O63: 2 | S63: 52 | T63: 35 | U63: 1 | W63: 1 | X63: 2 | Y63: 1 | AC63: 1 | AE63: 1 | AF63: 2
A64: 1 | B64: 25.1265 | C64: 60 | D64: 24500-24745/25500-25753 | F64: 1 | K64: 1 | T64: 133 | U64: 1 | AC64: 1
A65: 28 | B65: 25.5 | C65: 61 | D65: 24500-26500 | E65: 22 | F65: 22 | I65: 4 | J65: 16 | K65: 19 | L65: 6 | M65: 17 | O65: 2 | P65: 5 | R65: 19453 | S65: 13168 | T65: 1513 | U65: 33 | V65: 4 | W65: 11 | X65: 18 | Y65: 12 | Z65: 0.05 | AB65: 24 | AC65: 17 | AD65: 1 | AE65: 2 | AF65: 2
A66: 1 | B66: 25.6225 | C66: 62 | D66: 24745-25500/25753-26500 | E66: 1 | J66: 1 | S66: 4537 | AC66: 1
A67: 8 | B67: 27 | C67: 63 | D67: 26500-27500 | E67: 1 | F67: 1 | I67: 1 | J67: 1 | K67: 1 | M67: 1 | P67: 1 | S67: 26 | U67: 1 | W67: 1 | X67: 1 | Y67: 1 | Z67: 2 | AB67: 8 | AE67: 1
A68: 29 | B68: 28.5 | C68: 64 | D68: 27500-29500 | E68: 13 | F68: 15 | I68: 3 | J68: 11 | K68: 13 | L68: 5 | M68: 10 | O68: 1 | P68: 3 | R68: 1424 | S68: 1047 | T68: 183 | U68: 29 | W68: 3 | X68: 7 | Y68: 7 | Z68: 0.1 | AB68: 13.3 | AC68: 9 | AE68: 1
A69: 9 | B69: 31.15 | C69: 65 | D69: 31000-31300 | E69: 5 | J69: 4 | M69: 1 | Q69: 1 | U69: 8 | V69: 1 | W69: 1 | X69: 2 | Y69: 1 | AC69: 1 | AE69: 1 | AF69: 1
A70: 29 | B70: 32.6 | C70: 66 | D70: 31800-33400 | E70: 13 | F70: 5 | I70: 1 | J70: 10 | K70: 2 | L70: 1 | M70: 6 | P70: 3 | R70: 1466 | S70: 3711 | U70: 23 | W70: 1 | X70: 5 | Y70: 5 | Z70: 0.1 | AB70: 8.7 | AC70: 8 | AE70: 2 | AF70: 1
A71: 1 | B71: 36.5 | C71: 67 | D71: 36000-37000 | E71: 1 | F71: 1 | I71: 1 | M71: 1 | S71: 132 | U71: 1 | W71: 1 | X71: 1 | Y71: 1 | Z71: 0.1 | AB71: 5
A72: 29 | B72: 38.25 | C72: 68 | D72: 37000-39500 | E72: 28 | F72: 5 | I72: 3 | J72: 16 | M72: 17 | O72: 1 | P72: 4 | Q72: 1 | R72: 42646 | S72: 77277 | U72: 3 | V72: 1 | W72: 12 | X72: 17 | Y72: 15 | Z72: 0.1 | AB72: 68 | AC72: 15 | AE72: 2 | AF72: 1
A73: 28 | B73: 42 | C73: 69 | D73: 40500-43500 | E73: 8 | F73: 6 | I73: 1 | J73: 4 | K73: 4 | M73: 4 | O73: 1 | P73: 2 | S73: 73 | T73: 3 | U73: 27 | W73: 1 | X73: 3 | Y73: 3 | Z73: 0.1 | AB73: 5 | AC73: 2
A74: 4 | B74: 47.85 | C74: 70 | D74: 47200-48500 | E74: 1 | J74: 1
A75: 10 | B75: 49.35 | C75: 71 | D75: 48500-50200 | E75: 5 | F75: 1 | I75: 1 | J75: 4 | M75: 1 | P75: 1 | U75: 10 | AF75: 1
A76: 5 | B76: 50.9 | C76: 72 | D76: 50400-51400 | E76: 1 | P76: 1 | S76: 1
A77: 12 | B77: 52 | C77: 73 | D77: 51400-52600 | E77: 7 | F77: 1 | J77: 6 | M77: 3 | P77: 1 | S77: 837 | U77: 12 | X77: 2 | Y77: 1 | Z77: 0.1 | AB77: 4 | AC77: 1 | AF77: 1
A78: 14 | B78: 56.39 | C78: 74 | D78: 55780-57000 | E78: 5 | F78: 2 | H78: 1 | I78: 1 | J78: 4 | M78: 2 | P78: 1 | U78: 14 | X78: 1 | AF78: 1
A79: 1 | B79: 57.5 | C79: 75 | D79: 57000-58000 | F79: 1 | J79: 1 | M79: 1 | S79: 292 | U79: 1 | Z79: 0.1 | AB79: 2.2 | AD79: 1
A80: 12 | B80: 58 | C80: 76 | D80: 57000-59000 | E80: 5 | F80: 1 | H80: 4 | I80: 1 | J80: 6 | K80: 2 | L80: 2 | M80: 4 | P80: 1 | S80: 424 | U80: 12 | V80: 1 | W80: 2 | X80: 1 | Y80: 1 | Z80: 0.1 | AB80: 2 | AD80: 1 | AF80: 1
A81: 1 | B81: 60.5 | C81: 77 | D81: 57000-64000 | E81: 1 | F81: 1 | I81: 1 | P81: 1 | S81: 1 | U81: 1
A82: 1 | B82: 58 | C82: 78 | D82: 57100-58900 | H82: 1 | J82: 1 | U82: 1 | W82: 1
A83: 1 | B83: 60.5 | C83: 79 | D83: 58000-63000 | H83: 1 | U83: 1
A84: 1 | B84: 61 | C84: 80 | D84: 59000-63000 | H84: 1 | J84: 1 | U84: 1 | Y84: 1
A85: 9 | B85: 61.5 | C85: 81 | D85: 59000-64000 | E85: 1 | H85: 2 | J85: 2 | M85: 1 | P85: 1 | U85: 8 | AF85: 1
A86: 15 | B86: 78.5 | C86: 82 | D86: 71000-76000 and 81000-86000 | E86: 7 | F86: 1 | H86: 3 | I86: 1 | J86: 6 | K86: 1 | L86: 1 | M86: 4 | P86: 2 | S86: 96 | U86: 14 | V86: 1 | Y86: 4 | Z86: 0.1 | AB86: 3.4 | AC86: 1
A87: 1 | B87: 80 | C87: 83 | D87: 74000-76000 and 84000-86000 | E87: 1 | J87: 1 | P87: 1 | U87: 1 | Y87: 1
A88: 6 | B88: 93.5 | C88: 84 | D88: 92000-95000 | E88: 1 | H88: 1 | J88: 1 | P88: 1 | S88: 3
E90: 540 | F90: 145 | G90: 0 | H90: 20 | I90: 44 | J90: 313 | K90: 105 | L90: 31 | M90: 290 | N90: 0 | O90: 121 | P90: 81 | Q90: 6 | R90: 126459 | S90: 367990 | T90: 21195 | U90: 637 | V90: 48 | W90: 177 | X90: 245 | Y90: 223 | AC90: 223 | AD90: 34 | AE90: 60 | AF90: 43

Sheet Sheet1
A1: 1 | B1: 2 | C1: 3 | D1: 4 | E1: 5 | F1: 6 | G1: 7 | H1: 8 | I1: 9 | J1: 10 | K1: 11 | L1: 12 | M1: 13 | N1: 14 | O1: 15 | P1: 16 | Q1: 17 | R1: 18 | S1: 19 | T1: 20 | U1: 21 | V1: 22 | W1: 23 | X1: 24 | Y1: 25 | Z1: 26 | AA1: 27 | AB1: 28 | AC1: 29 | AD1: 30 | AE1: 31 | AF1: 32 | AG1: 33 | AH1: 34 | AI1: 35 | AJ1: 36 | AK1: 37 | AL1: 38 | AM1: 39 | AN1: 40 | AO1: 41 | AP1: 42 | AQ1: 43 | AR1: 44 | AS1: 45 | AT1: 46 | AU1: 47 | AV1: 48 | AW1: 49 | AX1: 50 | AY1: 51 | AZ1: 52 | BA1: 53 | BB1: 54 | BC1: 55 | BD1: 56 | BE1: 57 | BF1: 58 | BG1: 59 | BH1: 60 | BI1: 61 | BJ1: 62 | BK1: 63 | BL1: 64 | BM1: 65 | BN1: 66 | BO1: 67 | BP1: 68 | BQ1: 69 | BR1: 70 | BS1: 71 | BT1: 72 | BU1: 73 | BV1: 74 | BW1: 75 | BX1: 76 | BY1: 77 | BZ1: 78 | CA1: 79 | CB1: 80
C2: Frequency (GHz) | E2: Licensing regime | J2: Topo-logy | M2: Application | R2: Number of P-P links | T2: Number of CS | U2: Channel/Frequency plan used (e.g. ERC/ECC Rec. ITU-R Rec.) | W2: Link characteristics | AC2: Future trends (e.g. in the next 5 years)
J3: FWA | M3: Network Infrastruc-ture | W3: Capacity | Z3: Hop length (km)
E4: Link by link | F4: Block | G4: Light licensed | H4: Licence exempt | I4: link-by-link + Block | J4: P-P | K4: P-MP | L4: PtP + PMP | M4: Mobile backhaul | N4: Others | O4: Broadcasting Infrastructure | P4: No Information available on the application | Q4: Other (please indicate) | R4: unidirection | S4: bidirectional (1 bidirectional link counts 1) | T4: (applicable only for P-MP and mesh networks) | V4: National plans | W4: LOW (<10 Mbit/s) | X4: MEDIUM (10 to 100 Mbit/s) | Y4: HIGH (>100 Mbit/s) | Z4: MIN | AA4: Typical figure | AB4: MAX | AC4: Anticipated growth | AD4: Anticipated reduction | AE4: Currently congested | AF4: Planned reallocation to other service/application | AG4: Other (please describe) (see Question 3 of the Questionnaire)
C5: 0 | E5: 1 | O5: 1 | R5: 129 | W5: 1
C6: 1 | E6: 46 | F6: 6 | I6: 2 | J6: 24 | K6: 10 | L6: 4 | M6: 17 | O6: 12 | P6: 9 | R6: 2206 | S6: 2383 | T6: 170 | U6: 52 | V6: 8 | W6: 36 | X6: 5 | Y6: 1 | AC6: 14 | AD6: 8 | AE6: 3 | AF6: 7
C7: 2 | E7: 21 | F7: 2 | I7: 2 | J7: 7 | K7: 5 | M7: 7 | O7: 4 | P7: 2 | Q7: 1 | R7: 316 | S7: 875 | T7: 121 | U7: 27 | V7: 5 | W7: 12 | X7: 8 | Y7: 1 | AC7: 5 | AD7: 1 | AF7: 1
C8: 3 | E8: 29 | F8: 33 | H8: 1 | I8: 4 | J8: 18 | K8: 29 | L8: 7 | M8: 16 | O8: 15 | P8: 7 | Q8: 2 | R8: 326 | S8: 3960 | T8: 12664 | U8: 60 | V8: 1 | W8: 7 | X8: 17 | Y8: 14 | AC8: 13 | AD8: 8 | AF8: 5
C9: 4 | E9: 11 | F9: 2 | I9: 1 | J9: 5 | K9: 1 | L9: 1 | M9: 3 | O9: 5 | P9: 4 | R9: 298 | S9: 1152 | U9: 9 | V9: 1 | W9: 2 | X9: 4 | Y9: 7 | AC9: 1 | AD9: 1 | AE9: 2 | AF9: 1
C10: 5 | E10: 6 | F10: 3 | H10: 3 | I10: 1 | J10: 4 | K10: 4 | L10: 1 | M10: 4 | O10: 4 | P10: 2 | Q10: 1 | R10: 189 | S10: 1379 | T10: 623 | U10: 1 | V10: 3 | W10: 1 | X10: 3 | Y10: 2 | AC10: 2
C11: 6 | E11: 35 | F11: 3 | I11: 2 | J11: 23 | K11: 2 | L11: 1 | M11: 21 | O11: 8 | P11: 5 | R11: 4253 | S11: 13410 | T11: 1942 | U11: 38 | V11: 1 | W11: 2 | X11: 9 | Y11: 24 | AC11: 17 | AE11: 5 | AF11: 1
C12: 7 | E12: 39 | F12: 1 | I12: 1 | J12: 22 | M12: 23 | O12: 7 | P12: 4 | R12: 5056 | S12: 18469 | U12: 36 | V12: 1 | W12: 14 | X12: 22 | Y12: 25 | AC12: 17 | AD12: 2 | AE12: 7 | AF12: 3
C13: 8 | E13: 5 | J13: 2 | M13: 4 | O13: 2 | R13: 40 | S13: 1385 | U13: 5 | X13: 3 | Y13: 5 | AC13: 3 | AD13: 1 | AE13: 2 | AF13: 1
C14: 7 | E14: 6 | J14: 3 | M14: 3 | O14: 5 | R14: 45 | S14: 179 | U14: 1 | V14: 2 | X14: 3 | Y14: 3 | AC14: 2 | AE14: 1 | AF14: 1
C15: 8 | E15: 23 | F15: 2 | I15: 1 | J15: 10 | M15: 15 | O15: 5 | P15: 1 | R15: 25 | S15: 10837 | U15: 24 | V15: 2 | W15: 6 | X15: 13 | Y15: 8 | AC15: 8 | AD15: 1 | AE15: 3 | AF15: 1
C16: 10 | E16: 22 | F16: 8 | H16: 1 | I16: 1 | J16: 11 | K16: 7 | L16: 1 | M16: 8 | O16: 12 | P16: 1 | R16: 2662 | S16: 1141 | T16: 1760 | U16: 32 | V16: 3 | W16: 6 | X16: 12 | Y16: 5 | AC16: 9 | AD16: 3 | AF16: 3
C17: 11 | E17: 23 | F17: 2 | I17: 1 | J17: 11 | K17: 1 | M17: 15 | O17: 8 | P17: 2 | R17: 146 | S17: 7152 | T17: 1846 | U17: 30 | V17: 1 | W17: 2 | X17: 7 | Y17: 14 | AC17: 14 | AD17: 1
C18: 12 | E18: 3 | F18: 3 | H18: 1 | J18: 1 | K18: 1 | M18: 1 | O18: 4 | R18: 63 | S18: 1 | T18: 195 | V18: 1 | X18: 2 | Y18: 2 | AC18: 3 | AE18: 1
C19: 13 | E19: 33 | F19: 3 | I19: 1 | J19: 17 | M19: 20 | O19: 5 | P19: 4 | R19: 7951 | S19: 43362 | T19: 7 | U19: 31 | V19: 2 | W19: 11 | X19: 18 | Y19: 17 | AC19: 15 | AD19: 1 | AE19: 8 | AF19: 1
C20: 14 | E20: 33 | F20: 2 | I20: 2 | J20: 16 | M20: 18 | O20: 6 | P20: 2 | R20: 13373 | S20: 35273 | U20: 32 | V20: 3 | W20: 14 | X20: 22 | Y20: 11 | AC20: 10 | AD20: 3 | AE20: 4 | AF20: 3
C21: 17 | E21: 1 | J21: 1 | S21: 33 | V21: 1 | X21: 1
C22: 18 | E22: 21 | F22: 4 | I22: 2 | J22: 11 | M22: 14 | O22: 1 | P22: 4 | R22: 71 | S22: 50762 | U22: 18 | V22: 1 | W22: 5 | X22: 10 | Y22: 14 | AC22: 13 | AE22: 4 | AF22: 1
C23: 21 | E23: 9 | J23: 3 | M23: 3 | O23: 4 | R23: 31 | S23: 360 | U23: 2 | V23: 2 | W23: 4 | X23: 3 | Y23: 1 | AC23: 1 | AE23: 2
C24: 22 | E24: 42 | F24: 5 | I24: 3 | J24: 24 | M24: 23 | O24: 6 | P24: 5 | R24: 24290 | S24: 74200 | U24: 36 | V24: 2 | W24: 19 | X24: 23 | Y24: 15 | AC24: 19 | AD24: 1 | AE24: 8 | AF24: 2
C25: 24 | E25: 4 | F25: 2 | I25: 1 | J25: 3 | K25: 2 | L25: 1 | M25: 2 | O25: 2 | S25: 52 | T25: 35 | U25: 1 | W25: 1 | X25: 2 | Y25: 1 | AC25: 1 | AE25: 1 | AF25: 2
C26: 25 | E26: 23 | F26: 23 | I26: 4 | J26: 17 | K26: 20 | L26: 6 | M26: 17 | O26: 2 | P26: 5 | R26: 19453 | S26: 17705 | T26: 1646 | U26: 34 | V26: 4 | W26: 11 | X26: 18 | Y26: 12 | AC26: 19 | AD26: 1 | AE26: 2 | AF26: 2
C27: 27 | E27: 1 | F27: 1 | I27: 1 | J27: 1 | K27: 1 | M27: 1 | P27: 1 | S27: 26 | U27: 1 | W27: 1 | X27: 1 | Y27: 1 | AE27: 1
C28: 28 | E28: 13 | F28: 15 | I28: 3 | J28: 11 | K28: 13 | L28: 5 | M28: 10 | O28: 1 | P28: 3 | R28: 1424 | S28: 1047 | T28: 183 | U28: 29 | W28: 3 | X28: 7 | Y28: 7 | AC28: 9 | AE28: 1
C29: 31 | E29: 5 | J29: 4 | M29: 1 | Q29: 1 | U29: 8 | V29: 1 | W29: 1 | X29: 2 | Y29: 1 | AC29: 1 | AE29: 1 | AF29: 1
C30: 32 | E30: 13 | F30: 5 | I30: 1 | J30: 10 | K30: 2 | L30: 1 | M30: 6 | P30: 3 | R30: 1466 | S30: 3711 | U30: 23 | W30: 1 | X30: 5 | Y30: 5 | AC30: 8 | AE30: 2 | AF30: 1
C31: 36 | E31: 1 | F31: 1 | I31: 1 | M31: 1 | S31: 132 | U31: 1 | W31: 1 | X31: 1 | Y31: 1
C32: 38 | E32: 28 | F32: 5 | I32: 3 | J32: 16 | M32: 17 | O32: 1 | P32: 4 | Q32: 1 | R32: 42646 | S32: 77277 | U32: 3 | V32: 1 | W32: 12 | X32: 17 | Y32: 15 | AC32: 15 | AE32: 2 | AF32: 1
C33: 42 | E33: 8 | F33: 6 | I33: 1 | J33: 4 | K33: 4 | M33: 4 | O33: 1 | P33: 2 | S33: 73 | T33: 3 | U33: 27 | W33: 1 | X33: 3 | Y33: 3 | AC33: 2
C34: 47 | E34: 1 | J34: 1
C35: 49 | E35: 5 | F35: 1 | I35: 1 | J35: 4 | M35: 1 | P35: 1 | U35: 10 | AF35: 1
C36: 50 | E36: 1 | P36: 1 | S36: 1
C37: 52 | E37: 7 | F37: 1 | J37: 6 | M37: 3 | P37: 1 | S37: 837 | U37: 12 | X37: 2 | Y37: 1 | AC37: 1 | AF37: 1
C38: 56 | E38: 5 | F38: 2 | H38: 1 | I38: 1 | J38: 4 | M38: 2 | P38: 1 | U38: 14 | X38: 1 | AF38: 1
C39: 57 | F39: 1 | J39: 1 | M39: 1 | S39: 292 | U39: 1 | AD39: 1
C40: 58 | E40: 5 | F40: 1 | H40: 4 | I40: 1 | J40: 6 | K40: 2 | L40: 2 | M40: 4 | P40: 1 | S40: 424 | U40: 12 | V40: 1 | W40: 2 | X40: 1 | Y40: 1 | AD40: 1 | AF40: 1
C41: 60 | E41: 1 | F41: 1 | I41: 1 | P41: 1 | S41: 1 | U41: 1
C42: 58 | H42: 1 | J42: 1 | U42: 1 | W42: 1
C43: 60 | H43: 1 | U43: 1
C44: 61 | E44: 1 | H44: 3 | J44: 3 | M44: 1 | P44: 1 | U44: 9 | Y44: 1 | AF44: 1
C45: 78 | E45: 7 | F45: 1 | H45: 3 | I45: 1 | J45: 6 | K45: 1 | L45: 1 | M45: 4 | P45: 2 | S45: 96 | U45: 14 | V45: 1 | Y45: 4 | AC45: 1
C46: 80 | E46: 1 | J46: 1 | P46: 1 | U46: 1 | Y46: 1
C47: 93 | E47: 1 | H47: 1 | J47: 1 | P47: 1 | S47: 3
E49: =SUM(E4:E47) -> 540 | F49: 145 | G49: 0 | H49: 20 | I49: 44 | J49: 313 | K49: 105 | L49: 31 | M49: 290 | N49: 0 | O49: 121 | P49: 81 | Q49: 6 | R49: 126459 | S49: 367990 | T49: 21195 | U49: 637 | V49: 48 | W49: 177 | X49: 245 | Y49: 223 | AC49: =SUM(AC4:AC47) -> 223 | AD49: =SUM(AD4:AD47) -> 34 | AE49: =SUM(AE4:AE47) -> 60 | AF49: =SUM(AF4:AF47) -> 43 | AG49: =SUM(AG4:AG47) -> 0

Sheet below 2 GHz
A1: Country | B1: Frequency band (MHz) | C1: Licensing regime | F1: Application | L1: Number of P-P links | N1: Number of BS | O1: Channel/Frequency plan used (e.g. ERC/ECC Rec. ITU-R Rec.) | P1: Link characteristics | V1: Future trends in the next 5 years
F2: FWA | P2: Capacity | S2: Hop lenght (km)
C3: Link by link | D3: Block | E3: Unlicensed | F3: P-P | G3: P-MP | H3: Network Infrastructure | I3: Broadcasting Infrastructure | J3: No Information available on the application | K3: Other (please indicate) | L3: unidirection | M3: bidirectional (1 bidirectional link counts 1) | N3: (applicable only for P-MP and mesh networks) | P3: LOW (<10 Mbit/s) | Q3: MEDIUM (10 to 100 Mbit/s) | R3: HIGH (>100 Mbit/s) | S3: MIN | T3: Typical figure | U3: MAX | V3: Anticipated growth/reduction (+/-%) | W3: congested | X3: planned relocation to other service/application | Y3: Other (please describe) (see Question 3 of the Questionnaire)
A4: TOTAL | L4: =SUBTOTAL(9,L6:M102) -> 9198 | N4: =SUBTOTAL(9,N6:N102) -> 340
A5: BIH | B5: 370-400 | C5: X | I5: X | L5: 129 | P5: X | S5: 1 | T5: 30 | U5: 100 | Y5: 370-400 MHz: Planned migration of P-P links to 1350-1375/1492-1517 and 1375-1400/1427-1452 MHz
A6: TELIASON | B6: 1350-1375 and 1492-1517 | O6: T/R 13-01 Annex A
A7: TELIASON | B7: 1375-1400 and 1427-1452 | C7: X | H7: X | M7: 17 | O7: T/R 13-01 Annex B | P7: X | S7: 4 | U7: 19 | V7: 0 | Z7: IDR140
A8: AUT | B8: 1350-1375 and 1492-1517 | C8: X | F8: X | H8: X | M8: 10 | O8: T/R 13-01 Annex A | P8: x | S8: 3 | T8: 20 | U8: 60
A9: AUT | B9: 1375-1400 and 1427-1452 | C9: X | F9: X | H9: X | M9: 8 | O9: T/R 13-01 Annex B | P9: x | S9: 3 | T9: 20 | U9: 60
A10: BIH | B10: 1350-1375 and 1492-1517 | C10: X | I10: X | L10: 48 | O10: T/R 13-01 Annex A | P10: X | S10: 0.5 | T10: 7 | U10: 70 | V10: +15
A11: BIH | B11: 1375-1400 and 1427-1452 | C11: X | I11: X | L11: 5 | O11: T/R 13-01 Annex B | P11: X | S11: 5 | T11: 20 | U11: 90 | V11: +15
A12: HRV | B12: 1350-1375 and 1492-1517 | O12: T/R 13-01 Annex A
A13: HRV | B13: 1375-1400 and 1427-1452 | O13: T/R 13-01 Annex B
A14: CZE | B14: 1350-1375 and 1492-1517 | K14: MD | O14: T/R 13-01 Annex A
A15: CZE | B15: 1375-1400 and 1427-1452 | K15: MD | O15: T/R 13-01 Annex B
A16: CYP | B16: 1350-1375 and 1492-1517 | C16: X | I16: X | L16: 13 | O16: T/R 13-01 Annex A | P16: X | S16: 0.9 | U16: 58.65
A17: CYP | C17: X | I17: X | L17: 17 | P17: X | S17: 0.9 | U17: 73.55
A18: CYP | B18: 1375-1400 and 1427-1452 | C18: X | I18: X | L18: 6 | O18: T/R 13-01 Annex B | P18: X | S18: 3.52 | U18: 35.47
A19: CYP | C19: X | I19: X | L19: 8 | P19: X | S19: 22.62 | U19: 74.21
A20: DNK | B20: 1350-1375 and 1492-1517 | O20: T/R 13-01 Annex A
A21: DNK | B21: 1375-1400 and 1427-1452 | O21: T/R 13-01 Annex B
A22: EST | B22: 1350-1375 and 1492-1517 | O22: T/R 13-01 Annex A
A23: EST | B23: 1375-1400 and 1427-1452 | O23: T/R 13-01 Annex B
A24: FIN | B24: 1350-1375 and 1492-1517 | O24: T/R 13-01 Annex A | Y24: Planned opening 2011-2012
A25: FIN | B25: 1375-1400 and 1427-1452 | C25: X | H25: X | M25: 4 | O25: T/R 13-01 Annex B | P25: X | Q25: X | Y25: Planned closing 2011-2012
A26: FRA | B26: 1350-1375 and 1492-1517 | O26: T/R 13-01 Annex A
A27: FRA | B27: 1375-1400 and 1427-1452 | C27: X | F27: X | H27: X | M27: 1259 | O27: T/R 13-01 Annex B | P27: 1259 | S27: 0.1 | U27: 95 | V27: + 10 %
A28: GRC | B28: 1700-1710 and 1785-1800 new row by EETT | C28: X | I28: X | L28: 615 | O28: national plan | P28: X | Q28: X | S28: 0.4 | T28: 14 | U28: 90 | W28: congested in urban areas
A29: HUN | B29: 1350-1375 and 1492-1517 | C29: X | F29: X | G29: X | H29: X | K29: Non-Civil P-P, P-MP systems | O29: T/R 13-01 Annex A | V29: 0.1
A30: HUN | B30: 1375-1400 and 1427-1452 | C30: X | F30: X | G30: X | O30: T/R 13-01 Annex B | P30: X | T30: 20 | V30: 0.1
A31: HUN | C31: X | F31: X | G31: X | P31: X | T31: 20
A32: ICE | B32: 1350-1375 and 1492-1517 | C32: x | F32: X | M32: 0 | O32: T/R 13-01 Annex A | V32: 0
A33: ICE | B33: 1375-1400 and 1427-1452 | C33: x | F33: X | M33: 2 | O33: T/R 13-01 Annex B | T33: 25 | V33: 0
A34: IRL | B34: 1350-1375 and 1492-1517 | C34: X | H34: X | L34: 0 | M34: 69 | O34: T/R 13-01 Annex A | P34: X | Q34: X | R34: X | S34: 0.02 | T34: 23 | U34: 83 | V34: 48 | X34: X
A35: IRL | O35: National Legislation: S.I. 370 of 2009
A36: IRL | B36: 1375-1400 and 1427-1452 | C36: X | H36: X | L36: 37 | M36: 18 | O36: T/R 13-01 Annex B | P36: X | S36: 0.45 | T36: 23 | U36: 69 | V36: 0 | X36: X
A37: IRL | O37: National Legislation: S.I. 370 of 2009
A38: ITA | B38: 1350-1375 and 1492-1517 | O38: T/R 13-01 Annex A
A39: ITA | B39: 1375-1400 and 1427-1452 | O39: T/R 13-01 Annex B
A40: ITA | B40: 1400 - 1525 | C40: X | H40: X | M40: 530 | O40: national | P40: X
A41: LVA | B41: 1350-1375 and 1492-1517 | C41: X | F41: X | O41: T/R 13-01 Annex A
A42: LVA | D42: X | G42: X | N42: 30 | O42: national plan | P42: X | V42: -50
A43: LVA | B43: 1375-1400 and 1427-1452 | C43: X | F43: X | O43: T/R 13-01 Annex B
A44: LTU | B44: 1350-1375 and 1492-1517 | C44: X | F44: X | L44: 0 | M44: 0 | O44: T/R 13-01 Annex A
A45: LTU | D45: X | G45: X | H45: X | N45: 8 | O45: local | V45: -100
A46: LTU | B46: 1375-1400 and 1427-1452 | C46: X | F46: X | L46: 0 | M46: 0 | O46: T/R 13-01 Annex B
A47: LTU | D47: X | G47: X | H47: X | N47: 8 | O47: local | V47: -100
A48: LUX | B48: 1350-1375 and 1492-1517 | C48: X | F48: X | H48: X | L48: 0 | M48: 0 | O48: T/R 13-01 Annex A | P48: X | V48: N/A | W48: NO | X48: NO
A49: LUX | O49: Nat. freq. plan
A50: LUX | B50: 1375-1400 and 1427-1452 | C50: X | F50: X | H50: X | L50: 0 | M50: 0 | O50: T/R 13-01 Annex B | P50: X | V50: N/A | W50: NO | X50: NO
A51: LUX | O51: Nat. freq. plan
A52: NLD | B52: 1350-1375 and 1492-1517 | O52: T/R 13-01 Annex A
A53: NLD | B53: 1375-1400 and 1427-1452 | O53: T/R 13-01 Annex B
A54: NLD | C54: X | J54: X | L54: 2 | M54: 7 | O54: nat. plan 1427 - 1517 | P54: x | S54: 39.3 | T54: 58.9 | U54: 71.4 | V54: 10
A55: NOR | B55: 1350-1375 and 1492-1517 | C55: X | J55: X | L55: 8 | M55: 46 | O55: T/R 13-01 Annex A | P55: x | S55: 1 | T55: 12 | U55: 42
A56: NOR | B56: 1375-1400 and 1427-1452 | C56: X | J56: X | L56: 1 | M56: 26 | O56: T/R 13-01 Annex B | P56: x | S56: 1 | T56: 18 | U56: 42.5
A57: PRT | B57: 1350-1375 and 1492-1517 | C57: X | F57: X | M57: 55 | O57: T/R 13-01 Annex A | P57: X | S57: 12 | T57: 40 | U57: 57 | V57: 5
A58: PRT | C58: X | G58: X | N58: 9 | O58: T/R 13-01 Annex A | P58: X | S58: 2 | T58: 10 | U58: 18 | V58: 0
A59: PRT | B59: 1375-1400 and 1427-1452 | C59: X | F59: X | G59: X | O59: T/R 13-01 Annex B | P59: X | T59: 40 | V59: No use at the moment.
A60: PRT | B60: 1517-1525 | C60: X | I60: X | L60: 365 | O60: National plan (STL) | P60: X | T60: 15 | V60: 5
A61: RUS | B61: 1350-1375 and 1492-1517 | C61: X | D61: X | H61: X | M61: 25 | N61: 49 | O61: T/R 13-01 Annex A | P61: X | Q61: X | S61: 40 | T61: 80 | U61: 90 | V61: Currently no frequencies are assigned to P-P links. In the near future frequency assignments to the fixed service are not planned.
A62: RUS | B62: 1375-1400 and 1427-1452 | C62: X | D62: X | H62: X | M62: 30 | N62: 49 | O62: T/R 13-01 Annex B | P62: X | Q62: X | S62: 40 | T62: 80 | U62: 90 | V62: Currently no frequencies are assigned to P-P links. In the near future frequency assignments to the fixed service are not planned.
A63: SRB | B63: 1350-1375 and 1492-1517 | J63: X | Y63: defence systems
A64: SRB | B64: 1375-1400 and 1427-1452 | J64: X | Y64: defence systems
A65: SVK | B65: 1375-1400 and 1427-1452 | Y65: N.A.
A66: SVK | B66: 1427 - 1530 | C66: X | G66: X | O66: Rep.CCIR 379-5, DS 65,5MHz | P66: x | V66: -100 | X66: x | Y66: no new links
A67: SVK | Y67: relocation to other band
A68: SVN | B68: 1350-1375 and 1492-1517 | C68: X | F68: X | I68: X | L68: 52 | O68: T/R 13-01 Annex A | P68: x | S68: 2 | T68: 15 | U68: 52 | V68: 100 | Y68: From band 1517.5 - 1530 MHz
A69: SVN | D69: X | J69: X | M69: N/A | O69: T/R 13-01 Annex A | P69: x | S69: 5 | T69: 20 | U69: 90 | V69: 0 | W69: x | Z69: assigned all SVN (2MHz Ch.1)
A70: SVN | C70: X | G70: X | H70: X | N70: 17 | O70: T/R 13-01 Annex A | P70: x | S70: 5 | T70: 15 | U70: 50 | V70: 2 | W70: x
A71: SVN | C71: X | F71: X | H71: X | M71: 20 | O71: T/R 13-01 Annex A | P71: x | S71: 5 | T71: 20 | U71: 90 | V71: 10 | W71: x
A72: SVN | B72: 1375-1400 and 1427-1452 | C72: X | F72: X | I72: X | L72: 12 | O72: T/R 13-01 Annex B | P72: x | S72: 2 | T72: 15 | U72: 52 | V72: 200 | Y72: From band 1517.5 - 1530 MHz
A73: SVN | C73: X | F73: X | H73: X | M73: 1 | O73: T/R 13-01 Annex B | S73: 5 | T73: 10 | U73: 30 | V73: 200
A74: SVN | B74: 1517 - 1525 | C74: X | F74: X | I74: X | L74: 92 | O74: national (500kHz) | P74: x | S74: 2 | T74: 15 | U74: 52 | V74: -50 | X74: x | Y74: realocated into 1.4 GHz bands
A75: SVN | B75: 1525 - 1530 | C75: X | F75: X | I75: X | L75: 6 | O75: national (500kHz) | P75: x | S75: 2 | T75: 15 | U75: 52 | V75: -100 | X75: x | Y75: realocated into 1.4 GHz bands
A76: SWE | B76: 1375-1400 and 1427-1452 | C76: X | F76: X | L76: 59 | M76: 99 | O76: T/R 13-01 Annex B | W76: N
A77: CHE | B77: 1350-1375 and 1492-1517 | C77: X | F77: X | J77: X | M77: 15 | O77: T/R 13-01 Annex A | P77: 15 | S77: 20 | U77: 30.5 | V77: reduction
A78: CHE | B78: 1375-1400 and 1427-1452 | C78: X | F78: X | J78: X | M78: 152 | O78: T/R 13-01 Annex B | P78: 152 | S78: 20 | U78: 61.9 | V78: reduction
A79: GBR | B79: 1350-1375 and 1492-1517 | C79: X | J79: X | L79: 860 | O79: T/R 13-01 Annex A | P79: X
C81: =COUNTA(C6:C79) -> 47 | D81: =COUNTA(D6:D79) -> 6 | E81: 0 | F81: 29 | G81: 10 | H81: 18 | I81: 12 | J81: 9 | K81: 3 | L81: =SUM(L6:L79) -> 2206 | M81: =SUM(M6:M79) -> 2393 | N81: =SUM(N6:N79) -> 170 | P81: 40 | Q81: 5 | R81: 1 | S81: =MIN(S$6:S$79) -> 0.02 | T81: =MIN(T$6:T$79) -> 7 | U81: =MIN(U$6:U$79) -> 18
S82: =MEDIAN(S$6:S$79) -> 3 | T82: =MEDIAN(T$6:T$79) -> 20 | U82: =MEDIAN(U$6:U$79) -> 60
S83: =MAX(S$6:S$79) -> 40 | T83: =MAX(T$6:T$79) -> 80 | U83: =MAX(U$6:U$79) -> 95
A84: Note | B84: PRT | C84: in counting links, for bidirectional links, more than 1 channel counts 1 | S84: =PERCENTILE(S$6:S$79,0.9) -> 25.956 | T84: =PERCENTILE(T$6:T$79,0.9) -> 52.12 | U84: =PERCENTILE(U$6:U$79,0.9) -> 90

Sheet 2-3 GHz
A1: Country | B1: Frequency band (MHz) | C1: Licensing regime | F1: Application | L1: Number of P-P links | N1: Number of BS | O1: Channel/Frequency plan used (e.g. ERC/ECC Rec. ITU-R Rec.) | P1: Link characteristics | V1: Future trends in the next 5 years
F2: FWA | P2: Capacity | S2: Hop lenght (km)
C3: Link by link | D3: Block | E3: Unlicensed | F3: P-P | G3: P-MP | H3: Network Infrastructure | I3: Broadcasting Infrastructure | J3: No Information available on the application | K3: Other (please indicate) | L3: unidirection | M3: bidirectional (1 bidirectional link counts 1) | N3: (applicable only for P-MP and mesh networks) | P3: LOW (<10 Mbit/s) | Q3: MEDIUM (10 to 100 Mbit/s) | R3: HIGH (>100 Mbit/s) | S3: MIN | T3: Typical figure | U3: MAX | V3: Anticipated growth/reduction (+/-%) | W3: congested | X3: planned relocation to other service/application | Y3: Other (please describe) (see Question 3 of the Questionnaire)
A4: TOTAL | L4: =SUBTOTAL(9,L5:M101) -> 2382 | N4: =SUBTOTAL(9,N5:N101) -> 242
A5: TELIASON | B5: 2025-2110 and 2200-2290 | O5: T/R 13-01 Annex C
A6: AUT | B6: 2025-2110 and 2200-2290 | C6: X | I6: X | K6: mo | O6: T/R 13-01 Annex C
A7: AUT | I7: X | K7: mo | O7: national
A8: BIH | B8: 2025-2110 and 2200-2290 | C8: X | I8: X | L8: 27 | O8: T/R 13-01 Annex C | P8: X | S8: 1 | T8: 55 | U8: 99 | V8: +10
A9: HRV | B9: 2025-2110 and 2200-2290 | C9: X | I9: X | L9: 182 | O9: National plan | P9: X | S9: 0.09 | T9: 8.9 | U9: 55.6
A10: CZE | B10: 2025-2110 and 2200-2290 | C10: X | G10: X | K10: MD shared | N10: 110 | O10: T/R 13-01 Annex C | V10: 0
A11: CYP | B11: 2025-2110 and 2200-2290 | O11: T/R 13-01 Annex C | X11: X
A12: DNK | B12: 2025-2110 and 2200-2290 | O12: T/R 13-01 Annex C
A13: EST | B13: 2025-2110 and 2200-2290 | O13: T/R 13-01 Annex C
A14: FIN | B14: 2025-2110 and 2200-2290 | C14: X | H14: X | M14: 12 | O14: T/R 13-01 Annex C | P14: X | Q14: X
A15: FRA | B15: 2025-2110 and 2200-2290 | O15: T/R 13-01 Annex C
A16: GRC | B16: 2025-2110 and 2200-2290 | C16: X | H16: X | M16: 206 | O16: T/R 13-01 Annex C | P16: X | Q16: X | S16: 0.6 | T16: 21 | U16: 60 | V16: reduction
A17: HUN | B17: 2025-2110 and 2200-2290 | C17: X | F17: X | K17: 2070-2110 and 2245-2290 MHz Non-Civil digital P-P links | M17: 3 | O17: T/R 13-01 Annex C | P17: X | Q17: X | T17: 20
A18: HUN | C18: X | F18: X | K18: 2025-2070 and 2200-2245 MHz NJFA requirement: NATO Tactical Radio Relay | P18: X | Q18: X | T18: 20
A19: ICE | B19: 2025-2110 and 2200-2290 | C19: X | F19: X | M19: 90 | O19: T/R 13-01 Annex C | P19: 45 | Q19: 45 | S19: 20 | T19: 40 | U19: 70 | V19: 0
A20: IRL | B20: 2025-2110 and 2200-2290 | C20: X | H20: X | M20: 47 | O20: T/R 13-01 Annex C | P20: X | Q20: X | S20: 1.5 | T20: 24 | U20: 66 | V20: 0
A21: IRL | O21: National Legislation: S.I. 370 of 2009
A22: ITA | B22: 2025-2110 and 2200-2290 | C22: X | G22: X | H22: X | L22: 12 | M22: 21 | O22: T/R 13-01 Annex C | P22: x | S22: 6.71 | T22: 30.92 | U22: 64.77 | V22: 0.15
A23: ITA | C23: X | G23: X | H23: X | L23: 95 | M23: 3 | O23: T/R 13-01 Annex C | Q23: x | S23: 3.28 | T23: 52.12 | U23: 238.26 | V23: 0.15
A24: ITA | C24: X | G24: X | H24: X | M24: 122 | O24: T/R 13-01 Annex C | R24: x | S24: 0.49 | T24: 67.06 | U24: 238.26 | V24: 0.15
A25: ITA | C25: X | G25: X | N25: 10 | O25: T/R 13-01 Annex C | P25: X | V25: 0.05 | W25: stable
A26: ITA | B26: 2300-2400 | C26: X | F26: X | M26: 275 | O26: national | P26: X
A27: LVA | B27: 2025-2110 and 2200-2290 | C27: X | F27: X | M27: 3 | O27: T/R 13-01 Annex C | P27: X | S27: 5 | U27: 41
A28: LTU | B28: 2025-2110 and 2200-2290 | C28: X | F28: X | J28: X | M28: 5 | O28: T/R 13-01 Annex C | P28: 5
A29: LUX | B29: 2025-2110 and 2200-2290 | O29: ///
A30: NLD | B30: 2025-2110 and 2200-2290 | O30: T/R 13-01 Annex C
A31: NOR | B31: 2025-2110 and 2200-2290 | C31: X | D31: X | K31: X | O31: T/R 13-01 Annex C | Y31: SAP/SAB
A32: NOR | C32: X | J32: X | M32: 2 | Q32: x | S32: 17 | T32: 19.7 | U32: 22 | Y32: Offshore
A33: PRT | B33: 2025-2110 and 2200-2290 | C33: X | F33: X | K33: TCR, SAP/SAB | M33: 11 | O33: T/R 13-01 Annex C | P33: X | S33: 2 | T33: 40 | U33: 193 | V33: 0
A34: PRT | C34: X | F34: X | K34: TCR, SAP/SAB | M34: 2 | O34: National plan | Q34: X | S34: 20 | T34: 40 | U34: 64 | V34: 0
A35: RUS | B35: 2025-2110 and 2200-2290 | C35: X | D35: X | H35: X | M35: 73 | N35: 1 | O35: T/R 13-01 Annex C | P35: X | Q35: X | S35: 40 | T35: 80 | U35: 90 | V35: Currently no frequencies are assigned to P-P links. In the near future frequency assignments to the fixed service are not planned.
A36: SRB | B36: 2025-2110 and 2200-2290 | Y36: defense systems
A37: SVK | B37: 2025-2110 and 2200-2290 | Y37: N.A.
A38: SVN | B38: 2025-2110 and 2200-2290 | O38: T/R 13-01 Annex C
A39: SWE | B39: 2025-2110 and 2200-2290 | O39: T/R 13-01 Annex C
A40: CHE | B40: 2025-2110 and 2200-2290 | K40: No civil FS use | O40: T/R 13-01 Annex C
A41: GBR | B41: 2025-2110 and 2200-2290 | O41: T/R 13-01 Annex C | Y41: row missing in the questionnaire
C43: =COUNTA(C6:C41) -> 22 | D43: =COUNTA(D6:D41) -> 2 | E43: 1 | F43: 8 | G43: 5 | H43: 7 | I43: 4 | J43: 2 | K43: =COUNTA(#REF!) -> 1 | L43: =SUM(L6:L41) -> 316 | M43: =SUM(M6:M41) -> 875 | N43: =SUM(N6:N41) -> 121 | P43: =COUNTA(P6:P41) -> 15 | Q43: =COUNTA(Q6:Q41) -> 10 | R43: =COUNTA(R6:R41) -> 1 | S43: =MIN(S$5:S$41) -> 0.09 | T43: =MIN(T$5:T$41) -> 8.9 | U43: =MIN(U$5:U$41) -> 22
S44: =MEDIAN(S$5:S$41) -> 4.14 | T44: =MEDIAN(T$5:T$41) -> 27.46 | U44: =MEDIAN(U$5:U$41) -> 66
S45: =MAX(S$5:S$41) -> 40 | T45: =MAX(T$5:T$41) -> 80 | U45: =MAX(U$5:U$41) -> 238.26
A46: Note | B46: PRT | C46: in counting links, for bidirectional links, more than 1 channel counts 1 | S46: =PERCENTILE(S$5:S$41,[1]TOT!$S$1) -> 29 | T46: =PERCENTILE(T$5:T$41,[1]TOT!$S$1) -> 72.883 | U46: =PERCENTILE(U$5:U$41,[1]TOT!$S$1) -> 238.26

Sheet 3-4,2 GHz
A1: Country | B1: Frequency band (MHz) | C1: Licensing regime | F1: Application | L1: Number of P-P links | N1: Number of BS | O1: Channel/Frequency plan used (e.g. ERC/ECC Rec. ITU-R Rec.) | P1: Link characteristics | V1: Future trends in the next 5 years
F2: FWA | L2: unidirection | M2: bidirectional (1 bidirectional link counts 1) | N2: (applicable only for P-MP and mesh networks) | P2: Capacity | S2: Hop lenght (km)
C3: Link by link | D3: Block | E3: Unlicensed | F3: P-P | G3: P-MP | H3: Network Infrastructure | I3: Broadcasting Infrastructure | J3: No Information available on the application | K3: Other (please indicate) | P3: LOW (<10 Mbit/s) | Q3: MEDIUM (10 to 100 Mbit/s) | R3: HIGH (>100 Mbit/s) | S3: MIN | T3: Typical figure | U3: MAX | V3: Anticipated growth/reduction (+/-%) | W3: congested | X3: planned relocation to other service/application | Y3: Other (please describe) (see Question 3 of the Questionnaire)
A4: TOTAL | L4: =SUBTOTAL(9,L5:M103) -> 10504 | N4: =SUBTOTAL(9,N5:N103) -> 25328
A5: TELIASON | B5: 3400-3600 | O5: ERC/REC 14-03
A6: AUT | B6: 3400-3600 | C6: X | G6: X | H6: X | N6: 240 | O6: ERC/REC 14-03 | P6: X | S6: 3 | T6: 15 | U6: 30
A7: BIH | B7: 3400-3600 | C7: X | H7: X | I7: X | L7: 9 | M7: 1 | O7: ERC/REC 14-03 Annex B | P7: X | Q7: X | T7: 2 | Y7: 3400-3600 MHz: Only two channels are available for P-P links out of FWA systems. We still do not have active implemented FWA systems. 3400-3600, 3600-3800, 7725-8275, 10700-11700 MHz: Broadcast infrastructure P-P links are planned to migrate in 3800-4200 MHz
A8: BIH | B8: 3400-3600 | D8: X | F8: X | G8: X | Q8: X | R8: X | V8: +25 | Y8: 3400-3600, 3600-3800, 7725-8275, 10700-11700 MHz: Broadcast infrastructure P-P links are planned to migrate in 3800-4200 MHz
A9: HRV | B9: 3400-3600 | D9: X | G9: X | N9: 67 | O9: ERC/REC 14-03 | V9: -30
A10: CZE | B10: 3400-3600 | C10: X | D10: X | F10: X | G10: X | N10: 667 | O10: ERC/REC 14-03 | V10: 100 | Y10: P-MP, FWA planned
A11: CYP | B11: 3400-3600 | C11: P.C. | O11: 2008/411/EC
A12: DNK | B12: 3400-3600 | C12: X | N12: 29 | O12: ERC/REC 14-03
A13: DNK | B13: 3400-3600 | D13: X | Y13: No info
A14: EST | B14: 3400-3600 | O14: ERC/REC 14-03 | Y14: No info
A15: FIN | B15: 3400-3600 | D15: X | G15: X | N15: 540 | O15: ERC/REC 14-03
A16: FRA | B16: 3400-3600 | C16: X | D16: X | F16: X | G16: X | H16: X | M16: 236 | N16: 1135 | O16: ERC/REC 14-03 | P16: 236 | S16: 2 | T16: 20<x>80 | U16: 135 | V16: -30
A17: GER | B17: 3400-3600 | D17: x | G17: x | N17: 392 | O17: ERC/REC 14-03 | Q17: x
A18: GRC | B18: 3400-3600 | D18: X | F18: X | G18: X | O18: ERC/REC 14-03 | P18: - | V18: 4 issued licenses
A19: HUN | B19: 3400-3600 | O19: ERC/REC 14-03
A20: HUN | B20: 3400-3600 | D20: X | E20: X | G20: X | N20: 383 | O20: ECC/DEC/(07)02 | V20: 20
A21: ICE | B21: 3400-3600 | D21: X | G21: X | N21: 20 | O21: ERC/REC 14-03 | T21: 10
A22: IRL | B22: 3400-3600 | C22: X | G22: X | N22: 120 | O22: ERC/REC 14-03 | V22: 66
A23: ITA | B23: 3400-3600 | D23: X | G23: X | O23: ERC/REC 14-03 | Y23: No info
A24: LVA | B24: 3400-3600 | D24: X | G24: X | N24: 69 | O24: ERC/REC 14-03 | Q24: X | T24: 10 | V24: 50
A25: LTU | B25: 3400-3600 | C25: X | F25: X | L25: 0 | M25: 0 | O25: ERC/REC 14-03
A26: LTU | B26: 3400-3600 | D26: X | G26: X | N26: 402 | O26: ERC/REC 14-03 | V26: 50 | Y26: Fixed and mobile P-MP (BWA)
A27: LUX | B27: 3400-3600 | D27: X | G27: X | H27: X | N27: 3 | O27: Nat. freq. Plan | V27: N/A | W27: NO | X27: NO
A28: NLD | B28: 3400-3600 | O28: ERC/REC 14-03
A29: PRT | B29: 3400-3600 | D29: X | G29: X | N29: 64 | O29: ERC/REC 14-03 | P29: X | T29: 20 | V29: BWA
A30: RUS | B30: 3400-3600 | C30: X | D30: X | G30: X | H30: X | I30: X | M30: 2190 | N30: 8033 | O30: ERC/REC 14-03 | P30: X | Q30: X | S30: 40 | T30: 80 | U30: 90 | V30: Currently no frequencies are assigned to P-P links. In the near future frequency assignments to the fixed service are not planned.
A31: SRB | B31: 3400-3600 | D31: X | G31: X | N31: 51 | O31: ERC/REC 14-03 | V31: 50
A32: SVK | B32: 3400-3600 | D32: X | G32: X | N32: 198 | O32: ERC/REC 14-03 | P32: X | V32: 10
A33: SVN | B33: 3400-3600 | D33: X | G33: X | K33: BWA | N33: 10 | O33: ERC/REC 14-03 | Q33: X | S33: 5 | T33: 30 | U33: 70 | V33: 400
A34: SWE | B34: 3400-3600 | D34: X | F34: X | G34: X | H34: X | I34: X | K34: X | O34: ERC/REC 14-03 | V34: Y | W34: N | Y34: IMT-?
A35: CHE | B35: 3400-3600 | K35: ENG-Outside Broadcast | O35: ERC/REC 14-03
A36: NOR | B36: 3410-3600 | D36: X | J36: X | O36: ERC/REC 14-03 Annex A
A37: NOR | B37: 3410-3600 | C37: X | J37: X | M37: 0
A38: BIH | B38: 3600-3800 | C38: X | I38: X | L38: 9 | O38: ERC/REC 12-08 | Q38: X | R38: X | Y38: 3400-3600, 3600-3800, 7725-8275, 10700-11700 MHz: Broadcast infrastructure P-P links are planned to migrate in 3800-4200 MHz
A39: BIH | B39: 3600-3800 | D39: X | F39: X | G39: X | N39: 65 | R39: X | V39: +25
A40: CZE | B40: 3600-3800 | C40: X | F40: X | M40: 150 | O40: ERC/REC 12-08 | X40: X | Y40: DEC EC/411/EC
A41: GER | B41: 3600-3800 | D41: x | G41: x | N41: 0 | O41: ERC/REC 14-03 | Q41: x
A42: NOR | B42: 3600-3800 | D42: X | J42: X | O42: ERC/REC 12-08
A43: NOR | B43: 3600-3800 | C43: X | J43: X | M43: 0
A44: SRB | B44: 3600-3800 | D44: X | G44: X | N44: 1 | O44: ERC/REC 12-08
A45: SVN | B45: 3600-3800 | C45: X | F45: X | I45: X | M45: 2 | O45: ERC/REC 12-08 | R45: X | V45: -100 | X45: x | Y45: BWA
A46: SVN | B46: 3600-3800 | C46: X | F46: X | I46: X | L46: 1 | O46: ERC/REC 12-08 | R46: X | S46: 10 | T46: 45 | U46: 90 | V46: -100 | X46: x | Y46: BWA
A47: SVN | B47: 3600-3800 | D47: X | G47: X | K47: BWA | N47: planned | O47: ERC/REC 12-08 | Q47: X | V47: >400 | Y47: BWA
A48: TELIASON | B48: 3600-4200 | O48: ERC/REC 12-08
A49: AUT | B49: 3600-4200 | C49: X | F49: X | H49: X | M49: 90 | O49: ERC/REC 12-08 | Q49: X | S49: 13 | T49: 50 | U49: 100
A50: HRV | B50: 3600-4200 | C50: X | I50: X | M50: 9 | O50: ERC/REC 12-08 | Q50: X
A51: HRV | B51: 3600-4200 | C51: X | H51: X | L51: 1 | M51: 70 | R51: X | S51: 20.2 | T51: 44.2 | U51: 91.4 | V51: 10
A52: CYP | B52: 3600-4200 | C52: P.C. (3.6-3.8 GHz) | O52: 2008/411/EC
A53: DNK | B53: 3600-4200 | C53: X | N53: 21 | O53: ERC/REC 12-08
A54: DNK | B54: 3600-4200 | D54: X | Y54: No info
A55: EST | B55: 3600-4200 | O55: ERC/REC 12-08 | Y55: No info
A56: FIN | B56: 3600-4200 | C56: X | H56: X | I56: X | M56: 160 | O56: ERC/REC 12-08 | R56: X
A57: FIN | B57: 3600-4200 | I57: X | L57: 40 | O57: National | P57: Analog | Q57: Analog | Y57: Will be phased out
A58: FIN | B58: 3600-4200 | C58: X | I58: X | L58: 120 | O58: ITU-R F.382 | P58: Analog | Q58: Analog | Y58: Will be phased out
A59: FRA | B59: 3600-4200 | C59: X | F59: X | H59: X | M59: 11 | O59: ERC/REC 12-08 | R59: 11 | S59: 2 | T59: 20<x>80 | U59: 135 | V59: -20
A60: HUN | B60: 3600-4200 | C60: X | F60: X | M60: 20 | O60: ERC/REC 12-08 | R60: X | T60: 30 | V60: 25
A61: HUN | B61: 3600-4200
A62: ICE | B62: 3600-4200 | C62: X | F62: X | M62: 7 | O62: ERC/REC 12-08 | R62: 7 | S62: 20 | T62: 30 | U62: 40 | V62: 0
A63: IRL | B63: 3600-4200 | O63: ERC/REC 12-08
A64: ITA | B64: 3600-4200 | C64: X | F64: X | H64: X | M64: 77 | O64: ERC/REC 12-08 | R64: X | S64: 13.6 | T64: 60 | U64: 238 | V64: -5
A65: ITA | B65: 3600-4200 | C65: X | H65: X | I65: X | L65: 105 | M65: 9 | O65: ERC/REC 12-08 | Q65: X | R65: X | S65: 17.46 | T65: 88.5 | U65: 238.26 | V65: -5
A66: ITA | B66: 3600-4200 | D66: X | H66: X | I66: X | M66: 210 | O66: ERC/REC 12-08 | R66: X | S66: 13.6 | T66: 67.34 | U66: 238.26 | V66: -5
A67: LVA | B67: 3600-4200 | D67: X | G67: X | N67: 154 | O67: ERC/REC 12-08 | Q67: X | T67: 10 | V67: 50
A68: LTU | B68: 3600-4200 | C68: X | F68: X | J68: X | M68: 30 | O68: ERC/REC 12-08 | R68: 30
A69: LTU | B69: 3600-4200 | D69: X | G69: X | J69: X | O69: ERC/REC 12-08 | Y69: 3600-3800 future for BWA
A70: LUX | B70: 3600-4200 | C70: X | F70: X | H70: X | I70: X | L70: 1 | M70: 0 | O70: Nat. freq. Plan | Q70: X | R70: X | T70: 20-80 | V70: N/A | W70: NO | X70: NO
A71: NLD | B71: 3600-4200 | O71: ERC/REC 12-08
A72: PRT | B72: 3600-4200 | D72: X | G72: X | K72: VSAT (3.8-4.2 GHz) | O72: ERC/REC 12-08 | P72: X | Q72: X | T72: 20 | Y72: BWA in 3.3 -3.6GHz and FSS in 3.8-4.2GHz
A73: RUS | B73: 3600-4200 | C73: X | D73: X | H73: X | I73: X | M73: 688 | O73: ERC/REC 12-08 | P73: X | Q73: X | R73: X | S73: 40 | T73: 80 | U73: 90
A74: RUS | B74: 3600-4200 | O74: F.635 ITU-R
A75: SVK | B75: 3600-4200 | O75: ERC/REC 12-08 | Y75: N.A. FWA planned
A76: SWE | B76: 3600-4200 | D76: X | F76: X | G76: X | H76: X | I76: X | K76: X | O76: ERC/REC 12-08 | V76: Y | W76: N | Y76: IMT-?
A77: CHE | B77: 3600-4200 | K77: ENG-Outside Broadcast | O77: ERC/REC 12-08
A78: GBR | B78: 3600-4200 | C78: X | J78: X | L78: 40 | O78: ERC/REC 12-08 | Q78: X | R78: X
A79: BIH | B79: 3800-4200 | C79: X | I79: X | L79: 11 | M79: 3 | O79: ERC/REC 12-08 Annex B | S79: 27 | T79: 35 | U79: 85 | V79: +40
A80: CZE | B80: 3800-4200 | C80: X | F80: X | M80: 479 | O80: ERC/REC 12-08
A81: GER | B81: 3800-4200 | C81: x | F81: x | L81: 269 | O81: ERC/REC 12-08 | R81: x | S81: 14.4 | T81: 42 | U81: 64.8
A82: GRC | B82: 3800-4200 | C82: X | H82: X | M82: 163 | O82: ERC/REC 12-08 Annex B | Q82: X | R82: X | S82: 5 | T82: 55 | U82: 101 | V82: reduction
A83: NOR | B83: 3800-4200 | D83: X | J83: X | O83: ERC/REC 12-08
A84: NOR | B84: 3800-4200 | C84: X | J84: X | M84: 2 | Q84: X | S84: 2.5 | T84: 2.7 | U84: 2.9 | AA84: Offshore
A85: SRB | B85: 3800-4200 | C85: X | H85: X | M85: 3 | O85: ITU-R F.382-8 | R85: X | S85: 72.09 | T85: 74.02 | U85: 77.89
A86: SVN | B86: 3800-4200 | C86: X | F86: X | I86: X | M86: 18 | O86: ERC/REC 12-08 | R86: X | S86: 30 | T86: 60 | U86: 90 | W86: X* | Y86: congested in backbone directions
A87: SVN | B87: 3800-4200 | C87: X | F87: X | I87: X | L87: 18 | O87: ERC/REC 12-08 | R87: X | S87: 10 | T87: 30 | U87: 90 | W87: X* | Y87: congested in backbone directions
C89: =COUNTA(C5:C87) -> 39 | D89: =COUNTA(D5:D87) -> 36 | E89: 3 | F89: 22 | G89: 30 | H89: 18 | I89: 18 | J89: 9 | K89: 7 | L89: =SUM(L5:L87) -> 624 | M89: =SUM(M5:M87) -> 4628 | N89: =SUM(N5:N87) -> 12664 | P89: =COUNTA(P5:P87) -> 11 | Q89: =COUNTA(Q5:Q87) -> 21 | R89: =COUNTA(R5:R87) -> 22 | S89: =MIN(S$5:S$87) -> 2 | T89: =MIN(T$5:T$87) -> 2 | U89: =MIN(U$5:U$87) -> 2.9
S90: =MEDIAN(S$5:S$87) -> 13.6 | T90: =MEDIAN(T$5:T$87) -> 42 | U90: =MEDIAN(U$5:U$87) -> 90
S91: =MAX(S$5:S$87) -> 72.09 | T91: =MAX(T$5:T$87) -> 88.5 | U91: =MAX(U$5:U$87) -> 238.26
A92: Note | B92: PRT | C92: in counting links, for bidirectional links, more than 1 channel counts 1 | S92: =PERCENTILE(S$5:S$87,0.9) -> 40 | T92: =PERCENTILE(T$5:T$87,0.9) -> 78.804 | U92: =PERCENTILE(U$5:U$87,0.9) -> 238.026
S93: =PERCENTILE(S$5:S$87,[1]TOT!$S$1) -> 41.6045 | T93: =PERCENTILE(T$5:T$87,[1]TOT!$S$1) -> 80 | U93: =PERCENTILE(U$5:U$87,[1]TOT!$S$1) -> 238.26

Sheet 4,4-5 GHz
A1: All empty but
A3: Country | B3: Frequency band (MHz) | C3: Licensing regime | F3: Application | L3: Number of P-P links | N3: Number of BS | O3: Channel/Frequency plan used (e.g. ERC/ECC Rec. ITU-R Rec.) | P3: Link characteristics | V3: Future trends in the next 5 years
F4: FWA | P4: Capacity | S4: Hop lenght (km)
C5: Link by link | D5: Block | E5: Unlicensed | F5: P-P | G5: P-MP | H5: Network Infrastructure | I5: Broadcasting Infrastructure | J5: No Information available on the application | K5: Other (please indicate) | L5: unidirection | M5: bidirectional (1 bidirectional link counts 1) | N5: (applicable only for P-MP and mesh networks) | P5: LOW (<10 Mbit/s) | Q5: MEDIUM (10 to 100 Mbit/s) | R5: HIGH (>100 Mbit/s) | S5: MIN | T5: Typical figure | U5: MAX | V5: Anticipated growth/reduction (+/-%) | W5: congested | X5: planned relocation to other service/application | Y5: Other (please describe) (see Question 3 of the Questionnaire)
A6: TOTAL | L6: =SUBTOTAL(9,L7:M103) -> 968 | N6: =SUBTOTAL(9,N7:N103) -> 0
A7: AUT | B7: 4400-5000 | C7: X | I7: X | K7: mo | O7: national
A8: AUT
A9: CZE | B9: 4400-5000 | K9: MD | Y9: civil/MD sharing
A10: CZE
A11: CYP | B11: 4400-5000 | X11: X
A12: CYP
A13: HUN | B13: 4400-5000 | C13: X | F13: X | G13: X | K13: Harmonized NATO band type 1. Land military systems, Tactical Radio Relay | M13: 140 | P13: X | Q13: X | R13: X | Y13: non-civil usage
A14: HUN
A15: LVA | B15: 4400-5000 | Y15: Military band
A16: PRT | B16: 4400-5000 | J16: X | K16: Military
A17: PRT
A18: RUS | B18: 4400-5000 | C18: X | D18: X | H18: X | I18: X | M18: 344 | O18: F.382 ITU-R | P18: X | Q18: X | R18: X | S18: 40 | T18: 80 | U18: 90
A19: SRB | B19: 4400-5000 | J19: X | Y19: defence systems
A20: SRB
A21: CHE | B21: 4400-5000 | K21: No civil FS use
A22: CHE
C24: =COUNTA(C7:C22) -> 3 | D24: =COUNTA(D7:D22) -> 1 | E24: 1 | F24: 1 | G24: 1 | H24: 1 | I24: 2 | J24: 2 | K24: 5 | L24: =SUM(L7:L22) -> 0 | M24: =SUM(M7:M22) -> 484 | N24: =SUM(N7:N22) -> 0 | P24: =COUNTA(P7:P22) -> 2 | Q24: =COUNTA(Q7:Q22) -> 2 | R24: =COUNTA(R7:R22) -> 2 | S24: =PERCENTILE(S$5:S$22,[1]TOT!$S$1) -> 40 | T24: =PERCENTILE(T$5:T$22,[1]TOT!$S$1) -> 80 | U24: =PERCENTILE(U$5:U$22,[1]TOT!$S$1) -> 90

Sheet 5,7-5,95 GHz
A1: Country | B1: Frequency band (MHz) | C1: Licensing regime | F1: Application | L1: Number of P-P links | N1: Number of BS | O1: Channel/Frequency plan used (e.g. ERC/ECC Rec. ITU-R Rec.) | P1: Link characteristics | V1: Future trends in the next 5 years
F2: FWA | P2: Capacity | S2: Hop lenght (km)
C3: Link by link | D3: Block | E3: Unlicensed | F3: P-P | G3: P-MP | H3: Network Infrastructure | I3: Broadcasting Infrastructure | J3: No Information available on the application | K3: Other (please indicate) | L3: unidirection | M3: bidirectional (1 bidirectional link counts 1) | N3: (applicable only for P-MP and mesh networks) | P3: LOW (<10 Mbit/s) | Q3: MEDIUM (10 to 100 Mbit/s) | R3: HIGH (>100 Mbit/s) | S3: MIN | T3: Typical figure | U3: MAX | V3: Anticipated growth/reduction (+/-%) | W3: congested | X3: planned relocation to other service/application | Y3: Other (please describe) (see Question 3 of the Questionnaire)
A4: TOTAL | L4: =SUBTOTAL(9,L5:M101) -> 3136 | N4: =SUBTOTAL(9,N5:N101) -> 1246
A5: TELIASON | B5: 5850-5925
A6: AUT | B6: 5850-5925 | C6: X | I6: X | K6: mo | O6: national
A7: BIH | B7: 5850-5925
A8: HRV | B8: 5850-5925
A9: CZE | B9: 5850-5925 | K9: MD | Y9: civil/MD sharing
A10: CYP | B10: 5850-5925 | C10: X | I10: X | L10: 2 | Q10: X | S10: PORTABLE
A11: DNK | B11: 5850-5925
A12: EST | B12: 5850-5925
A13: FIN | B13: 5850-5925
A14: FRA | B14: 5850-5925
A15: GRC | B15: 5850-5925
A16: HUN | B16: 5850-5925 | C16: X | F16: X | G16: X | H16: X | K16: Non-Civil BFWA systems | O16: ECC/DEC/(06)04
A17: HUN | C17: X | F17: X
A18: ICE | B18: 5850-5925
A19: IRL | B19: 5850-5925
A20: ITA | B20: 5850-5925 | C20: X | F20: X | I20: X | L20: 71 | O20: national | R20: x | S20: 20 | T20: 50 | U20: 238 | V20: 1 | W20: yes
A21: ITA | D21: X | H21: X | I21: X | L21: 116 | O21: national | Q21: x | S21: 9.47 | T21: 61.58 | U21: 121.23 | V21: 1 | W21: yes
A22: LVA | B22: 5850-5925 | D22: X | G22: X | Y22: Planning BFWA within 5725-5875 MHz band. BFWA 5905-5925 MHz
A23: LTU | B23: 5850-5925 | C23: X | F23: X | H23: X | M23: 29 | P23: 29
A24: LTU | G24: X | J24: X | O24: 5/10/20MHz | Y24: 5850-5875, 5905-5925 future P-MP
A25: LUX | B25: 5850-5925 | O25: ///
A26: NLD | B26: 5850-5925
A27: NLD
A28: NOR | B28: 5725-5795 and 5815-5850 | E28: X | J28: X | O28: National plan
A29: PRT | B29: 5850-5925 | E29: X | K29: ISM, SRD
A30: RUS | B30: 5850-5925 | C30: X | D30: X | G30: X | H30: X | I30: X | M30: 1350 | N30: 623 | P30: X | Q30: X | R30: X | S30: 30 | T30: 70 | U30: 90
A31: SRB | B31: 5850-5925 | E31: X | K31: X | O31: ERC/REC 70-03 | Y31: SRD
A32: SVK | B32: 5850-5925 | Y32: N.A.
A33: SVN | B33: 5850-5925
A34: SWE | B34: 5850-5925
A35: CHE | B35: 5850-5925 | K35: ENG-Outside Broadcast
A36: GBR | B36: 5725-5850 | D36: X | J36: X | O36: no channel plan
C38: =COUNTA(C5:C36) -> 7 | D38: 4 | E38: 3 | F38: 4 | G38: 4 | H38: 4 | I38: 5 | J38: 3 | K38: =COUNTA(K5:K36) -> 6 | L38: =SUM(L5:L36) -> 189 | M38: =SUM(M5:M36) -> 1379 | N38: =SUM(N5:N36) -> 623 | P38: =COUNTA(P5:P36) -> 2 | Q38: =COUNTA(Q5:Q36) -> 3 | R38: =COUNTA(R5:R36) -> 3 | S38: =MIN(S$5:S$36) -> 9.47 | T38: =MIN(T$5:T$36) -> 50 | U38: =MIN(U$5:U$36) -> 90
S39: =MEDIAN(S$5:S$36) -> 20 | T39: =MEDIAN(T$5:T$36) -> 61.58 | U39: =MEDIAN(U$5:U$36) -> 121.23
S40: =MAX(S$5:S$36) -> 30 | T40: =MAX(T$5:T$36) -> 70 | U40: =MAX(U$5:U$36) -> 238
S41: =PERCENTILE(S$5:S$36,[1]TOT!$S$1) -> 29 | T41: =PERCENTILE(T$5:T$36,[1]TOT!$S$1) -> 69.158 | U41: =PERCENTILE(U$5:U$36,[1]TOT!$S$1) -> 226.323

Sheet 5,9-7,1 GHz
A1: Country | B1: Frequency band (MHz) | C1: Licensing regime | F1: Application | L1: Number of P-P links | N1: Number of BS | O1: Channel/Frequency plan used (e.g. ERC/ECC Rec. ITU-R Rec.) | P1: Link characteristics | V1: Future trends in the next 5 years
F2: FWA | P2: Capacity | S2: Hop lenght (km)
C3: Link by link | D3: Block | E3: Unlicensed | F3: P-P | G3: P-MP | H3: Network Infrastructure | I3: Broadcasting Infrastructure | J3: No Information available on the application | K3: Other (please indicate) | L3: unidirection | M3: bidirectional (1 bidirectional link counts 1) | N3: (applicable only for P-MP and mesh networks) | P3: LOW (<10 Mbit/s) | Q3: MEDIUM (10 to 100 Mbit/s) | R3: HIGH (>100 Mbit/s) | S3: MIN | T3: Typical figure | U3: MAX | V3: Anticipated growth/reduction (+/-%) | W3: congested | X3: planned relocation to other service/application | Y3: Other (please describe) (see Question 3 of the Questionnaire)
A4: TOTAL | L4: =SUBTOTAL(9,L5:M102) -> 35326 | N4: =SUBTOTAL(9,N5:N102) -> 3884
A5: TELIASON | B5: 5925-7125 | C5: X | H5: X | M5: 19 | O5: ERC/REC 14-01 and ERC/REC 14-02 | R5: 19 | S5: 6 | U5: 40 | W5: X | Z5: NL 290
A6: AUT | B6: 5925-7125 | C6: X | F6: X | H6: X | M6: 336 | O6: ERC/REC 14-01 and ERC/REC 14-02 | R6: X | S6: 5 | T6: 45 | U6: 70
A7: BIH | B7: 5925-7125 | C7: X | H7: X | L7: 5 | M7: 302 | O7: ERC/REC 14-01 and ERC/REC 14-02 | R7: X | S7: 8 | T7: 60 | U7: 134 | W7: X
A8: HRV | B8: 5925-7125 | C8: X | H8: X | M8: 98 | O8: ERC/REC 14-01 and ERC/REC 14-02 | R8: X | S8: 10.7 | T8: 34.1 | U8: 70.8 | V8: 20 | W8: x
A9: CZE | B9: 5925-7125 | C9: X | F9: X | M9: 1642 | O9: ERC/REC 14-01 and ERC/REC 14-02
A10: CYP | B10: 5925-7125 | C10: X | H10: X | I10: X | L10: 17 | M10: 27 | O10: ERC/REC 14-01 and ERC/REC 14-02 | P10: X | Q10: X | S10: 7.19 | U10: 53
A11: DNK | B11: 5925-7125 | C11: X | M11: 22 | O11: ERC/REC 14-01 and ERC/REC 14-02
A12: EST | B12: 5925-7125 | O12: ERC/REC 14-01 and ERC/REC 14-02
A13: FIN | B13: 5925-7125 | C13: X | H13: X | I13: X | M13: 160 | O13: ERC/REC 14-01 and ERC/REC 14-02 | Q13: X | R13: X | S13: 10 | T13: 30 | U13: 63 | V13: 0.8
A14: FRA | B14: 5925-7125 | C14: X | F14: X | H14: X | M14: 3491 | O14: ERC/REC 14-01 and ERC/REC 14-02 | R14: 3491 | S14: 0.5 | T14: 20-80 | U14: 105 | V14: + 5 % | W14: X
A15: GER | B15: 5925-6425 | C15: x | F15: x | L15: 994 | O15: ERC/REC 14-01 | R15: x | S15: 11.1 | T15: 40 | U15: 67.3
A16: GER | B16: 6425-7125 | C16: x | F16: x | L16: 2565 | O16: ERC/REC 14-02 | R16: x | S16: 4.3 | T16: 30 | U16: 103.9
A17: GRC | B17: 5925-7125 | C17: X | H17: X | M17: 638 | O17: ERC/REC 14-01 and ERC/REC 14-02 | Q17: X | R17: X | S17: 8 | T17: 45 | U17: 102 | V17: stable
A18: HUN | B18: 5925-7125 | C18: X | F18: X | M18: 299 | O18: ERC/REC 14-01 and ERC/REC 14-02 | V18: 0.1
A19: ICE | B19: 5925-7125 | C19: X | F19: X | I19: X | L19: 6 | M19: 16 | O19: ERC/REC 14-01 and ERC/REC 14-02 | P19: 3 | R19: 15 | S19: 10 | T19: 30 | U19: 50 | V19: 0
A20: IRL | B20: 5925-7125 | C20: X | H20: X | L20: 2 | M20: 356 | O20: ERC/REC 14-01 and ERC/REC 14-02 | R20: X | S20: 8 | T20: 40 | U20: 90 | V20: 28
A21: ITA | B21: 5925-7125 | C21: X | F21: X | H21: X | I21: X | L21: 102 | M21: 808 | O21: ERC/REC 14-01 and ERC/REC 14-02 | Q21: X | R21: X | S21: 6.32 | T21: 44 | U21: 83 | V21: 0.15 | W21: almost
A22: LVA | B22: 5925-6245 and 6425-7125 | C22: X | F22: X | M22: 39 | O22: ERC/REC 14-01 | R22: X | S22: 22 | T22: 30 | U22: 36 | V22: 100
A23: LVA | C23: X | F23: X | M23: 17 | O23: ERC/REC 14-02 | R23: X | S23: 28 | T23: 35 | U23: 52 | V23: 100
A24: LTU | B24: 5925-7125 | C24: X | F24: X | H24: X | M24: 137 | O24: ERC/REC 14-01 and ERC/REC 14-02
A25: LTU | G25: X | J25: X | O25: 5/10/20MHz | Y25: 5925-6425 future for P-MP
A26: LUX | B26: 5925-7125 | C26: X | F26: X | H26: X | I26: X | L26: 10 | M26: 2 | O26: ERC/REC 14-01 and ERC/REC 14-02 and national plan | Q26: X | R26: X | S26: 3.4 | T26: 20-80 | U26: 63 | V26: N/A | W26: NO | X26: NO
A27: NLD | B27: 5925-7125 | C27: X | J27: X | M27: 51 | O27: ERC/REC 14-01 and ERC/REC 14-02 | R27: X | S27: 21.41 | T27: 31.11 | U27: 49.3 | V27: 20
A28: NOR | B28: 5925-7125 | C28: X | D28: X | J28: X | M28: 146 | O28: ERC/REC 14-01 and ERC/REC 14-02 | R28: X | S28: 2.8 | T28: 37.5 | U28: 123
A29: PRT | B29: 5925-7125 | C29: X | F29: X | H29: X | K29: VSAT, SRD | L29: 2 | M29: 8 | O29: ERC/REC 14-01 | Q29: X | R29: X | S29: 40 | T29: 40 | U29: 88 | V29: 50
A30: PRT | C30: X | F30: X | H30: X | K30: VSAT, SRD | M30: 59 | O30: ERC/REC 14-02 | Q30: X | R30: X | S30: 15 | T30: 40 | U30: 84 | V30: 10
A31: RUS | B31: 5925-7125 | C31: X | D31: X | F31: X | G31: X | H31: X | I31: X | M31: 3411 | N31: 1942 | O31: ERC/REC 14-01 and ERC/REC 14-02 | P31: X | Q31: X | R31: X | S31: 30 | T31: 55 | U31: 65
A32: RUS | O32: F.383 ITU-R
A33: SRB | B33: 5925-7125 | C33: X | H33: X | M33: 205 | O33: ERC/REC 14-01 and ERC/REC 14-02 | R33: X | S33: 17 | T33: 45 | U33: 79 | V33: 30
A34: SVK | B34: 5925-6425 | C34: X | F34: X | H34: X | M34: 81 | O34: ERC/REC 14-01 | R34: X | S34: 8.5 | T34: 20 | U34: 54 | V34: 25
A35: SVK | B35: 6430-7110 | C35: X | F35: X | H35: X | M35: 2 | O35: ERC/REC 14-02 | R35: X | S35: 44 | T35: 49 | U35: 54 | V35: 0-100 | Y35: expected growth
A36: SVN | B36: 5925 – 6425 | C36: X | F36: X | H36: X | M36: 6 | O36: ERC/REC 14-01 | R36: X | S36: 12 | T36: 50 | U36: 75 | V36: 30
A37: SVN | C37: X | F37: X | I37: X | M37: 2 | O37: ERC/REC 14-01 | S37: 20 | T37: 55 | U37: 65 | V37: 50
A38: SVN | D38: X | F38: X | I38: X | M38: 4 | O38: ERC/REC 14-01 | S38: 5 | T38: 25 | U38: 65 | V38: 0 | W38: x | Z38: assigned all SVN (28MHz Ch.7 and 8)
A39: SVN | B39: 6425 – 7125 | C39: X | F39: X | H39: X | M39: 14 | O39: ERC/REC 14-02 | R39: X | S39: 20 | T39: 40 | U39: 50 | V39: 50
A40: SWE | B40: 5925-7125 | C40: X | F40: X | M40: 952 | O40: ERC/REC 14-01 and ERC/REC 14-02 | W40: Y
A41: CHE | B41: 5925-7125 | C41: X | F41: X | H41: X | M41: 60 | O41: ERC/REC 14-01 and ERC/REC 14-02 | R41: 60 | S41: 30 | T41: 39.7 | U41: 81.7 | V41: growth
A42: GBR | B42: 5925-6425 | C42: X | J42: X | L42: 220 | O42: ERC/REC 14-01 | R42: X
A43: GBR | B43: 6425-7125 | C43: X | J43: X | L43: 330 | O43: ERC/REC 14-02 | Q43: X | R43: X
C45: =COUNTA(C5:C43) -> 35 | D45: 3 | E45: 0 | F45: 23 | G45: 2 | H45: 21 | I45: 8 | J45: 5 | K45: =COUNTA(K5:K43) -> 2 | L45: =SUM(L5:L43) -> 4253 | M45: =SUM(M5:M43) -> 13410 | N45: =SUM(N5:N43) -> 1942 | P45: =COUNTA(P5:P43) -> 3 | Q45: =COUNTA(Q5:Q43) -> 9 | R45: =COUNTA(R5:R43) -> 29 | S45: =MIN(S$5:S$43) -> 0.5 | T45: =MIN(T$5:T$43) -> 20 | U45: =MIN(U$5:U$43) -> 36
S46: =MEDIAN(S$5:S$43) -> 10 | T46: =MEDIAN(T$5:T$43) -> 40 | U46: =MEDIAN(U$5:U$43) -> 67.3
S47: =MAX(S$5:S$43) -> 44 | T47: =MAX(T$5:T$43) -> 60 | U47: =MAX(U$5:U$43) -> 134
B48: Allocation: all link by link. Only block allocation in NOR and SVN | S48: =PERCENTILE(S$5:S$43,[1]TOT!$S$1) -> 36 | T48: =PERCENTILE(T$5:T$43,[1]TOT!$S$1) -> 55 | U48: =PERCENTILE(U$5:U$43,[1]TOT!$S$1) -> 115.8

Sheet 7,1-8,5 GHz
A1: Country | B1: Frequency band (MHz) | C1: Licensing regime | F1: Application | L1: Number of P-P links | N1: Number of BS | O1: Channel/Frequency plan used (e.g. ERC/ECC Rec. ITU-R Rec.) | P1: Link characteristics | V1: Future trends in the next 5 years
F2: FWA | P2: Capacity | S2: Hop lenght (km)
C3: Link by link | D3: Block | E3: Unlicensed | F3: P-P | G3: P-MP | H3: Network Infrastructure | I3: Broadcasting Infrastructure | J3: No Information available on the application | K3: Other (please indicate) | L3: unidirection | M3: bidirectional (1 bidirectional link counts 1) | N3: (applicable only for P-MP and mesh networks) | P3: LOW (<10 Mbit/s) | Q3: MEDIUM (10 to 100 Mbit/s) | R3: HIGH (>100 Mbit/s) | S3: MIN | T3: Typical figure | U3: MAX | V3: Anticipated growth/reduction (+/-%) | W3: congested | X3: planned relocation to other service/application | Y3: Other (please describe) (see Question 3 of the Questionnaire)
A4: TOTAL | L4: =SUBTOTAL(9,L5:M103) -> 36036 | N4: =SUBTOTAL(9,N5:N103) -> 0
A5: TELIASON | B5: 7125-7750 | C5: X | H5: X | M5: 22 | O5: ECC REC (02)06 | Q5: 22 | S5: 15 | U5: 42 | W5: X | Z5: NEC 770
A6: TELIASON | C6: X | H6: X | M6: 128 | P6: 74 | Q6: 54 | S6: 7 | U6: 80 | W6: X | Z6: Eric sson ML
A7: TELIASON | B7: 7750-7900
A8: TELIASON | B8: 7900-8500 | C8: X | H8: X | M8: 8 | O8: ECC REC (02)06 | Q8: 8 | S8: 16 | U8: 68 | W8: X | Z8: NEC 770
A9: TELIASON | C9: X | H9: X | M9: 37 | Q9: 11 | R9: 26 | S9: 13 | U9: 68 | V9: + | Z9: NEC NEO
A10: TELIASON | C10: X | H10: X | M10: 1 | R10: 1 | T10: 34 | V10: ++ | Z10: Ericsson TN
A11: AUT | B11: 7125-7750 | C11: X | F11: X | M11: 570 | O11: ECC REC (02)06 | Q11: X | R11: X | S11: 1 | T11: 40 | U11: 78
A12: AUT | B12: 7750-7900 | I12: X | K12: mo | O12: national
A13: AUT | B13: 7900-8500 | C13: X | F13: X | H13: X | I13: X | M13: 73 | O13: ECC REC (02)06 | Q13: X | R13: X | S13: 1 | T13: 35 | U13: 60
A14: BIH | B14: 7125-7750 (7725) | C14: X | H14: X | M14: 113 | O14: ECC REC (02)06 | Q14: X | R14: X | S14: 4 | T14: 40 | U14: 90 | W14: X
A15: BIH | C15: X | H15: X | L15: 10 | M15: 62 | O15: ITU-R F.385 | Q15: X | R15: X
A16: BIH | B16: 7725-8275 | C16: X | H16: X | I16: X | L16: 34 | M16: 143 | O16: ITU-R F.386, Annex 6 | Q16: X | R16: X | S16: 4 | T16: 38 | U16: 83 | W16: X | Y16: 3400-3600, 3600-3800, 7725-8275, 10700-11700 MHz: Broadcast infrastructure P-P links are planned to migrate in 3800-4200 MHz
A17: BIH | B17: 8275-8500 | C17: X | H17: X | M17: 17 | O17: ITU-R F.386, Annex 2 | Q17: X | S17: 7 | T17: 25 | U17: 65 | W17: X
A18: HRV | B18: 7125-7750 | C18: X | H18: X | M18: 171 | O18: Bands 7125 - 7425 and 7425 - 7725 with diff. ch. arrangements | Q18: X | R18: X | S18: 3.8 | T18: 37.7 | U18: 91.4 | V18: 30 | W18: x
A19: HRV | B19: 7750-7900 | C19: X | H19: X | I19: X | M19: 146 | O19: Band 7725 - 8275 | R19: X | S19: 21.1 | T19: 50.3 | U19: 91.4 | W19: x
A20: HRV | B20: 7900-8500 | C20: X | H20: X | M20: 14 | O20: Band 8275 - 8500 | Q20: X | S20: 7.5 | T20: 20.1 | U20: 31.4
A21: CZE | B21: 7125-7750 | C21: X | F21: X | M21: 1050 | O21: ECC REC (02)06 | X21: x | Y21: civil/MD sharing
A22: CZE | B22: 7750-7900 | K22: MD
A23: CZE | B23: 7900-8500 | K23: MD | O23: ECC REC (02)06
A24: CYP | B24: 7125-7750 | C24: X | H24: X | I24: x | L24: 8 | M24: 48 | O24: ECC REC (02)06 | P24: X | Q24: X | S24: 0.49 | U24: 63.77
A25: CYP | B25: 7750-7900
A26: CYP | B26: 7900-8500 | C26: X | I26: X | L26: 14 | O26: ECC REC (02)06 | P26: X | Q26: X | S26: 8.29 | U26: 40.02
A27: DNK | B27: 7125-7750 | C27: X | M27: 225 | O27: ECC REC (02)06 | S27: 20
A28: DNK | B28: 7750-7900
A29: DNK | B29: 7900-8500 | C29: X | M29: 4 | O29: ECC REC (02)06 | S29: 20
A30: EST | B30: 7125-7750 | M30: 62 | O30: ECC REC (02)06 | Q30: 62 | S30: 17 | T30: 35 | U30: 81
A31: EST | B31: 7750-7900
A32: EST | B32: 7900-8500 | M32: 45 | O32: ECC REC (02)06 | Q32: 45 | S32: 15 | T32: 35 | U32: 40 | V32: +20
A33: FIN | B33: 7125-7750 | C33: X | H33: X | M33: 130 | O33: ITU-R F.385 | Q33: X | R33: X | S33: 13 | T33: 36 | U33: 65 | V33: 0.05
A34: FIN | C34: X | H34: X | M34: 330 | O34: National (ITU-R F.385 mod.) | Q34: X | R34: X | S34: 2 | T34: 27 | U34: 70 | V34: 0.1
A35: FIN | B35: 7750-7900 | C35: X | I35: X | L35: 45 | M35: 7 | O35: National | Q35: X
A36: FIN | B36: 7900-8500 | O36: ECC REC (02)06
A37: FRA | B37: 7125-7750 | O37: ECC REC (02)06
A38: FRA | B38: 7750-7900
A39: FRA | B39: 7900-8500 | C39: X | F39: X | H39: X | M39: 2529 | O39: ECC REC (02)06 | P39: 1322 | Q39: 947 | R39: 260 | S39: 0.04 | T39: 15<x>60 | U39: 105 | V39: - 10 %
A40: FRA | O40: UIT-RF-386-4
A41: GER | B41: 7125-7425 | C41: x | F41: x | L41: 917 | O41: ECC REC (02)06 | Q41: x | S41: 4.2 | T41: 28 | U41: 89.9
A42: GER | B42: 7425-7725 | C42: x | F42: x | L42: 3157 | O42: ECC REC (02)06 | R42: x | S42: 5.5 | T42: 26 | U42: 71.1 | W42: x
A43: GRC | B43: 7425-7725 (upper 7 GHz) new row by EETT | C43: X | H43: X | M43: 1222 | O43: ECC REC (02)06 Annex1 | P43: X | Q43: X | R43: X | S43: 1 | T43: 31 | U43: 98 | V43: 0.1
A44: GRC | B44: 7725-8275 (lower 8 GHz) new row by EETT | C44: X | H44: X | M44: 1157 | O44: ITU-R F. 386-6 Annex 1 | Q44: X | R44: X | S44: 2 | T44: 40 | U44: 150 | V44: 0.1
A45: GRC | B45: 8275-8500 (upper 8 GHz) new row by EETT | C45: X | H45: X | M45: 170 | O45: ITU-R F. 386-6 Annex 3 | P45: X | Q45: X | S45: 1.8 | T45: 47 | U45: 120 | V45: stable
A46: HUN | B46: 7125-7750 | C46: X | F46: X | I46: X | K46: 7125-7250 MHz Non-Civil P-P links; 7125-7425 MHz Emergency Services 7425-7725 MHz Civil P-P links 7725-7750 MHz Civil broadcasting infrastructure | M46: 171 | O46: ECC REC (02)06 | P46: X | Q46: X | R46: X | T46: 20
A47: HUN | K47: 7250-7750 MHz Satellite Systems downlink (military); Harmonized NATO band type 1.
A48: HUN | B48: 7750-7900 | C48: X | I48: X | T48: 40 | V48: 0.15
A49: HUN | B49: 7900-8500 | C49: X | K49: 7900-8400 MHz Satellite Systems uplink (military); Harmonized NATO band type 1. | O49: ECC REC (02)06
A50: HUN | C50: X | F50: X | M50: 3 | P50: X | Q50: X | T50: 20
A51: ICE | B51: 7125-7750 | C51: X | F51: X | I51: X | L51: 23 | M51: 65 | O51: ECC REC (02)06 | P51: 32 | Q51: 28 | R51: 28 | S51: 10 | T51: 30 | U51: 60 | V51: 0
A52: ICE | B52: 7750-7900
A53: ICE | B53: 7900-8500 | O53: ECC REC (02)06
A54: IRL | B54: 7125-7750 | C54: X | H54: X | L54: 1 | M54: 279 | O54: ECC REC (02)06 | P54: X | Q54: X | R54: X | S54: 7 | T54: 36 | U54: 76 | V54: 57
A55: IRL | B55: 7750-7900
A56: IRL | B56: 7900-8500 | C56: X | H56: X | M56: 315 | O56: ECC REC (02)06 | P56: X | Q56: X | R56: X | S56: 5 | T56: 36 | U56: 81 | V56: 48
A57: ITA | C57: X | F57: X | H57: X | M57: 2231 | O57: national | Q57: X | R57: X | T57: 30 | V57: 0.1 | W57: almost
A58: ITA | B58: 7750-7900
A59: ITA | B59: 7900-8500 | C59: X | H59: X | M59: 5 | O59: national | R59: X
A60: LVA | B60: 7125-7800 | C60: X | F60: X | M60: 104 | O60: ITU-R F.385 | R60: X | S60: 14 | T60: 35 | U60: 54 | V60: 50 | Y60: Military band 7250-7331 MHz
A61: LVA | B61: 7800-7900 | Y61: Military band 7850-7900 MHz
A62: LVA | B62: 7900-8500 | C62: X | F62: X | M62: 152 | O62: ECC REC (02)06 | R62: X | S62: 12 | T62: 35 | U62: 50 | V62: 50 | Y62: Military band 7975-8024 MHz
A63: LTU | B63: 7125-7750 | C63: X | F63: X | M63: 197 | O63: ECC REC (02)06
A64: LTU | B64: 7750-7900 | C64: X | F64: X | M64: 0 | O64: local
A65: LTU | B65: 7900-8500 | C65: X | F65: X | M65: 116 | O65: ECC REC (02)06
A66: LUX | B66: 7125-7750 | C66: X | F66: X | H66: X | I66: X | L66: 0 | M66: 26 | O66: ECC REC (02)06 | Q66: X | R66: X | S66: 7.9 | T66: 20-80 | U66: 55.9 | V66: N/A | W66: NO | X66: NO
A67: LUX | B67: 7750-7900 | C67: X | F67: X | H67: X | I67: X | L67: 0 | M67: 0 | O67: Nat. freq. plan | Q67: X | R67: X | V67: N/A | W67: NO | X67: NO
A68: LUX | B68: 7900-8500 | C68: X | F68: X | H68: X | I68: X | L68: 4 | M68: 6 | O68: ECC REC (02)06 | Q68: X | R68: X | S68: 5.1 | T68: 20-80 | U68: 62 | V68: N/A | W68: NO | X68: NO
A69: NLD | B69: 7125-7750 | C69: X | J69: X | M69: 113 | O69: ECC REC (02)06 | P69: X | Q69: X | R69: X | S69: 10.4 | T69: 27.7 | U69: 55.6 | V69: 20
A70: NLD | B70: 7750-7900
A71: NLD | B71: 7900-8500 | O71: ECC REC (02)06
A72: NOR | B72: 7125-7425 | C72: X | J72: X | M72: 135 | R72: X | S72: 4.2 | T72: 35.5 | U72: 96
A73: NOR | B73: 7425-7725 | C73: X | J73: X | M73: 446 | R73: X | S73: 1.2 | T73: 32.3 | U73: 113
A74: NOR | B74: 7900-8200 | D74: X | J74: X | O74: ECC REC (02)06
A75: PRT | B75: 7125-7750 | C75: X | F75: X | H75: X | K75: FSS, Military (7.25-7.3 GHz) | M75: 7 | O75: 7 LOW: ITU-R F.385 | P75: X | S75: 15 | T75: 30 | U75: 53 | V75: 0
A76: PRT | C76: X | F76: X | H76: X | K76: FSS, Military (7.25-7.3 GHz) | M76: 287 | O76: 7 LOW: ECC REC (02)06 | P76: X | Q76: X | R76: X | S76: 6 | T76: 30 | U76: 63 | V76: 10
A77: PRT | C77: X | F77: X | H77: X | K77: FSS | M77: 40 | O77: 7 HIGH: ITU-R F.385 | P77: X | Q77: X | S77: 3 | T77: 22 | U77: 71 | V77: -50
A78: PRT | C78: X | F78: X | H78: X | K78: FSS | M78: 30 | O78: 7 HIGH: ECC REC (02)06 | P78: X | Q78: X | R78: X | S78: 15 | T78: 30 | U78: 78 | V78: 50
A79: PRT | B79: 7750-7900 | C79: X | F79: X | H79: X | M79: 26 | O79: 8 LOW: ITU-R F.386 | Q79: X | R79: X | S79: 2 | T79: 30 | U79: 75 | V79: 50
A80: PRT | B80: 7900-8500 | C80: X | F80: X | I80: X | K80: FSS, EESS, Military (7.975-8.025 GHz) | L80: 7 | M80: 9 | O80: 8 HIGH: ITU-R F.386 | P80: X | S80: 6 | T80: 40 | U80: 88 | V80: -100
A81: RUS | B81: 7125-7750 | C81: X | D81: X | H81: X | I81: X | L81: less than 1% | M81: 10495 | O81: F.385 ITU-R | P81: X | Q81: X | R81: X | S81: 30 | T81: 55 | U81: 65
A82: RUS | B82: 7750-7900 | C82: No | D82: No
A83: RUS | B83: 7900-8500 | C83: X | D83: X | H83: X | I83: X | L83: less than 1% | M83: 4584 | O83: F.386 ITU-R | P83: X | Q83: X | R83: X | S83: 30 | T83: 55 | U83: 65
A84: SRB | B84: 7125-7725 | C84: X | H84: X | M84: 138 | O84: ITU-R F.385-9 base | P84: X | Q84: X | R84: X | S84: 11.67 | T84: 37.98 | U84: 104.2 | V84: 150
A85: SRB | B85: 7725-8275 | C85: X | H85: X | M85: 8 | O85: ITU-R F.386-8 annex 6 | Q85: X | R85: X | S85: 9.44 | T85: 35.68 | U85: 70.27 | V85: 300
A86: SRB | B86: 8275-8500 | C86: X | H86: X | M86: 10 | O86: ITU-R F.386-8 annex 2 | Q86: X | R86: X | S86: 21 | T86: 53.77 | U86: 98.71 | V86: 300
A87: SVK | B87: 7125-7425 | C87: X | F87: X | H87: X | M87: 30 | O87: ECC REC (02)06 | R87: X | S87: 17 | T87: 25 | U87: 44.5 | V87: 50
A88: SVK | C88: X | F88: X | H88: X | M88: 14 | O88: ITU-R F.385, DS 161MHz | P88: X | Q88: X | S88: 7 | T88: 25 | U88: 58 | V88: -100 | X88: x | Y88: no new links
A89: SVK | B89: 7425-7725 | C89: X | F89: X | H89: X | M89: 70 | O89: ITU-R F.385-9, DS 161MHz | P89: X | Q89: X | S89: 5 | T89: 25 | U89: 55 | V89: 10
A90: SVK | B90: 7700-8300 | C90: X | F90: X | H90: X | M90: 35 | O90: ITU-R F.386-4, Annex 1 | R90: X | S90: 8 | T90: 30 | U90: 58 | V90: -100 | X90: x | Y90: no new links
A91: SVN | B91: 7125-7425 | C91: X | F91: X | H91: X | M91: 23 | O91: ECC REC (02)06 | R91: X | S91: 10 | T91: 25 | U91: 45 | V91: 10 | W91: x
A92: SVN | C92: X | F92: X | I92: X | M92: 43 | O92: ECC REC (02)06 | R92: X | S92: 5 | T92: 25 | U92: 65 | V92: 5 | W92: x
A93: SVN | B93: 7425 – 7725 | C93: X | F93: X | H93: X | M93: 26 | O93: ECC REC (02)06 | R93: X | S93: 10 | T93: 25 | U93: 45 | V93: 20
A94: SVN | C94: X | F94: X | I94: X | M94: 5 | O94: ECC REC (02)06 | R94: X | S94: 3 | T94: 25 | U94: 60 | V94: 30
A95: SVN | B95: 7725 – 8275 | C95: X | F95: X | I95: X | L95: 6 | M95: 42 | O95: ITU-R F 386-8 An6 (29.65 MHz, DS 311.32 MHz) | R95: X | S95: 15 | T95: 35 | U95: 60 | V95: 5 | W95: x* | Y95: congested in backbone directions
A96: SVN | B96: 8275-8500 | C96: X | F96: X | H96: X | M96: 14 | O96: ITU-R F.386-8 An2 (28 MHz , DS 119 MHz, 14 MHz, DS 126 MHz) | Q96: X | S96: 20 | T96: 35 | U96: 70 | V96: 30 | W96: x* | Y96: congested in backbone directions
A97: SWE | B97: 7425-7725 | C97: X | F97: X | M97: 1421 | Q97: X | W97: Y
A98: SWE | B98: 7900-8500 | C98: X | F98: X | M98: 494 | O98: ECC REC (02)06 | Q98: X | V98: Y | W98: N
A99: CHE | B99: 7125-7750 | C99: X | F99: X | H99: X | M99: 171 | O99: ECC REC (02)06 | P99: 70 | Q99: 81 | R99: 20 | S99: 20 | T99: 30.2 | U99: 99.5 | V99: growth
A100: CHE | B100: 7750-7900 | K100: ENG-Outside Broadcast
A101: CHE | B101: 7900-8500 | K101: ENG-Outside Broadcast | O101: ECC REC (02)06
A102: GBR | B102: 7425-7900 | C102: X | J102: X | L102: 940 | O102: ITU-R F.385-9 | P102: X | Q102: X | R102: X
C104: =COUNTA(C5:C102) -> 74 | D104: 4 | E104: 1 | F104: 37 | G104: 0 | H104: 45 | I104: 19 | J104: 5 | K104: =COUNTA(K5:K102) -> 13 | L104: =SUM(L5:L102) -> 5166 | M104: =SUM(M5:M102) -> 30870 | N104: =SUM(N5:N102) -> 0 | P104: =COUNTA(P5:P102) -> 24 | Q104: =COUNTA(Q5:Q102) -> 50 | R104: =COUNTA(R5:R102) -> 48 | S104: =MIN(S$5:S$102) -> 0.04 | T104: =MIN(T5:T102) -> 20 | U104: =MIN(U5:U102) -> 31.4
S105: =MEDIAN(S$5:S$102) -> 7.7 | T105: =MEDIAN(T$5:T$102) -> 35 | U105: =MEDIAN(U$5:U$102) -> 68
S106: =MAX(S$5:S$102) -> 30 | T106: =MAX(T$5:T$102) -> 55 | U106: =MAX(U$5:U$102) -> 150
S107: =PERCENTILE(S$5:S$102,[1]TOT!$S$1) -> 21.015 | T107: =PERCENTILE(T$5:T$102,[1]TOT!$S$1) -> 52.9025 | U107: =PERCENTILE(U$5:U$102,[1]TOT!$S$1) -> 107

Sheet 10-10,68 GHz
A1: Country | B1: Frequency band (MHz) | C1: Licensing regime | F1: Application | L1: Number of P-P links | N1: Number of BS | O1: Channel/Frequency plan used (e.g. ERC/ECC Rec. ITU-R Rec.) | P1: Link characteristics | V1: Future trends in the next 5 years
F2: FWA | P2: Capacity | S2: Hop lenght (km)
C3: Link by link | D3: Block | E3: Unlicensed | F3: P-P | G3: P-MP | H3: Network Infrastructure | I3: Broadcasting Infrastructure | J3: No Information available on the application | K3: Other (please indicate) | L3: unidirection | M3: bidirectional (1 bidirectional link counts 1) | N3: (applicable only for P-MP and mesh networks) | P3: LOW (<10 Mbit/s) | Q3: MEDIUM (10 to 100 Mbit/s) | R3: HIGH (>100 Mbit/s) | S3: MIN | T3: Typical figure | U3: MAX | V3: Anticipated growth/reduction (+/-%) | W3: congested | X3: planned relocation to other service/application | Y3: Other (please describe) (see Question 3 of the Questionnaire)
A4: TOTAL | L4: =SUBTOTAL(9,L5:M101) -> 7606 | N4: =SUBTOTAL(9,N5:N101) -> 3520
A5: TELIASON | B5: 10000-10680 | O5: ERC/REC 12-05
A6: AUT | B6: 10000-10680 | C6: X | F6: X | H6: X | M6: 158 | O6: ERC/REC 12-05 | Q6: x | S6: 1 | T6: 30 | U6: 80
A7: BIH | B7: 10000-10680 | C7: X | I7: X | L7: 103 | O7: ERC/REC 12-05 | P7: X | Q7: X | S7: 1 | T7: 27 | U7: 80 | V7: +15 | Y7: 10000-10680 MHz: Shared band between P-P links and FWA. We still do not have active implemented FWA systems.
A8: BIH | D8: X | F8: X | G8: X | O8: ERC/REC 12-05 Annex A
A9: HRV | B9: 10000-10680 | C9: X | I9: X | L9: 2 | O9: ERC/REC 12-05 | Q9: x
A10: HRV | D10: X | G10: X
A11: CZE | B11: 10000-10300 | K11: MD | O11: ERC/REC 12-05
A12: CZE | B12: 10300-10680 | C12: X | E12: X | F12: X | M12: 21
A13: CYP | B13: 10000-10680 | C13: X | I13: X | L13: 56 | O13: ERC/REC 12-05 | P13: X | Q13: X | S13: 0.53 | U13: 70
A14: DNK | B14: 10000-10680 | C14: X | N14: 47 | O14: ERC/REC 12-05
A15: DNK | D15: X | M15: No info
A16: DNK | C16: X | M16: 1
A17: EST | B17: 10000-10680 | O17: ERC/REC 12-05
A18: FIN | B18: 10000-10680 | C18: X | G18: X | N18: 11 | O18: ERC/REC 12-05 | Q18: X
A19: FRA | B19: 10000-10680 | O19: ERC/REC 12-05
A20: GRC | B20: 10000-10680 | C20: X | I20: X | L20: 107 | O20: national plan | S20: 1.2 | T20: 19 | U20: 75
A21: HUN | B21: 10000-10680 | C21: X | I21: X | L21: 93 | O21: ERC/REC 12-05 | T21: 40
A22: ICE | B22: 10000-10680 | O22: ERC/REC 12-05
A23: IRL | B23: 10000-10680 | O23: ERC/REC 12-05
A24: IRL | C24: X | F24: X | N24: 30 | O24: National Legislation: S.I. 79 of 2003 National Legislation: S.I. 530 of 2003 European Legislation: Decision 2008/411/EC | V24: 75
A25: ITA | B25: 10000-10680 | C25: X | H25: X | I25: X | L25: =935+529+446 -> 1910 | M25: 34 | O25: ERC/REC 12-05 | Q25: X | S25: 3 | T25: 25 | U25: 84 | V25: 1 | W25: yes
A26: ITA | C26: X | H26: X | I26: X | L26: =236+24 -> 260 | M26: 80 | O26: ERC/REC 12-05 | R26: x | S26: 5.5 | T26: 35 | U26: 50 | V26: 1 | W26: yes
A27: LVA | B27: 10000-10680 | C27: X | F27: X | M27: 105 | O27: ERC/REC 12-05 | P27: X | V27: -80 | Y27: 10300-10500 MHz
A28: LVA | D28: X | G28: X | N28: 66 | O28: ERC/REC 12-05 and ERC/REC 13-04 | Q28: X | T28: 10 | V28: 50
A29: LTU | B29: 10150-10300 and 10500-10650 | C29: X | F29: X | H29: X | L29: 0 | M29: 0 | O29: ERC/REC 12-05
A30: LTU | D30: X | G30: X | N30: 6 | O30: ERC/REC 12-05 | V30: 100
A31: LTU | B31: 10300-10500 | C31: X | F31: X | H31: X | M31: 420 | O31: ERC/REC 12-05 | P31: 420
A32: LUX | B32: 10000-10680 | C32: X | F32: X | H32: X | I32: X | L32: 2 | M32: 0 | O32: ERC/REC 12-05 | Q32: X | R32: X | S32: 32 | T32: 10-50 | U32: 62 | V32: N/A | W32: NO | X32: NO
A33: LUX | O33: Nat. freq. plan
A34: NLD | B34: 10000-10680 | O34: ERC/REC 12-05
A35: NOR | B35: 10200-10700 | D35: X | J35: X | O35: ERC/REC 12-05
A36: PRT | B36: 10000-10680 | K36: AM, SAP/SAB, SRD | O36: ERC/REC 12-05
A37: RUS | B37: 10000-10680 | C37: X | D37: X | G37: X | H37: X | I37: X | L37: less than 1% | M37: 247 | N37: 1490 | O37: ERC/REC 12-05 | P37: X | Q37: X | R37: X | S37: 15 | T37: 30 | U37: 40
A38: SRB | B38: 10000-10680 | C38: X | I38: X | L38: 76 | M38: 3 | O38: national plan | P38: X | S38: 0.7 | T38: 24.72 | U38: 114.99 | V38: 20
A39: SVK | B39: 10000-10680 | D39: X | G39: X | N39: 110 | O39: ERC/REC 12-05 | P39: x | Q39: x | V39: 10
A40: SVN | B40: 10000-10680 | C40: X | F40: X | I40: X | L40: 53 | O40: ERC/REC 12-05 | Q40: x | R40: x | S40: 2 | T40: 25 | U40: 65 | V40: -100 | X40: x | Y40: BWA when SAP/SAB P to P video links analogue cease operation
A41: SVN | C41: X | F41: X | I41: X | M41: 8 | O41: ERC/REC 12-05 | Q41: x | R41: x | S41: 2 | T41: 25 | U41: 62 | V41: -100 | X41: x | Y41: BWA when SAP/SAB P to P video links analogue cease operation
A42: SWE | B42: 10000-10680 | O42: ERC/REC 12-05 New ITU-R Rec under dev. | V42: Y | W42: N | Y42: Blockassignment?
A43: CHE | B43: 10000-10680 | C43: X | F43: X | H43: X | M43: 64 | O43: ERC/REC 12-05 | P43: 18 | Q43: 46 | S43: 15 | T43: 18.3 | U43: 48.5 | V43: growth
A44: GBR | B44: 10000-10680 | O44: ERC/REC 12-05
C46: =COUNTA(C5:C44) -> 22 | D46: 8 | E46: 1 | F46: 11 | G46: 7 | H46: 8 | I46: 12 | J46: 1 | K46: =COUNTA(K5:K44) -> 2 | L46: =SUM(L5:L44) -> 2662 | M46: =SUM(M5:M44) -> 1141 | N46: =SUM(N5:N44) -> 1760 | P46: =COUNTA(P5:P44) -> 8 | Q46: =COUNTA(Q5:Q44) -> 13 | R46: =COUNTA(R5:R44) -> 6 | S46: =MIN(S$5:S$44) -> 0.53 | T46: =MIN(T$5:T$44) -> 10 | U46: =MIN(U$5:U$44) -> 40
S47: =MEDIAN(S$5:S$44) -> 2 | T47: =MEDIAN(T$5:T$44) -> 25 | U47: =MEDIAN(U$5:U$44) -> 67.5
S48: =MAX(S$5:S$44) -> 32 | T48: =MAX(T$5:T$44) -> 40 | U48: =MAX(U$5:U$44) -> 114.99
S49: =PERCENTILE(S$5:S$44,[1]TOT!$S$1) -> 22.65 | T49: =PERCENTILE(T$5:T$44,[1]TOT!$S$1) -> 37.25 | U49: =PERCENTILE(U$5:U$44,[1]TOT!$S$1) -> 97.9455

Sheet 10,7-12,5 GHz
A1: Country | B1: Frequency band (MHz) | C1: Licensing regime | F1: Application | L1: Number of P-P links | N1: Number of BS | O1: Channel/Frequency plan used (e.g. ERC/ECC Rec. ITU-R Rec.) | P1: Link characteristics | V1: Future trends in the next 5 years
F2: FWA | P2: Capacity | S2: Hop lenght (km)
C3: Link by link | D3: Block | E3: Unlicensed | F3: P-P | G3: P-MP | H3: Network Infrastructure | I3: Broadcasting Infrastructure | J3: No Information available on the application | K3: Other (please indicate) | L3: unidirection | M3: bidirectional (1 bidirectional link counts 1) | N3: (applicable only for P-MP and mesh networks) | P3: LOW (<10 Mbit/s) | Q3: MEDIUM (10 to 100 Mbit/s) | R3: HIGH (>100 Mbit/s) | S3: MIN | T3: Typical figure | U3: MAX | V3: Anticipated growth/reduction (+/-%) | W3: congested | X3: planned relocation to other service/application | Y3: Other (please describe) (see Question 3 of the Questionnaire)
A4: TOTAL | L4: =SUBTOTAL(9,L5:M69) -> 14724 | N4: =SUBTOTAL(9,N5:N103) -> 4082
A5: TELIASON | B5: 10700-11700 | O5: ERC/REC 12-06
A6: TELIASON | B6: 11700-12500
A7: AUT | B7: 10700-11700 | C7: X | F7: X | H7: X | M7: 21 | O7: ERC/REC 12-06
A8: AUT | B8: 11700-12500
A9: BIH | B9: 10700-11700 | C9: X | H9: X | I9: X | L9: 37 | M9: 38 | O9: ERC/REC 12-06 | P9: X | Q9: X | S9: 1 | T9: 25 | U9: 64 | V9: +15 | Y9: 3400-3600, 3600-3800, 7725-8275, 10700-11700 MHz: Broadcast infrastructure P-P links are planned to migrate in 3800-4200 MHz
A10: BIH | B10: 11700-12500 | O10: ERC/DEC(00)08
A11: BIH | B11: 11700-12500 | D11: X | I11: X | N11: 16 | V11: +10
A12: HRV | B12: 10700-11700 | C12: X | H12: X | M12: 8 | O12: ERC/REC 12-06 | R12: x | S12: 7.5 | T12: 20.2 | U12: 29.8
A13: HRV | B13: 11700-12500
A14: CZE | B14: 10700-11700 | C14: X | G14: X | N14: 1845 | O14: ERC/REC 12-06 | V14: 20
A15: CZE | B15: 11700-12500 | C15: X | F15: X | L15: 31 | V15: 10
A16: CYP | B16: 10700-11700 | C16: X | H16: X | I16: X | L16: 3 | M16: 30 | O16: ERC/REC 12-06 | Q16: X | S16: 2.01 | U16: 34.13
A17: CYP | B17: 11700-12500 | C17: X | I17: X | L17: 10 | Q17: X | S17: 2.75 | U17: 30.18
A18: DNK | B18: 10700-11700 | C18: X | N18: 1 | O18: ERC/REC 12-06
A19: DNK | B19: 11700-12500
A20: EST | B20: 10700-11700 | O20: ERC/REC 12-06
A21: EST | B21: 11700-12500
A22: FIN | B22: 10700-11700 | O22: ERC/REC 12-06
A23: FIN | B23: 11700-12500
A24: FRA | B24: 10700-11700 | C24: X | F24: X | H24: X | M24: 524 | O24: ERC/REC 12-06 | R24: 524 | S24: 1.5 | T24: 15<x>50 | U24: 46 | V24: + 26 %
A25: FRA | B25: 11700-12500
A26: GRC | B26: 10700-11700 | C26: X | H26: X | M26: 785 | O26: ERC/REC 12-06 | R26: X | S26: 1.7 | T26: 19 | U26: 63 | V26: 0.3
A27: GRC | B27: 11700-12500 | Y27: No use
A28: HUN | B28: 10700-11700 | O28: ERC/REC 12-06
A29: HUN | B29: 10700-11700 | C29: X | F29: X | M29: 186 | O29: ERC/DEC/(00)08 | R29: X | T29: 14
A30: HUN | B30: 11700-12500 | E30: X | I30: X | N30: 144 | W30: x
A31: ICE | B31: 10700-11700 | O31: ERC/REC 12-06
A32: ICE | B32: 11700-12500
A33: IRL | B33: 10700-11700 | C33: X | H33: X | M33: 648 | O33: ERC/REC 12-06 | Q33: X | R33: X | S33: 1.5 | T33: 24 | U33: 56 | V33: 39
A34: IRL | B34: 10700-11700 | O34: National Legislation: S.I. 370 of 2009
A35: IRL | B35: 11700-12500
A36: ITA | B36: 10700-11700 | C36: X | F36: X | H36: X | M36: 3110 | O36: ERC/REC 12-06 | Q36: X | R36: X | T36: 18 | V36: 0.15 | W36: yes
A37: ITA | B37: 10700-11700 | C37: X | H37: X | I37: X | L37: 58 | M37: 99 | O37: ERC/REC 12-06 | Q37: X | R37: X | S37: 3 | T37: 22 | U37: 60 | V37: 0.15 | W37: yes
A38: ITA | B38: 11700-12500 | C38: X | H38: X | L38: 22 | M38: 1 | Q38: x | S38: 1.97 | T38: 27.6 | U38: 62.94
A39: LVA | B39: 10700-11700 | C39: X | I39: X | L39: 38 | O39: ITU-R F.387 | S39: 0.3 | T39: 10 | U39: 32 | V39: -50 | Y39: Analog fixed links
A40: LVA | B40: 11700-12500 | Y40: BROADCASTING-SATELLITE
A41: LTU | B41: 10700-11700 | C41: X | F41: X | L41: 0 | M41: 0 | O41: ERC/REC 12-06
A42: LTU | B42: 11700-12500
A43: LUX | B43: 10700-11700 | O43: ///
A44: LUX | B44: 11700-12500 | O44: ///
A45: NLD | B45: 10700-11700 | O45: ERC/REC 12-06
A46: NLD | B46: 11700-12500
A47: NOR | B47: 10700-11700 | D47: X | J47: X | O47: ITU rec F.387-10
A48: NOR | B48: 10700-11700 | C48: X | J48: X | M48: 234 | R48: x | S48: 0.5 | T48: 23 | U48: 66.5
A49: PRT | B49: 10700-11700 | C49: X | F49: X | H49: X | I49: X | K49: FSS, VSAT, SNG, SIT, AES, Euteltracs | M49: 117 | O49: ERC/REC 12-06 | Q49: X | R49: X | S49: 2 | T49: 20 | U49: 41 | V49: 5
A50: PRT | B50: 11700-12500 | K50: RAD-S, SIT
A51: RUS | B51: 10700-11700 | C51: X | D51: X | H51: X | I51: X | L51: less than 1% | M51: 1207 | O51: ERC/REC 12-06 | P51: X | Q51: X | R51: X | S51: 15 | T51: 30 | U51: 40
A52: RUS | B52: 10700-11700 | O52: F.387 ITU-R
A53: RUS | B53: 11700-12500 | C53: No | D53: No
A54: SRB | B54: 10700-11700 | C54: X | H54: X | M54: 48 | O54: ERC/REC 12-06 | R54: X | S54: 7.13 | T54: 15.72 | U54: 37.7 | V54: 300
A55: SRB | B55: 11700-12500 | D55: X | I55: X | N55: 15 | R55: X
A56: SVK | B56: 10700-11700 | C56: X | F56: X | H56: X | M56: 0 | O56: ERC/REC 12-06 | R56: x | V56: 100 | Y56: operation expected
A57: SVK | B57: 11700-12500 | Y57: N.A.
A58: SVN | B58: 10700-11700 | C58: X | F58: X | H58: X | M58: 13 | O58: ERC/REC 12-06, ITU-R F.387 | R58: x | S58: 7 | T58: 40 | U58: 46 | V58: 50 | Z58: In accordance with CEPT and ITU limitations
A59: SVN | B59: 10700-11700 | C59: X | F59: X | I59: X | L59: 3 | O59: ERC/REC 12-06, ITU-R F.387 | R59: x | S59: 35 | T59: 40 | U59: 46 | V59: 5 | Z59: In accordance with CEPT and ITU limitations
A60: SVN | B60: 10700-11700 | C60: X | F60: X | I60: X | M60: 3 | O60: ERC/REC 12-06, ITU-R F.387 | R60: x | S60: 33 | T60: 40 | U60: 47 | V60: 5 | Z60: In accordance with CEPT and ITU limitations
A61: SVN | B61: 11700-12500 | D61: X | G61: X | K61: MMDS | N61: 20 | O61: National (200/400 MHz) | R61: x | S61: 5 | T61: 30 | U61: 40 | V61: 10 | Z61: assigned for local/regional coverage
A62: SWE | B62: 10700-11700 | L62: 7 | M62: 1 | O62: ERC/REC 12-06
A63: SWE | B63: 11700-12500
A64: CHE | B64: 10700-11700 | C64: X | F64: X | H64: X | M64: 80 | O64: ERC/REC 12-06 | R64: 80 | S64: 10 | T64: 14.9 | U64: 34.9 | V64: growth | Y64: heavily used by FSS
A65: CHE | B65: 11700-12500
A66: GBR | B66: 11700-12500
C68: =COUNTA(C5:C66) -> 27 | D68: 6 | E68: 1 | F68: 12 | G68: 2 | H68: 16 | I68: 12 | J68: 2 | K68: =COUNTA(K5:K66) -> 3 | L68: =SUM(L5:L66) -> 209 | M68: =SUM(M5:M66) -> 7153 | N68: =SUM(N5:N66) -> 2041 | P68: =COUNTA(P5:P66) -> 2 | Q68: =COUNTA(Q5:Q66) -> 9 | R68: =COUNTA(R5:R66) -> 20 | S68: =MIN(S$5:S$66) -> 0.3 | T68: =MIN(T$5:T$66) -> 10 | U68: =MIN(U$5:U$66) -> 29.8
S69: =MEDIAN(S$5:S$66) -> 2.75 | T69: =MEDIAN(T$5:T$66) -> 23 | U69: =MEDIAN(U$5:U$66) -> 46
S70: =MAX(S$5:S$66) -> 35 | T70: =MAX(T$5:T$66) -> 40 | U70: =MAX(U$5:U$66) -> 66.5
S71: =PERCENTILE(S$5:S$66,[1]TOT!$S$1) -> 33.2 | T71: =PERCENTILE(T$5:T$66,[1]TOT!$S$1) -> 40 | U71: =PERCENTILE(U$5:U$66,[1]TOT!$S$1) -> 64.25

Sheet 12,75-13,25 GHz
A1: Country | B1: Frequency band (MHz) | C1: Licensing regime | F1: Application | L1: Number of P-P links | N1: Number of BS | O1: Channel/Frequency plan used (e.g. ERC/ECC Rec. ITU-R Rec.) | P1: Link characteristics | V1: Future trends in the next 5 years
F2: FWA | P2: Capacity | S2: Hop lenght (km)
C3: Link by link | D3: Block | E3: Unlicensed | F3: P-P | G3: P-MP | H3: Network Infrastructure | I3: Broadcasting Infrastructure | J3: No Information available on the application | K3: Other (please indicate) | L3: unidirection | M3: bidirectional (1 bidirectional link counts 1) | N3: (applicable only for P-MP and mesh networks) | P3: LOW (<10 Mbit/s) | Q3: MEDIUM (10 to 100 Mbit/s) | R3: HIGH (>100 Mbit/s) | S3: MIN | T3: Typical figure | U3: MAX | V3: Anticipated growth/reduction (+/-%) | W3: congested | X3: planned relocation to other service/application | Y3: Other (please describe) (see Question 3 of the Questionnaire)
A4: TOTALE | L4: =SUBTOTAL(9,L5:M101) -> 102626 | N4: =SUBTOTAL(9,N5:N101) -> 14
A5: TELIASON | B5: 12750-13250 | C5: X | H5: X | M5: 302 | O5: ERC/REC 12-02 | P5: 210 | R5: 92 | S5: 3 | U5: 50 | V5: + | Z5: NEC NEO
A6: TELIASON | C6: X | H6: X | M6: 22 | R6: 22 | S6: 9 | U6: 42 | V6: - | Z6: NERA Citylink
A7: TELIASON | C7: X | H7: X | M7: 80 | P7: 32 | Q7: 48 | S7: 5 | U7: 29 | V7: 0 | Z7: Eric sson ML
A8: AUT | B8: 12750-13250 | C8: X | F8: X | H8: X | M8: 137 | O8: ERC/REC 12-02 | R8: x | S8: 3 | T8: 25 | U8: 52
A9: BIH | B9: 12750-13250 | C9: X | H9: X | M9: 31 | O9: ERC/REC 12-02 | P9: X | Q9: X | R9: X | S9: 2 | T9: 20 | U9: 34 | V9: +15
A10: HRV | B10: 12750-13250 | C10: X | H10: X | M10: 244 | O10: ERC/REC 12-02 | Q10: x | S10: 1.5 | T10: 19.2 | U10: 49.2 | V10: 20 | W10: x
A11: HRV | C11: X | I11: X | L11: 1
A12: CZE | B12: 12750-13250 | C12: X | F12: X | M12: 1288 | O12: ERC/REC 12-02 | V12: 10
A13: CYP | B13: 12750-13250 | C13: X | H13: X | M13: 278 | O13: ERC/REC 12-02 | P13: X | Q13: X | S13: 0.29 | U13: 40.94 | W13: X
A14: DNK | B14: 12750-13250 | C14: X | M14: 4 | O14: ERC/REC 12-02 | S14: 12
A15: EST | B15: 12750-13250 | M15: 80 | O15: ERC/REC 12-02 | Q15: 80 | S15: 11 | T15: 22 | U15: 34
A16: FIN | B16: 12750-13250 | C16: X | H16: X | M16: 2120 | O16: ERC/REC 12-02 | Q16: X | R16: X | S16: 0.4 | T16: 14 | U16: 49 | V16: 0.2 | W16: x | Y16: Local congestion
A17: FRA | B17: 12750-13250 | C17: X | F17: X | H17: X | M17: 6613 | O17: ERC/REC 12-02 | P17: 2401 | Q17: 3711 | R17: 501 | S17: 0.1 | T17: 5<x>35 | U17: 103 | V17: + 2 % | W17: X
A18: GER | B18: 12750-13250 | C18: x | F18: x | L18: 4100 | O18: ERC/REC 12-02 | R18: x | S18: 0.99 | T18: 12 | U18: 48.5
A19: GRC | B19: 12750-13250 | C19: X | H19: X | M19: 1004 | O19: ERC/REC 12-02 | P19: X | Q19: X | R19: X | S19: 1.5 | T19: 16 | U19: 55 | V19: 0.5
A20: HUN | B20: 12750-13250 | C20: X | F20: X | M20: 1710 | O20: ERC/REC 12-02 | Q20: X | T20: 12 | W20: x
A21: ICE | B21: 12750-13250 | C21: X | F21: X | M21: 12 | O21: ERC/REC 12-02 | Q21: 6 | R21: 6 | S21: 10 | T21: 20 | U21: 30 | V21: 0
A22: IRL | B22: 12750-13250 | C22: X | H22: X | L22: 2 | M22: 1078 | O22: ERC/REC 12-02 | P22: X | Q22: X | R22: X | S22: 1.5 | T22: 19 | U22: 53 | V22: 27 | W22: X
A23: IRL | O23: National Legislation: S.I. 370 of 2009
A24: ITA | B24: 12750-13250 | C24: X | F24: X | H24: X | M24: 6106 | O24: ERC/REC 12-02 | Q24: X | R24: X | S24: 7 | T24: 16 | U24: 30 | V24: 0.15 | W24: yes
A25: LVA | B25: 12750-13250 | C25: X | F25: X | M25: 630 | O25: ERC/REC 12-02 | Q25: X | S25: 2 | T25: 35 | U25: 47 | V25: 20
A26: LVA | D26: X | I26: X | N26: 7 | O26: national plan | P26: X | T26: 5 | Y26: MMDS
A27: LTU | B27: 12750-13250 | C27: X | F27: X | M27: 222 | O27: ERC/REC 12-02
A28: LUX | B28: 12750-13250 | C28: X | F28: X | H28: X | I28: X | L28: 8 | M28: 22 | O28: ERC/REC 12-02 | Q28: X | R28: X | S28: 5.6 | T28: 5-35 | U28: 32 | V28: N/A | W28: NO | X28: NO
A29: LUX | O29: Nat. freq. plan
A30: NLD | B30: 12750-13250 | C30: X | J30: X | M30: 201 | O30: ERC/REC 12-02 | Q30: X | R30: X | S30: 8.35 | T30: 18.2 | U30: 31.5
A31: NOR | B31: 12750-13250 | D31: X | J31: X | O31: ERC/REC 12-02
A32: NOR | C32: X | J32: X | M32: 1240 | Q32: X | R32: X | S32: 0.1 | T32: 14.7 | U32: 90
A33: PRT | B33: 12750-13250 | C33: X | F33: X | H33: X | K33: FSS | M33: 49 | O33: ITU-R F.497 | P33: X | S33: 2 | T33: 25 | U33: 46 | V33: -50
A34: PRT | C34: X | F34: X | H34: X | K34: FSS | M34: 368 | O34: ERC/REC 12-02 | P34: X | Q34: X | R34: X | S34: 1 | T34: 15 | U34: 57 | V34: 10
A35: RUS | B35: 12750-13250 | C35: X | D35: X | H35: X | I35: X | L35: less than 1% | M35: 16553 | O35: ERC/REC 12-02 e ITU-R F.497 | P35: X | Q35: X | R35: X | S35: 10 | T35: 25 | U35: 35
A36: SRB | B36: 12750-13250 | C36: X | H36: X | M36: 564 | O36: ERC/REC 12-02 | P36: X | Q36: X | R36: X | S36: 2.15 | T36: 19.58 | U36: 58.65 | V36: 50
A37: SVK | B37: 12750-13250 | C37: X | F37: X | H37: X | M37: 620 | O37: ERC/REC 12-02 | P37: X | Q37: X | R37: X | S37: 4 | T37: 15 | U37: 48 | V37: 20
A38: SVN | B38: 12750-13250 | C38: X | F38: X | H38: X | M38: 178 | O38: ERC/REC 12-02 | Q38: X | R38: X | S38: 2 | T38: 25 | U38: 54 | V38: 5 | W38: x
A39: SVN | C39: X | F39: X | I39: X | M39: 21 | O39: ERC/REC 12-02 | R39: X | S39: 5 | T39: 20 | U39: 40 | V39: 5 | W39: x
A40: SWE | B40: 12750-13250 | C40: X | F40: X | M40: 775 | O40: ERC/REC 12-02 | W40: Y
A41: CHE | B41: 12750-13250 | C41: X | F41: X | H41: X | M41: 470 | O41: ERC/REC 12-02 | P41: 174 | Q41: 290 | R41: 6 | S41: 10 | T41: 14.2 | U41: 46.4 | V41: unchanged | Y41: heavily used by FSS
A42: GBR | B42: 12750-13250 | C42: X | J42: X | L42: 3840 | M42: 340 | O42: ERC/REC 12-02 | P42: X | Q42: X | R42: X
C44: =COUNTA(C5:C42) -> 33 | D44: 3 | E44: 0 | F44: 17 | G44: 0 | H44: 20 | I44: 5 | J44: 4 | K44: =COUNTA(K5:K42) -> 2 | L44: =SUM(L5:L42) -> 7951 | M44: =SUM(M5:M42) -> 43362 | N44: =SUM(N5:N42) -> 7 | P44: =COUNTA(P5:P42) -> 15 | Q44: =COUNTA(Q5:Q42) -> 23 | R44: =COUNTA(R5:R42) -> 23 | S44: =MIN(S$5:S$42) -> 0.1 | T44: =MIN(T$5:T$42) -> 5 | U44: =MIN(U$5:U$42) -> 29 | V44: =COUNTA(V5:V42) -> 21 | W44: =COUNTA(W5:W42) -> 11
S45: =MEDIAN(S$5:S$42) -> 2.575 | T45: =MEDIAN(T$5:T$42) -> 19 | U45: =MEDIAN(U$5:U$42) -> 47
S46: =MAX(S$5:S$42) -> 12 | T46: =MAX(T$5:T$42) -> 35 | U46: =MAX(U$5:U$42) -> 103
S47: =PERCENTILE(S$5:S$42,[1]TOT!$S$1) -> 10.65 | T47: =PERCENTILE(T$5:T$42,[1]TOT!$S$1) -> 25 | U47: =PERCENTILE(U$5:U$42,[1]TOT!$S$1) -> 80.595

Sheet 14-16 GHz
A1: Country | B1: Frequency band (MHz) | C1: Licensing regime | F1: Application | L1: Number of P-P links | N1: Number of BS | O1: Channel/Frequency plan used (e.g. ERC/ECC Rec. ITU-R Rec.) | P1: Link characteristics | V1: Future trends in the next 5 years
F2: FWA | P2: Capacity | S2: Hop lenght (km)
C3: Link by link | D3: Block | E3: Unlicensed | F3: P-P | G3: P-MP | H3: Network Infrastructure | I3: Broadcasting Infrastructure | J3: No Information available on the application | K3: Other (please indicate) | L3: unidirection | M3: bidirectional (1 bidirectional link counts 1) | N3: (applicable only for P-MP and mesh networks) | P3: LOW (<10 Mbit/s) | Q3: MEDIUM (10 to 100 Mbit/s) | R3: HIGH (>100 Mbit/s) | S3: MIN | T3: Typical figure | U3: MAX | V3: Anticipated growth/reduction (+/-%) | W3: congested | X3: planned relocation to other service/application | Y3: Other (please describe) (see Question 3 of the Questionnaire)
A4: TOTAL | L4: =SUBTOTAL(9,L5:M110) -> 97292 | N4: =SUBTOTAL(9,N5:N110) -> 0
A5: TELIASON | B5: 14250-14500
A6: AUT | B6: 14250-14500
A7: BIH | B7: 14250-14500
A8: HRV | B8: 14250-14500
A9: CZE | B9: 14250-14500 | V9: 0 | Y9: sat. services planned
A10: CYP | B10: 14250-14500 | C10: X | I10: X | L10: 14 | O10: ERC/REC 13-03 | Q10: X | S10: 8.29 | U10: 36.46
A11: DNK | B11: 14250-14500
A12: EST | B12: 14250-14500
A13: FIN | B13: 14250-14500
A14: FRA | B14: 14250-14500 | C14: X | F14: X | H14: X | M14: 374 | P14: 374 | S14: 10 | T14: 5<x>35 | U14: 100 | V14: -5%
A15: GRC | B15: 14250-14500 | Y15: No use
A16: HUN | B16: 14250-14500
A17: ICE | B17: 14250-14500
A18: IRL | B18: 14250-14500
A19: ITA | B19: 14250-14500 | C19: X | I19: X | L19: 1030 | O19: national | R19: X | S19: 3 | T19: 11 | U19: 27 | V19: 0.05 | W19: yes
A20: LVA | B20: 14250-14500 | Y20: FIXED-SATELLITE
A21: LTU | B21: 14250-14500
A22: LUX | B22: 14250-14500 | O22: ///
A23: NLD | B23: 14250-14500
A24: NOR | B24: 14250-14500
A25: PRT | B25: 14250-14500 | K25: FSS, VSAT, SNG, AES
A26: RUS | B26: 14250-14500 | C26: X | D26: X | M26: 150 | P26: X | Q26: X | R26: X | S26: 8 | T26: 20 | U26: 30
A27: SRB | B27: 14250-14500 | Z27: it have not been used yet
A28: SVK | B28: 14250-14500 | Y28: N.A.
A29: SVN | B29: 14250-14500
A30: SWE | B30: 14250-14500
A31: CHE | B31: 14250-14500
A32: GBR | B32: 14250-14500
A33: BIH | B33: 14400-15350 | C33: X | H33: X | M33: 162 | O33: ITU-R F.636 | P33: X | Q33: X | S33: 1 | T33: 15 | U33: 45 | Y33: 14400-15350 MHz: Planned leaving of ITU rec. and fully harmonization according to ERC/REC 12-07
C34: =COUNTA(C5:C33) -> 5 | D34: =COUNTA(D5:D33) -> 1 | E34: 0 | F34: 1 | G34: 0 | H34: 2 | I34: 2 | J34: 0 | L34: =SUM(L5:L33) -> 1044 | M34: =SUM(M5:M33) -> 686 | N34: =SUM(N5:N33) -> 0 | P34: =COUNTA(P5:P33) -> 3 | Q34: =COUNTA(Q5:Q33) -> 3 | R34: =COUNTA(R5:R33) -> 3 | S34: =MIN(S$5:S$33) -> 1 | T34: =MIN(T$5:T$33) -> 11 | U34: =MIN(U$5:U$33) -> 27
S35: =MEDIAN(S$5:S$33) -> 8 | T35: =MEDIAN(T$5:T$33) -> 15 | U35: =MEDIAN(U$5:U$33) -> 36.46
S36: =MAX(S$5:S$33) -> 10 | T36: =MAX(T$5:T$33) -> 20 | U36: =MAX(U$5:U$33) -> 100
S37: =PERCENTILE(S$5:S$33,[1]TOT!$S$1) -> 9.658 | T37: =PERCENTILE(T$5:T$33,[1]TOT!$S$1) -> 19.5 | U37: =PERCENTILE(U$5:U$33,[1]TOT!$S$1) -> 89
A38: TELIASON | B38: 14500-14620 and 15230-15350 | C38: X | H38: X | M38: 944 | O38: ERC/REC 12-07 | P38: 620 | Q38: 324 | S38: 1 | U38: 39 | V38: - | Z38: Eric sson ML
A39: TELIASON | B39: 14500-14620 and 15230-15350 | C39: X | H39: X | M39: 93 | P39: 93 | S39: 3 | U39: 30 | W39: X | Z39: NEC Pasolink
A40: AUT | B40: 14500-14620 and 15230-15350 | C40: X | F40: X | H40: X | M40: 631 | O40: ERC/REC 12-07 | P40: x | Q40: x | R40: x | S40: 1 | T40: 15 | U40: 44
A41: BIH | B41: 14500-14620 and 15230-15350 | C41: X | H41: X | M41: 278 | O41: ERC/REC 12-07 | P41: X | Q41: X | S41: 1 | T41: 15 | U41: 45
A42: HRV | B42: 14500-14620 and 15230-15350 | C42: X | I42: X | L42: 20 | O42: ERC/REC 12-07 | S42: 0.6 | T42: 9.9 | U42: 22.7
A43: CZE | B43: 14500-14620 and 15230-15350 | C43: X | F43: X | M43: 20 | O43: ERC/REC 12-07
A44: CYP | B44: 14500-14620 and 15230-15350 | C44: X | I44: X | L44: 12 | O44: ERC/REC 12-07 | Q44: X | S44: 0.45 | U44: 38.17
A45: DNK | B45: 14500-14620 and 15230-15350 | C45: X | M45: 299 | O45: ERC/REC 12-07 | S45: 12
A46: EST | B46: 14500-14620 and 15230-15350 | M46: 60 | O46: ERC/REC 12-07 | Q46: 60 | S46: 12 | T46: 23 | U46: 33 | V46: - 5
A47: FIN | B47: 14500-14620 and 15230-15350 | O47: ERC/REC 12-07
A48: FIN | B48: 14500-14620 and 15230-15350 | C48: X | H48: X | M48: 1950 | O48: ITU-R F.636 | Q48: X | S48: 0.1 | T48: 8.7 | U48: 10.9 | V48: -0.15
A49: FRA | B49: 14500-14620 and 15230-15350 | O49: ERC/REC 12-07
A50: GER | B50: 14500-14620 and 15230-15350 | C50: x | F50: x | L50: 10235 | O50: ERC/REC 12-07 | Q50: x | S50: 2.25 | T50: 14 | U50: 54.5 | W50: x
A51: GRC | B51: 14500-14620 and 15230-15350 | C51: X | H51: X | M51: 2863 | O51: ERC/REC 12-07 | P51: X | Q51: X | R51: X | S51: 0.5 | T51: 15 | U51: 75 | V51: 0.5 | W51: heavily used
A52: HUN | B52: 14500-14620 and 15230-15350 | O52: ERC/REC 12-07
A53: HUN | B53: 14500-14620 and 15230-15350 | C53: X | F53: X | K53: 15230-15350 MHz Non-Civil Digital P-P links | M53: 120 | P53: X | Q53: X | W53: x | Y53: non-civil usage
A54: ICE | B54: 14500-14620 and 15230-15350 | C54: X | F54: X | M54: 120 | O54: ERC/REC 12-07 | P54: 57 | Q54: 57 | R54: 6 | S54: 5 | T54: 15 | U54: 25 | V54: 25
A55: IRL | B55: 14500-14620 and 15230-15350 | C55: X | H55: X | M55: 1718 | O55: ERC/REC 12-07 National Legislation: S.I. 370 of 2009 | P55: X | Q55: X | R55: X | S55: 1.7 | T55: 17 | U55: 53 | V55: 29 | W55: X
A56: ITA | B56: 14500-14620 and 15230-15350 | C56: X | F56: X | H56: X | M56: 4070 | O56: ERC/REC 12-07 | P56: X | Q56: X | R56: X | S56: 7 | T56: 16 | U56: 33 | V56: 0.15 | W56: yes
A57: ITA | B57: 14500-14620 and 15230-15350 | C57: X | F57: X | H57: X | M57: 1562 | O57: national | Q57: X | W57: yes
A58: LVA | B58: 14500-14620 and 15230-15350 | C58: X | F58: X | M58: 48 | O58: ERC/REC 12-07 | Q58: X | S58: 3 | T58: 25 | U58: 37 | V58: 20
A59: LTU | B59: 14500-14620 and 15230-15350 | C59: X | F59: X | M59: 262 | O59: ERC/REC 12-07
A60: LUX | B60: 14500-14620 and 15230-15350 | C60: X | F60: X | H60: X | I60: X | L60: 0 | M60: 64 | O60: ERC/REC 12-07 | Q60: X | R60: X | S60: 1.4 | T60: 5-30 | U60: 34.7 | V60: N/A | W60: NO | X60: NO
A61: NLD | B61: 14500-14620 and 15230-15350 | C61: X | J61: X | M61: 116 | O61: ERC/REC 12-07 | P61: x | Q61: x | R61: x | S61: 7.71 | T61: 14.7 | U61: 34.9 | V61: 20
A62: NOR | B62: 14500-14620 and 15230-15350
A63: PRT | B63: 14500-14620 and 15230-15350 | C63: X | F63: X | H63: X | M63: 362 | O63: ERC/REC 12-07 | P63: X | Q63: X | S63: 1 | T63: 15 | U63: 37 | V63: 5
A64: SRB | B64: 14500-14620 and 15230-15350 | C64: X | H64: X | M64: 433 | O64: ERC/REC 12-07 | P64: X | Q64: X | R64: X | S64: 1.35 | T64: 16.98 | U64: 39.26 | V64: 20
A65: SVK | B65: 14500-14620 and 15230-15350 | C65: X | F65: X | H65: X | M65: 230 | O65: ERC/REC 12-07 | P65: x | Q65: x | S65: 9.5 | T65: 15 | U65: 48 | V65: 10
A66: SVN | B66: 14500-14620 and 15230-15350 | O66: ERC/REC 12-07 | Y66: Defence systems: | Z66: Land military systems (FS, MS)
A67: SWE | B67: 14500-14620 and 15230-15350 | C67: X | F67: X | M67: 2629 | O67: Nat ch.plan(expdate 2016) | W67: Y
A68: CHE | B68: 14500-14620 and 15230-15350 | C68: X | F68: X | H68: X | M68: 263 | O68: ERC/REC 12-07 | P68: 110 | Q68: 153 | S68: 10 | T68: 14.6 | U68: 37.1 | V68: unchanged
A69: GBR | B69: 14500-14620 and 15230-15350 | C69: X | J69: X | L69: 2050 | M69: 2050 | O69: ERC/REC 12-07 | P69: X | Q69: X | R69: X
A70: RUS | B70: 14500-14620 and 15230-15350 (14500 - 15350) | C70: X | D70: X | H70: X | I70: X | L70: 12 | M70: 13320 | O70: ERC/REC 12-07 e ITU-R F.636 | P70: X | Q70: X | R70: X | S70: 8 | T70: 20 | U70: 30
C71: =COUNTA(C38:C70) -> 28 | D71: =COUNTA(D38:D70) -> 1 | E71: 0 | F71: 15 | G71: 0 | H71: 15 | I71: 4 | J71: 2 | L71: =SUM(L38:L70) -> 12329 | M71: =SUM(M38:M70) -> 34505 | N71: =SUM(N38:N70) -> 0 | P71: =COUNTA(P38:P70) -> 16 | Q71: =COUNTA(Q38:Q70) -> 22 | R71: =COUNTA(R38:R70) -> 10 | S71: =MIN(S$38:S$70) -> 0.1 | T71: =MIN(T$38:T$70) -> 8.7 | U71: =MIN(U$38:U$70) -> 10.9 | V71: =COUNTA(V38:V70) -> 14 | W71: =COUNTA(W38:W70) -> 9
S72: =MEDIAN(S$38:S$70) -> 1.975 | T72: =MEDIAN(T$38:T$70) -> 15 | U72: =MEDIAN(U$38:U$70) -> 37
S73: =MAX(S$38:S$70) -> 12 | T73: =MAX(T$38:T$70) -> 25 | U73: =MAX(U$38:U$70) -> 75
S74: =PERCENTILE(S$38:S$70,[1]TOT!$S$1) -> 11.9 | T74: =PERCENTILE(T$38:T$70,[1]TOT!$S$1) -> 23.5 | U74: =PERCENTILE(U$38:U$70,[1]TOT!$S$1) -> 54.5
A75: SVN | B75: 14613-14725 and 15033-15145 | C75: X | F75: X | H75: X | M75: 82 | O75: ITU-R F.636-3 (Ch. 5,6,7,8) | Q75: x | S75: 7 | T75: 25 | U75: 45 | V75: -10 | X75: x
A76: SVN | B76: 14613-14725 and 15033-15145 | O76: ERC/REC 12-07 | X76: x | Y76: Defence systems: | Z76: Land military systems (FS, MS)
C78: =COUNTA(C75:C76) -> 1 | D78: =COUNTA(D75:D76) -> 0 | E78: 0 | F78: 1 | G78: 0 | H78: 1 | I78: 0 | J78: 0 | L78: =SUM(L75:L76) -> 0 | M78: =SUM(M75:M76) -> 82 | N78: =SUM(N75:N76) -> 0 | P78: =COUNTA(P75:P76) -> 0 | Q78: =COUNTA(Q75:Q76) -> 1 | R78: =COUNTA(R75:R76) -> 0 | S78: =PERCENTILE(S$75:S$76,[1]TOT!$S$1) -> 7 | T78: =PERCENTILE(T$75:T$76,[1]TOT!$S$1) -> 25 | U78: =PERCENTILE(U$75:U$76,[1]TOT!$S$1) -> 45

Sheet 17-17,7 GHz
A1: all empty but
A2: Country | B2: Frequency band (MHz) | C2: Licensing regime | F2: Application | L2: Number of P-P links | N2: Number of BS | O2: Channel/Frequency plan used (e.g. ERC/ECC Rec. ITU-R Rec.) | P2: Link characteristics | V2: Future trends in the next 5 years
F3: FWA | P3: Capacity | S3: Hop lenght (km)
C4: Link by link | D4: Block | E4: Unlicensed | F4: P-P | G4: P-MP | H4: Network Infrastructure | I4: Broadcasting Infrastructure | J4: No Information available on the application | K4: Other (please indicate) | L4: unidirection | M4: bidirectional (1 bidirectional link counts 1) | N4: (applicable only for P-MP and mesh networks) | P4: LOW (<10 Mbit/s) | Q4: MEDIUM (10 to 100 Mbit/s) | R4: HIGH (>100 Mbit/s) | S4: MIN | T4: Typical figure | U4: MAX | V4: Anticipated growth/reduction (+/-%) | W4: congested | X4: planned relocation to other service/application | Y4: Other (please describe) (see Question 3 of the Questionnaire)
A5: TOTAL | L5: =SUBTOTAL(9,L6:M102) -> 66 | N5: =SUBTOTAL(9,N6:N102) -> 0
A6: CZE | B6: 17300-17700 | Y6: FS considered
A7: GRC | B7: 17300-17700 | Y7: No use
A8: ITA | B8: 17300-17700 | C8: X | F8: X | M8: 33 | O8: national | Q8: X
A9: LVA | B9: 17300-17700 | Y9: HDFSS
A10: PRT | B10: 17300-17700 | K10: FSS, HDFSS
A11: RUS | B11: 17300-17700 | C11: No | D11: No
A12: SRB | B12: 17300-17700 | Y12: it has not been used yet
A13: SVK | B13: 17300-17700 | Y13: N.A.
C15: =COUNTA(C6:C13) -> 2 | D15: 1 | E15: 0 | F15: 1 | G15: 0 | H15: 0 | I15: 0 | J15: 0 | K15: =COUNTA(K6:K13) -> 1 | L15: =SUM(L6:L13) -> 0 | M15: =SUM(M6:M13) -> 33 | N15: =SUM(N6:N13) -> 0 | P15: =COUNTA(P6:P13) -> 0 | Q15: =COUNTA(Q6:Q13) -> 1 | R15: =COUNTA(R6:R13) -> 0

Sheet 17-20,2 GHz
A1: Country | B1: Frequency band (MHz) | C1: Licensing regime | F1: Application | L1: Number of P-P links | N1: Number of BS | O1: Channel/Frequency plan used (e.g. ERC/ECC Rec. ITU-R Rec.) | P1: Link characteristics | V1: Future trends in the next 5 years
F2: FWA | P2: Capacity | S2: Hop lenght (km)
C3: Link by link | D3: Block | E3: Unlicensed | F3: P-P | G3: P-MP | H3: Network Infrastructure | I3: Broadcasting Infrastructure | J3: No Information available on the application | K3: Other (please indicate) | L3: unidirection | M3: bidirectional (1 bidirectional link counts 1) | N3: (applicable only for P-MP and mesh networks) | P3: LOW (<10 Mbit/s) | Q3: MEDIUM (10 to 100 Mbit/s) | R3: HIGH (>100 Mbit/s) | S3: MIN | T3: Typical figure | U3: MAX | V3: Anticipated growth/reduction (+/-%) | W3: congested | X3: planned relocation to other service/application | Y3: Other (please describe) (see Question 3 of the Questionnaire)
A4: TOTAL | L4: =SUBTOTAL(9,L5:M101) -> 167500 | N4: =SUBTOTAL(9,N5:N101) -> 0
A5: TELIASON | B5: 17700-19700 | C5: X | H5: X | M5: 3 | O5: ERC/REC 12-03 | R5: 3 | S5: 9 | U5: 11 | W5: X | Z5: NEC 900
A6: TELIASON | B6: 17700-19700 | C6: X | H6: X | M6: 23 | R6: 23 | S6: 3 | U6: 14 | V6: 0 | Z6: NERA Citylink
A7: TELIASON | B7: 17700-19700 | C7: X | H7: X | M7: 738 | Q7: 645 | R7: 93 | S7: 4 | U7: 28 | V7: + | Z7: NEC NEO
A8: TELIASON | B8: 17700-19700 | C8: X | H8: X | M8: 1 | R8: 1 | T8: 9 | V8: ++ | Z8: Ericsson TN
A9: AUT | B9: 17700-19700 | C9: X | F9: X | H9: x | M9: 261 | O9: ERC/REC 12-03 | R9: x | S9: 1 | T9: 10 | U9: 19
A10: BIH | B10: 17700-19700 | C10: X | H10: X | M10: 446 | O10: ERC/REC 12-03 | P10: X | Q10: X | R10: X | S10: 1 | T10: 10 | U10: 35 | V10: +20
A11: HRV | B11: 17700-19700 | C11: X | H11: X | M11: 536 | O11: ERC/REC 12-03 | Q11: x | S11: 0.4 | T11: 10.2 | U11: 24.6 | V11: 10
A12: CZE | B12: 17700-19700 | C12: X | F12: X | M12: 6883 | O12: ERC/REC 12-03 | W12: x
A13: CYP | B13: 17700-19700 | C13: X | H13: X | I13: X | M13: 18 | O13: ERC/REC 12-03 | P13: X | Q13: X | S13: 1.62 | U13: 9.99
A14: DNK | B14: 17700-19700 | D14: X | M14: No info | O14: ERC/REC 12-03
A15: DNK | B15: 17700-19700 | C15: X | M15: 759
A16: EST | B16: 17700-19700 | M16: 585 | O16: ERC/REC 12-03 | Q16: 585 | S16: 10 | T16: 21 | U16: 43 | V16: +25
A17: FIN | B17: 17700-19700 | C17: X | H17: X | M17: 2650 | O17: ERC/REC 12-03 | Q17: X | R17: X | S17: 0.1 | T17: 8.7 | U17: 32.5 | V17: 0.3 | W17: x | Y17: Local congestion
A18: FRA | B18: 17700-19700 | C18: X | F18: X | H18: X | M18: 4399 | O18: ERC/REC 12-03 | P18: 237 | Q18: 2787 | R18: 1375 | S18: 0.16 | T18: 4<x>25 | U18: 46 | V18: + 8 % | W18: X
A19: FRA | B19: 17700-19700 | O19: IUT-RF 595-8
A20: GER | B20: 17700-19700 | C20: x | F20: x | L20: 6162 | O20: ERC/REC 12-03 | Q20: x | S20: 0.25 | T20: 9 | U20: 38.4 | V20: 15
A21: GRC | B21: 17700-19700 | C21: X | H21: X | M21: 2446 | O21: ERC/REC 12-03 | P21: X | Q21: X | R21: X | S21: 0.3 | T21: 8 | U21: 28 | V21: 0.35 | W21: heavily used
A22: HUN | B22: 17700-19700 | O22: ERC/REC 12-03
A23: HUN | B23: 17700-19700 | C23: X | F23: X | K23: Non-Civil P-P links | O23: ERC/DEC/(00)07 | W23: x | Y23: Development of high capacity P-P Non-Civil system is foreseen.
A24: ICE | B24: 17700-19700 | C24: X | F24: X | M24: 60 | O24: ERC/REC 12-03 | P24: 40 | Q24: 10 | R24: 10 | S24: 10 | T24: 15 | U24: 20 | V24: 25
A25: IRL | B25: 17700-19700 | C25: X | H25: X | M25: 686 | O25: ERC/REC 12-03 National Legislation: S.I. 370 of 2009 | Q25: X | R25: X | S25: 0.3 | T25: 9 | U25: 45 | V25: 28 | W25: X
A26: ITA | B26: 17700-19700 | C26: X | D26: X | F26: X | H26: X | M26: =14300+1512 -> 15812 | O26: ERC/REC 12-03 | P26: X | Q26: X | R26: X | S26: 0.3 | T26: 6 | U26: 12 | V26: 0.25 | W26: highly
A27: ITA | B27: 17700-19700 | C27: X | H27: X | I27: X | L27: 71 | M27: 35 | Q27: X | R27: X | S27: 1.3 | T27: 4 | U27: 7.5 | V27: 0.25
A28: LVA | B28: 17700-19700 | C28: X | F28: x | M28: 390 | O28: ERC/REC 12-03 | R28: X | S28: 1 | T28: 20 | U28: 43 | V28: 20
A29: LTU | B29: 17700-19700 | C29: X | F29: X | M29: 490 | O29: ERC/REC 12-03
A30: LUX | B30: 17700-19700 | C30: X | F30: X | H30: X | L30: 0 | M30: 47 | O30: ERC/REC 12-03 | R30: X | S30: 4.8 | T30: 4-25 | U30: 24.1 | V30: N/A | W30: NO | X30: NO
A31: LUX | B31: 17700-19700 | O31: Nat. freq. plan
A32: NLD | B32: 17700-19700 | C32: X | J32: X | M32: 1020 | O32: ERC/REC 12-03 | Q32: x | R32: x | S32: 7.7 | T32: 5.27 | U32: 34.9 | V32: 20
A33: NLD | B33: 17700-19700 | C33: X | J33: X | M33: 43 | O33: F-5958-8 Annex 8 | Q33: x | R33: x | S33: 5.63 | T33: 13.11 | U33: 18.65 | V33: 0
A34: NOR | B34: 17700-19700 | D34: X | J34: X | O34: ERC/REC 12-03
A35: NOR | B35: 17700-19700 | C35: X | J35: X | M35: 387 | R35: x | S35: 0.5 | T35: 10.2 | U35: 44.8
A36: PRT | B36: 17700-19700 | C36: X | F36: X | H36: X | K36: FSS | M36: 131 | O36: ITU-R F.595 | P36: X | S36: 2 | T36: 10 | U36: 29 | V36: 10
A37: PRT | B37: 17700-19700 | C37: X | F37: X | H37: X | K37: FSS | M37: 1087 | O37: ERC/REC 12-03 | Q37: X | R37: X | S37: 0 | T37: 7 | U37: 35 | V37: 20
A38: RUS | B38: 17700-19700 | C38: X | D38: X | M38: 24277 | O38: ERC/REC 12-03 and ITU-R F.595-9 | P38: X | Q38: X | R38: X | S38: 5 | T38: 12 | U38: 20
A39: SRB | B39: 17700-19700 | C39: X | H39: X | M39: 459 | O39: ERC/REC 12-03 and ITU-R F.595-9 | P39: X | Q39: X | R39: X | S39: 0.91 | T39: 10.03 | U39: 35.16 | V39: 100
A40: SVK | B40: 17700-19700 | C40: X | F40: X | H40: X | M40: 2170 | O40: ERC/REC 12-03 | P40: x | Q40: x | R40: x | S40: 1 | T40: 10 | U40: 38 | V40: 20
A41: SVN | B41: 17700-19700 | C41: X | F41: X | H41: X | M41: 361 | O41: ERC/REC 12-03 | R41: x | S41: 5 | T41: 15 | U41: 35 | V41: 20 | W41: x** | Y41: congested in urban/sub urban regions
A42: SVN | B42: 17700-19700 | D42: X | F42: X | H42: X | M42: 300 | O42: ERC/REC 12-03 | Q42: x | R42: x | S42: 5 | T42: 15 | U42: 35 | V42: 0 | W42: x** | Y42: congested in urban/sub urban regions
A43: SWE | B43: 17700-19700 | C43: X | F43: X | M43: 2242 | O43: ERC/REC 12-03 | V43: Y | W43: N
A44: CHE | B44: 17700-19700 | C44: X | F44: X | H44: X | M44: 332 | O44: ERC/REC 12-03 | P44: 24 | Q44: 155 | R44: 153 | S44: 3 | T44: 9.2 | U44: 26.1 | V44: growth | Y44: heavily used by FSS
A45: GBR | B45: 17700-19700 | C45: X | J45: X | L45: 7440 | O45: ERC/REC 12-03 | P45: X | Q45: X | R45: X
A46: GBR | B46: 17700-19700 | O46: ITU-R F.595
C48: =COUNTA(C5:C46) -> 34 | D48: 5 | E48: 0 | F48: 17 | G48: 0 | H48: 22 | I48: 2 | J48: 5 | K48: =COUNTA(K5:K46) -> 3 | L48: =SUM(L5:L46) -> 13673 | M48: =SUM(M5:M46) -> 70077 | N48: =SUM(N5:N46) -> 0 | P48: =COUNTA(P5:P46) -> 12 | Q48: =COUNTA(Q5:Q46) -> 22 | R48: =COUNTA(R5:R46) -> 27 | S48: =MIN(S$5:S$46) -> 0 | T48: =MIN(T$5:T$46) -> 4 | U48: =MIN(U$5:U$46) -> 7.5 | V48: =COUNTA(V5:V46) -> 26
S49: =MEDIAN(S$5:S$46) -> 1.46 | T49: =MEDIAN(T$5:T$46) -> 10 | U49: =MEDIAN(U$5:U$46) -> 29
S50: =MAX(S$5:S$46) -> 10 | T50: =MAX(T$5:T$46) -> 21 | U50: =MAX(U$5:U$46) -> 46
S51: =PERCENTILE(S$5:S$46,[1]TOT!$S$1) -> 9.65 | T51: =PERCENTILE(T$5:T$46,[1]TOT!$S$1) -> 19.75 | U51: =PERCENTILE(U$5:U$46,[1]TOT!$S$1) -> 44.92

Sheet 21,2-22 GHz
A1: all empty but
A2: Country | B2: Frequency band (MHz) | C2: Licensing regime | F2: Application | L2: Number of P-P links | N2: Number of BS | O2: Channel/Frequency plan used (e.g. ERC/ECC Rec. ITU-R Rec.) | P2: Link characteristics | V2: Future trends in the next 5 years
F3: FWA | P3: Capacity | S3: Hop lenght (km)
C4: Link by link | D4: Block | E4: Unlicensed | F4: P-P | G4: P-MP | H4: Network Infrastructure | I4: Broadcasting Infrastructure | J4: No Information available on the application | K4: Other (please indicate) | L4: unidirection | M4: bidirectional (1 bidirectional link counts 1) | N4: (applicable only for P-MP and mesh networks) | P4: LOW (<10 Mbit/s) | Q4: MEDIUM (10 to 100 Mbit/s) | R4: HIGH (>100 Mbit/s) | S4: MIN | T4: Typical figure | U4: MAX | V4: Anticipated growth/reduction (+/-%) | W4: congested | X4: planned relocation to other service/application | Y4: Other (please describe) (see Question 3 of the Questionnaire)
A5: TOTAL | L5: =SUBTOTAL(9,L6:M101) -> 782 | N5: =SUBTOTAL(9,N6:N101) -> 0
A6: AUT | B6: 21200-22000 | C6: X | I6: X | K6: mo | O6: national
A7: BIH | B7: 21200-22000 | C7: X | H7: X | M7: 256 | P7: X | Q7: X | R7: X | S7: 0.5 | T7: 5 | U7: 20 | Y7: 21200-22000 MHz: Planned leaving of band and full harmonization according to T/R 13-02 Annexes A1, A2, A3
A8: CYP | B8: 21200-22000 | C8: X | H8: X | M8: 97 | P8: X | Q8: X | S8: 0.2 | U8: 18.27 | W8: X
A9: GRC | B9: 21200-22000 | Y9: No Use
A10: HUN | B10: 21200-22000 | C10: X | I10: X | T10: 40 | W10: X
A11: ITA | B11: 21200-22000 | C11: X | H11: X | L11: 26 | M11: 7 | Q11: X | S11: 0.19 | T11: 2.44 | U11: 7.25
A12: LVA | B12: 21200-22000 | C12: X | F12: x | L12: 2 | O12: national plan | P12: X | S12: 3 | T12: 5 | U12: 8 | V12: 100
A13: LTU | B13: 21200-22000 | C13: X | F13: X | L13: 0 | M13: 0 | O13: local
A14: PRT | B14: 21200-22000 | K14: SRR
A15: SRB | B15: 21200-22000 | C15: X | I15: X | L15: 3 | O15: ITU-R F.637-3 annex 5 | P15: X | S15: 3.11 | T15: 4.98 | U15: 7.15
A16: SVK | B16: 21200-22000 | C16: X | F16: X | I16: X | L16: 0 | O16: ITU-R F.637 | Y16: currently no links
C18: =COUNTA(C6:C16) -> 9 | D18: 0 | E18: 0 | F18: 3 | G18: 0 | H18: 3 | I18: 4 | J18: 0 | K18: =COUNTA(K6:K16) -> 2 | L18: =SUM(L6:L16) -> 31 | M18: =SUM(M6:M16) -> 360 | N18: =SUM(N6:N16) -> 0 | P18: =COUNTA(P6:P16) -> 4 | Q18: =COUNTA(Q6:Q16) -> 3 | R18: =COUNTA(R6:R16) -> 2 | S18: =MIN(S$5:S$16) -> 0.19 | T18: =MIN(T$5:T$16) -> 2.44 | U18: =MIN(U$5:U$16) -> 7.15
S19: =MEDIAN(S$5:S$16) -> 1.6 | T19: =MEDIAN(T$5:T$16) -> 5 | U19: =MEDIAN(U$5:U$16) -> 8
S20: =MAX(S$5:S$16) -> 3.11 | T20: =MAX(T$5:T$16) -> 40 | U20: =MAX(U$5:U$16) -> 20
S21: =PERCENTILE(S$5:S$16,[1]TOT!$S$1) -> 3.0935 | T21: =PERCENTILE(T$5:T$16,[1]TOT!$S$1) -> 33 | U21: =PERCENTILE(U$5:U$16,[1]TOT!$S$1) -> 19.654

Sheet 22-23,6 GHz
A1: Country | B1: Frequency band (MHz) | C1: Licensing regime | F1: Application | L1: Number of P-P links | N1: Number of BS | O1: Channel/Frequency plan used (e.g. ERC/ECC Rec. ITU-R Rec.) | P1: Link characteristics | V1: Future trends in the next 5 years
C2: Link by link | D2: Block | E2: Unlicensed | F2: FWA | H2: Network Infrastructure | I2: Broadcasting Infrastructure | J2: No Information available on the application | K2: Other (please indicate) | L2: unidirection | M2: bidirectional (1 bidirectional link counts 1) | N2: (applicable only for P-MP and mesh networks) | P2: Capacity | S2: Hop lenght (km) | V2: Anticipated growth/reduction (+/-%) | W2: congested | X2: planned relocation to other service/application | Y2: Other (please describe) (see Question 3 of the Questionnaire)
F3: P-P | G3: P-MP | P3: LOW (<10 Mbit/s) | Q3: MEDIUM (10 to 100 Mbit/s) | R3: HIGH (>100 Mbit/s) | S3: MIN | T3: Typical figure | U3: MAX
L4: =SUBTOTAL(9,L5:M101) -> 196462 | N4: =SUBTOTAL(9,N5:N101) -> 0
A5: TELIASON | B5: 22000-22600 and 23000-23600 | C5: X | H5: X | M5: 506 | O5: T/R 13-02 Annexes A1, A2, A3 | P5: 303 | Q5: 203 | S5: 1 | U5: 18 | V5: - | Z5: Eric sson ML
A6: TELIASON | B6: 22000-22600 and 23000-23600 | C6: X | H6: X | M6: 338 | Q6: 316 | R6: 22 | S6: 3 | U6: 17 | V6: + | Z6: NEC NEO
A7: AUT | B7: 22000-22600 and 23000-23600 | C7: X | F7: X | H7: X | M7: 2885 | O7: T/R 13-02 Annexes A1, A2, A3 | P7: x | Q7: x | R7: x | S7: 1 | T7: 10 | U7: 20
A8: BIH | B8: 22000-22600 and 23000-23600 | C8: X | H8: X | M8: 421 | O8: T/R 13-02 Annexes A1, A2, A3 | P8: X | Q8: X | R8: X | S8: 0.5 | T8: 5 | U8: 20 | V8: +20
A9: HRV | B9: 22000-22600 and 23000-23600 | C9: X | H9: X | M9: 1220 | O9: T/R 13-02 Annexes A1, A2, A3 | Q9: x | S9: 0.18 | T9: 5.5 | U9: 21.1 | V9: 10
A10: CZE | B10: 22000-22600 and 23000-23600 | C10: X | F10: X | M10: 3707 | O10: T/R 13-02 Annexes A1, A2, A3 | V10: 5
A11: CYP | B11: 22000-22600 and 23000-23600 | C11: X | H11: X | M11: 738 | O11: T/R 13-02 Annexes A1, A2, A3 | P11: X | Q11: X | S11: 0.25 | U11: 15.16 | W11: X
A12: DNK | B12: 22000-22600 and 23000-23600 | D12: X | M12: No info | O12: T/R 13-02 Annexes A1, A2, A3
A13: DNK | B13: 22000-22600 and 23000-23600 | C13: X | M13: 650
A14: EST | B14: 22000-22600 and 23000-23600 | M14: 788 | O14: T/R 13-02 Annexes A1, A2, A3 | Q14: 788 | S14: 3 | T14: 14 | U14: 24 | V14: +25
A15: FIN | B15: 22000-22600 and 23000-23600 | C15: X | H15: X | M15: 2770 | O15: T/R 13-02 Annexes A1, A2, A3 | Q15: X | R15: X | S15: 0.1 | T15: 4.6 | U15: 19 | V15: 0.15 | W15: x | Y15: Local congestion
A16: FRA | B16: 22000-22600 and 23000-23600 | C16: X | D16: X | F16: X | H16: X | M16: 12195 | O16: T/R 13-02 Annexes A1, A2, A3 | P16: 4614 | Q16: 7498 | R16: 83 | S16: 0.1 | T16: 3<x>20 | U16: 32 | V16: + 9 %
A17: FRA | B17: 22000-22600 and 23000-23600 | O17: IUT-RF 637-3
A18: GER | B18: 22000-22600 and 23000-23600 | C18: x | F18: x | L18: 19401 | O18: ERC/REC 13-02 | Q18: x | S18: 0.13 | T18: 8 | U18: 51.1
A19: GRC | B19: 22000-23600 | C19: X | H19: X | M19: 1724 | O19: T/R 13-02 Annex A | P19: X | Q19: X | R19: X | S19: 0.04 | T19: 4 | U19: 16 | V19: 0.4
A20: HUN | B20: 22000-22600 and 23000-23600 | C20: X | F20: X | K20: 22442-22600 MHz Emergency Services Digital P-P links | M20: 40 | O20: T/R 13-02 Annexes A1, A2, A3 | P20: X | Q20: X | W20: x
A21: HUN | B21: 22000-22600 and 23000-23600 | C21: X | F21: X | K21: 23450-23600 MHz Emergency services Digital P-P links | M21: 3512 | O21: T/R 13-02 Annexes A1, A2, A3 | P21: X | Q21: X | W21: x
A22: ICE | B22: 22000-22600 and 23000-23600 | C22: X | F22: x | M22: 18 | O22: T/R 13-02 Annexes A1, A2, A3 | P22: 5 | Q22: 11 | R22: 2 | S22: 1 | T22: 6 | U22: 25 | V22: 25
A23: IRL | B23: 22000-22600 and 23000-23600 | C23: X | H23: X | M23: 2178 | O23: T/R 13-02 Annexes A1, A2, A3 | P23: X | Q23: X | R23: X | S23: 0.2 | T23: 6.7 | U23: 24 | V23: 36 | W23: X
A24: IRL | B24: 22000-22600 and 23000-23600 | O24: National Legislation: S.I. 370 of 2009
A25: ITA | B25: 22000-22600 and 23000-23600 | C25: X | D25: X | F25: X | H25: X | L25: 2 | M25: =10970+1101 -> 12071 | O25: T/R 13-02 Annexes A1, A2, A3 | P25: X | Q25: X | R25: X | S25: 2.18 | T25: 2.95 | U25: 3.17 | V25: 0.25 | W25: yes
A26: LVA | B26: 22000-22600 and 23000-23600 | C26: X | F26: X | M26: 592 | O26: T/R 13-02 Annexes A1, A2, A3 | R26: X | S26: 0.15 | T26: 15 | U26: 25 | V26: 30
A27: LTU | B27: 22000-22600 and 23000-23600 | C27: X | F27: X | M27: 1362 | O27: T/R 13-02 Annexes A1, A2, A3
A28: LUX | B28: 22000-22600 and 23000-23600 | C28: X | F28: X | H28: X | I28: X | L28: 1 | M28: 243 | O28: T/R 13-02 Annexes A1, A2, A3 | Q28: X | S28: 0.3 | T28: 3-20 | U28: 15 | V28: N/A | W28: NO | X28: NO
A29: LUX | B29: 22000-22600 and 23000-23600 | O29: Nat. freq. plan
A30: NLD | B30: 22000-22600 and 23000-23600 | C30: X | J30: X | M30: 1450 | O30: T/R 13-02 Annexes A1, A2, A3 | P30: x | Q30: x | R30: x | S30: 3 | T30: 7.65 | U30: 14.78 | V30: 30
A31: NOR | B31: 22000-22600 and 23000-23600 | D31: X | J31: X | O31: T/R 13-02 Annexes A1, A2, A3
A32: NOR | B32: 22000-22600 and 23000-23600 | C32: X | J32: X | L32: 2 | M32: 64 | R32: x | S32: 0.3 | T32: 5.7 | U32: 25.4
A33: PRT | B33: 22000-22600 and 23000-23600 | C33: X | F33: X | H33: X | K33: SRR | M33: 10 | O33: Report 936-2 Annex 6 | P33: X | S33: 1 | T33: 5 | U33: 12 | V33: -100
A34: PRT | B34: 22000-22600 and 23000-23600 | C34: X | F34: X | H34: X | K34: SRR | M34: 908 | O34: T/R 13-02 Annexes A1 | P34: X | Q34: X | R34: X | T34: 5 | U34: 12 | V34: 10
A35: RUS | B35: 21200-23600 | C35: X | D35: X | M35: 16816 | O35: F.637 ITU-R | P35: X | Q35: X | R35: X | S35: 2 | T35: 4 | U35: 8
A36: SRB | B36: 22000-22600 and 23000-23600 | C36: X | H36: X | M36: 1288 | O36: T/R 13-02 Annexes A1 | P36: X | Q36: X | R36: X | S36: 0.14 | T36: 4.74 | U36: 24.41 | V36: 100
A37: SVK | B37: 22000-22600 and 23000-23600 | C37: X | F37: X | H37: X | M37: 1582 | O37: T/R 13-02 Annex A1 | P37: x | Q37: x | R37: x | S37: 0.5 | T37: 5 | U37: 13 | V37: 10
A38: SVN | B38: 22000-22600 and 23000-23600 | C38: X | F38: X | H38: X | M38: 767 | O38: T/R 13-02 Annex A1 | Q38: x | S38: 3 | T38: 7 | U38: 10 | V38: 5 | W38: x** | Y38: congested in urban/sub urban regions
A39: SVN | B39: 22000-22600 and 23000-23600 | C39: X | F39: X | H39: X | M39: 10 | O39: T/R 13-02 Annex A1 | R39: x | S39: 2 | T39: 4 | U39: 5 | V39: 20 | W39: x** | Y39: congested in urban/sub urban regions
A40: SWE | B40: 22000-22600 and 23000-23600 | C40: X | F40: X | M40: 1322 | O40: T/R 13-02 Annexes A1, A2, A3 | W40: Y
A41: CHE | B41: 22000-22600 and 23000-23600 | C41: X | F41: X | H41: X | M41: 1900 | O41: T/R 13-02 Annexes A1, A2, A3 | P41: 787 | Q41: 1113 | S41: 5 | T41: 7.4 | U41: 29.9 | V41: unchanged | W41: city areas congested, HIGH/LOW situation | Y41: problem: SRR
A42: GBR | B42: 22000-22600 and 23000-23600 | C42: X | J42: X | L42: 4750 | O42: T/R 13-02 | P42: X | Q42: X | R42: X
C44: =COUNTA(C5:C42) -> 32 | D44: 5 | E44: 0 | F44: 18 | G44: 0 | H44: 19 | I44: 1 | J44: 4 | K44: =COUNTA(K5:K42) -> 4 | L44: =SUM(L5:L42) -> 24156 | M44: =SUM(M5:M42) -> 74075 | N44: =SUM(N5:N42) -> 0 | P44: =COUNTA(P5:P42) -> 19 | Q44: =COUNTA(Q5:Q42) -> 25 | R44: =COUNTA(R5:R42) -> 19 | S44: =MIN(S$5:S$42) -> 0.1 | T44: =MIN(T$5:T$42) -> 2.95 | U44: =MIN(U$5:U$42) -> 3.17 | V44: =COUNTA(V5:V42) -> 22 | W44: =COUNTA(W5:W42) -> 11
S45: =MEDIAN(S$5:S$42) -> 1 | T45: =MEDIAN(T$5:T$42) -> 5.7 | U45: =MEDIAN(U$5:U$42) -> 18.5
S46: =MAX(S$5:S$42) -> 5 | T46: =MAX(T$5:T$42) -> 15 | U46: =MAX(U$5:U$42) -> 51.1
S47: =PERCENTILE(S$5:S$42,[1]TOT!$S$1) -> 3 | T47: =PERCENTILE(T$5:T$42,[1]TOT!$S$1) -> 14.1 | U47: =PERCENTILE(U$5:U$42,[1]TOT!$S$1) -> 31.475

Sheet 22,6-23 GHz
A1: all empty but
A2: Country | B2: Frequency band (MHz) | C2: Licensing regime | F2: Application | L2: Number of P-P links | N2: Number of BS | O2: Channel/Frequency plan used (e.g. ERC/ECC Rec. ITU-R Rec.) | P2: Link characteristics | V2: Future trends in the next 5 years
F3: FWA | P3: Capacity | S3: Hop lenght (km)
C4: Link by link | D4: Block | E4: Unlicensed | F4: P-P | G4: P-MP | H4: Network Infrastructure | I4: Broadcasting Infrastructure | J4: No Information available on the application | K4: Other (please indicate) | L4: unidirection | M4: bidirectional (1 bidirectional link counts 1) | N4: (applicable only for P-MP and mesh networks) | P4: LOW (<10 Mbit/s) | Q4: MEDIUM (10 to 100 Mbit/s) | R4: HIGH (>100 Mbit/s) | S4: MIN | T4: Typical figure | U4: MAX | V4: Anticipated growth/reduction (+/-%) | W4: congested | X4: planned relocation to other service/application | Y4: Other (please describe) (see Question 3 of the Questionnaire)
A5: TOTAL | L5: =SUBTOTAL(9,L6:M101) -> 518 | N5: =SUBTOTAL(9,N6:N101) -> 0
A6: CZE | B6: 22600-22700 | Y6: ENG/OB
A7: CZE | B7: 22700-23000 | Y7: no utilisation
A8: CYP | B8: 22600-23000 | C8: X | H8: X | L8: 37 | O8: National | P8: X | Q8: X | S8: 0.2 | U8: 18.14 | X8: X
A9: DNK | B9: 22600-23000 | C9: X | M9: 1
A10: FRA | B10: 22600-23000 | C10: X | F10: X | H10: X | M10: 124 | P10: 124 | S10: 0.1 | T10: 10 | U10: 32 | V10: + 1%
A11: GRC | B11: 22600-23000 | V11: - | Y11: No current FS use. Allocation for analogue links. SAP/SAB, ENG/OB
A12: HUN | B12: 22600-23000 | C12: X | I12: X | L12: 1 | T12: 40 | W12: x
A13: ITA | B13: 22600-23000 | C13: x | H13: X | L13: 1 | Q13: x | T13: 0.19
A14: LVA | B14: 22600-23000 | Y14: SAP/SAB
A15: LTU | B15: 22600-23000 | C15: X | F15: X | I15: X | L15: 1 | O15: local
A16: PRT | B16: 22600-23000 | C16: X | F16: X | H16: ? | K16: SRR | O16: T/R 13-02 Annexes A2, A3 | V16: no use at the moment
A17: SRB | B17: 22600-23000 | C17: X | I17: X | L17: 94 | O17: ITU-R F.637-3 annex 5 | P17: X | S17: 0.21 | T17: 2.5 | U17: 11.87
A18: SVK | B18: 22600-23000 | C18: x | F18: X | I18: X | L18: 0 | O18: ITU-R F.637 | Y18: currently no links
A19: SVN | B19: 22600-23000 | C19: x | F19: X | H19: X | M19: planned | O19: T/R 13-02 Annex A2 | P19: x | Q19: x
A20: SVN | B20: 22600-23000 | F20: X | I20: X | J20: X | L20: planned | O20: T/R 13-02 Annex A3 | P20: x | Q20: x
C22: =COUNTA(C6:C20) -> 10 | D22: 0 | E22: 0 | F22: 6 | G22: 0 | H22: 5 | I22: 5 | J22: 1 | K22: =COUNTA(K6:K20) -> 1 | L22: =SUM(L6:L20) -> 134 | M22: =SUM(M6:M20) -> 125 | N22: =SUM(N6:N20) -> 0 | P22: =COUNTA(P6:P20) -> 5 | Q22: =COUNTA(Q6:Q20) -> 4 | R22: =COUNTA(R6:R20) -> 1 | S22: =PERCENTILE(S$6:S$20,[1]TOT!$S$1) -> 0.209 | T22: =PERCENTILE(T$6:T$20,[1]TOT!$S$1) -> 35.5 | U22: =PERCENTILE(U$6:U$20,[1]TOT!$S$1) -> 30.614
S28: original value | T28: 3<x>20

Sheet 24,25-24,5 GHz
A1: all empty but
A2: Country | B2: Frequency band (MHz) | C2: Licensing regime | F2: Application | L2: Number of P-P links | N2: Number of BS | O2: Channel/Frequency plan used (e.g. ERC/ECC Rec. ITU-R Rec.) | P2: Link characteristics | V2: Future trends in the next 5 years
F3: FWA | P3: Capacity | S3: Hop lenght (km)
C4: Link by link | D4: Block | E4: Unlicensed | F4: P-P | G4: P-MP | H4: Network Infrastructure | I4: Broadcasting Infrastructure | J4: No Information available on the application | K4: Other (please indicate) | L4: unidirection | M4: bidirectional (1 bidirectional link counts 1) | N4: (applicable only for P-MP and mesh networks) | P4: LOW (<10 Mbit/s) | Q4: MEDIUM (10 to 100 Mbit/s) | R4: HIGH (>100 Mbit/s) | S4: MIN | T4: Typical figure | U4: MAX | V4: Anticipated growth/reduction (+/-%) | W4: congested | X4: planned relocation to other service/application | Y4: Other (please describe) (see Question 3 of the Questionnaire)
A5: TOTAL | L5: =SUBTOTAL(9,L6:M102) -> 104 | N5: =SUBTOTAL(9,N6:N102) -> 70
A6: CZE | B6: 24250-24500 | Y6: SAB
A7: DNK | B7: 24250-24500 | C7: X | M7: 1
A8: GRC | B8: 24250-24500 | O8: ERC REP 38 | V8: - | Y8: No current use. Allocation for analogue links. SAP/SAB, ENG/OB
A9: HUN | B9: 24250-24500 | C9: X | D9: X | F9: X | G9: X | M9: 41 | N9: 31 | P9: X | Q9: X | R9: X | T9: 7 | V9: 0.25 | W9: x | Y9: ù
A10: LVA | B10: 24250-24500 | Y10: SAB/SAP, SRR
A11: LTU | B11: 24250-24500 | C11: X | F11: X | L11: 0 | M11: 0 | O11: local
A12: LUX | B12: 24250-24500 | D12: X | G12: X | H12: X | I12: X | N12: 4 | O12: Nat. freq. plan | V12: N/A | W12: NO | X12: NO
A13: LUX | C13: X | F13: X | H13: X | I13: X | L13: 0 | M13: 10 | O13: Nat. freq. plan | Q13: X | T13: 2-15 | V13: N/A | W13: NO | X13: NO
A14: PRT | B14: 24250-24500 | K14: SRR, SRD
A15: RUS | B15: 24250-24500 | C15: No | D15: No | O15: F.748 ITU-R
A16: SVK | B16: 24250-24500 | Y16: N.A.
C18: =COUNTA(C6:C16) -> 5 | D18: =COUNTA(D6:D16) -> 3 | E18: 0 | F18: 3 | G18: 2 | H18: 2 | I18: 2 | J18: 0 | K18: =COUNTA(K6:K16) -> 1 | L18: =SUM(L6:L16) -> 0 | M18: =SUM(M6:M16) -> 52 | N18: =SUM(N6:N16) -> 35 | P18: =COUNTA(P6:P16) -> 1 | Q18: =COUNTA(Q6:Q16) -> 2 | R18: =COUNTA(R6:R16) -> 1

Sheet 24,5-26,5 GHz
A1: Country | B1: Frequency band (MHz) | C1: Licensing regime | F1: Application | L1: Number of P-P links | N1: Number of BS | O1: Channel/Frequency plan used (e.g. ERC/ECC Rec. ITU-R Rec.) | P1: Link characteristics | V1: Future trends in the next 5 years
F2: FWA | P2: Capacity | S2: Hop lenght (km)
C3: Link by link | D3: Block | E3: Unlicensed | F3: P-P | G3: P-MP | H3: Network Infrastructure | I3: Broadcasting Infrastructure | J3: No Information available on the application | K3: Other (please indicate) | L3: unidirection | M3: bidirectional (1 bidirectional link counts 1) | N3: (applicable only for P-MP and mesh networks) | P3: LOW (<10 Mbit/s) | Q3: MEDIUM (10 to 100 Mbit/s) | R3: HIGH (>100 Mbit/s) | S3: MIN | T3: Typical figure | U3: MAX | V3: Anticipated growth/reduction (+/-%) | W3: congested | X3: planned relocation to other service/application | Y3: Other (please describe) (see Question 3 of the Questionnaire)
L4: =SUBTOTAL(9,L5:M102) -> 74316 | N4: =SUBTOTAL(9,N5:N102) -> 3292
A5: TELIASON | B5: 24500-26500 | D5: X | H5: X | M5: 161 | O5: T/R 13-02 Annex B | P5: 99 | Q5: 18 | R5: 44 | S5: 2 | U5: 10 | V5: - | Z5: Eric sson ML
A6: TELIASON | B6: 24500-26500 | D6: X | M6: 629 | Q6: 574 | R6: 55 | S6: 1 | U6: 12 | V6: + | Z6: NEC NEO
A7: AUT | B7: 24500-26500 | C7: X | F7: X | H7: X | M7: 2365 | O7: T/R 13-02 Annex B | P7: x | Q7: x | R7: x | S7: 1 | T7: 6 | U7: 24
A8: AUT | B8: 24500-26500
A9: BIH | B9: 24500-26500 | C9: X | D9: X | H9: X | M9: 3 | O9: T/R 13-02 Annex B | P9: X | Q9: X | R9: X | S9: 1 | T9: 4 | U9: 6 | V9: +35 | Y9: 24500-26500, 27500-29500 MHz: Shared band between P-P links and FWA. Actually, block assignments for P-P links in process. We still do not have active implemented FWA systems.
A10: BIH | B10: 24500-26500 | D10: X | F10: X | G10: X
A11: HRV | B11: 24500-26500 | D11: X | G11: X | O11: T/R 13-02 Annex B
A12: HRV | B12: 24500-26500
A13: CZE | B13: 24500-24745/25500-25753 | D13: X | G13: X | N13: 133 | O13: T/R 13-02 Annex B | V13: 10
A14: CZE | B14: 24745-25500/25753-26500 | C14: X | F14: X | M14: 4537 | V14: 10
A15: CYP | B15: 24500-26500 | O15: T/R 13-02 Annex B
A16: CYP | B16: 24500-26500
A17: DNK | B17: 24500-26500 | D17: X | N17: No info | O17: T/R 13-02 Annex B
A18: DNK | B18: 24500-26500 | C18: X | N18: 135
A19: EST | B19: 24500-26500 | O19: T/R 13-02 Annex B
A20: EST | B20: 24500-26500
A21: FIN | B21: 24500-26500 | O21: T/R 13-02 Annex B
A22: FIN | B22: 24500-26500
A23: FRA | B23: 24500-26500 | C23: X | D23: X | F23: X | G23: X | H23: X | M23: 215 | N23: 75 | O23: T/R 13-02 Annex B | Q23: 88 | R23: 127 | S23: 0.12 | T23: 3<x>20 | U23: 15 | V23: + 3 %
A24: FRA | B24: 24500-26500
A25: GER | B25: 24500-26500 | C25: x | F25: x | G25: x | L25: 15880 | O25: ERC/REC 13-02 | Q25: x | S25: 0.1 | T25: 4 | U25: 10.9
A26: GER | B26: 24500-26500 | D26: x | N26: 836
A27: GRC | B27: 24500-26500 | D27: X | F27: X | G27: X | O27: ERC/REC 13-02 | P27: - | V27: - | Y27: 5 issued licenses
A28: HUN | B28: 24500-26500 | C28: X | D28: X | F28: X | G28: X | M28: 83 | N28: 31 | O28: T/R 13-02 Annex B | P28: X | Q28: X | R28: X | T28: 7 | V28: 0.25 | W28: x | Y28: PMP systems
A29: HUN | B29: 24500-26500
A30: ICE | B30: 24500-26500 | C30: X | F30: x | M30: 2 | O30: T/R 13-02 Annex B | R30: 2 | S30: 12 | T30: 15 | U30: 18 | V30: 10
A31: IRL | B31: 24500-26500 | C31: X | F31: X | H31: X | M31: 636 | O31: T/R 13-02 Annex B | P31: X | Q31: X | R31: X | S31: 0.05 | T31: 5 | U31: 17 | V31: 43 | W31: X
A32: IRL | B32: 24500-26500 | O32: National Legislation: S.I. 370 of 2009
A33: IRL | B33: 24500-26500 | D33: X | H33: X | O33: National Legislation: S.I. 762 of 2007
A34: IRL | B34: 24500-26500
A35: IRL | B35: 24500-26500 | C35: X | G35: X | N35: 15 | O35: National Legislation: S.I. 79 of 2003 | V35: 55
A36: IRL | B36: 24500-26500 | O36: National Legislation: S.I. 530 of 2003
A37: ITA | B37: 24500-26500 | D37: X | G37: X | H37: X | N37: not known | O37: T/R 13-02 Annex B | V37: 0.15 | W37: not yet
A38: ITA | B38: 24500-26500
A39: LVA | B39: 24500-26500 | C39: X | F39: x | M39: 6 | O39: T/R 13-02 Annex B | R39: X | S39: 1.4 | T39: 5 | U39: 6
A40: LVA | B40: 24500-26500 | D40: X | G40: X | N40: 52 | Q40: X | T40: 5 | V40: 50
A41: LTU | B41: 24500-26500 | C41: X | F41: X | L41: 0 | M41: 0 | O41: T/R 13-02 Annex B
A42: LTU | B42: 24500-26500 | D42: X | G42: X | N42: 84 | O42: T/R 13-02 Annex B | V42: 30
A43: LUX | B43: 24500-26500 | D43: X | G43: X | H43: X | I43: X | N43: 4 | O43: T/R 13-02 Annex B | V43: N/A | W43: NO | X43: NO
A44: LUX | B44: 24500-26500 | C44: X | F44: X | H44: X | I44: X | L44: 0 | M44: 10 | O44: Nat. freq. plan | Q44: X | T44: 2-15 | V44: N/A | W44: NO | X44: NO
A45: NLD | B45: 24500-26500 | C45: x | J45: X | M45: 908 | O45: T/R 13-02 Annex B | P45: x | Q45: x | R45: x | S45: 2.55 | T45: 6.42 | U45: 14.52 | V45: 30
A46: NLD | B46: 24500-26500 | G46: x | J46: X | N46: 90 | O46: T/R 13-02 Annex B | V46: 10
A47: NOR | B47: 24500-26500 | D47: x | J47: X | O47: T/R 13-02 Annex B
A48: NOR | B48: 24500-26500 | C48: x | J48: X | L48: 3 | M48: 65 | Q48: x | R48: x | S48: 0.5 | T48: 4.8 | U48: 21.1
A49: PRT | B49: 24500-26500 | D49: X | G49: X | H49: X | K49: SRR, SRD, Military (25.25-25.492 GHz and 26.25-27.5 GHz) | N49: 125 | O49: T/R 13-02 Annex B | P49: X | Q49: X | T49: 5 | V49: 0
A50: PRT | B50: 24500-26500
A51: RUS | B51: 24500-26500 | C51: X | D51: X | G51: X | H51: X | M51: 447 | O51: T/R 13-02 Annex B | P51: X | Q51: X | R51: X | S51: 2 | T51: 4 | U51: 8
A52: RUS | B52: 24500-26500 | O52: F.748 ITU-R
A53: SRB | B53: 24500-26500 | C53: X | H53: X | M53: 660 | O53: T/R 13-02 Annex B | P53: X | Q53: X | R53: X | S53: 0.6 | T53: 2.21 | U53: 12.5 | V53: 100
A54: SRB | B54: 24500-26500 | D54: X | G54: X | N54: 4
A55: SVK | B55: 24500-26500 | C55: X | F55: X | H55: X | M55: 1230 | O55: T/R 13-02 Annex B | P55: x | Q55: x | R55: x | S55: 0.1 | T55: 3.5 | U55: 8 | V55: 20
A56: SVK | B56: 24500-26500 | D56: X | G56: X | N56: 40 | P56: x | Q56: x | V56: 10
A57: SVN | B57: 24500-26500 | C57: X | F57: X | H57: X | M57: 109 | O57: T/R 13-02 Annex B (25.165-25.557 GHz/>26.173 GHz) | Q57: x | S57: 3 | T57: 6 | U57: 8 | V57: 100 | Z57: used instead of the congested 23 GHz band
A58: SVN | B58: 24500-26500 | C58: X | G58: X | H58: X | N58: 22 | O58: T/R13-02 AnnexB (25.053-25.165GHz/26.061-26.173GHz) | Q58: x | V58: -5
A59: SVN | B59: 24500-26500 | D59: X | G59: X | K59: BWA | N59: planned | O59: T/R13-02 Annex B (24.549–25.053GHz/25.557–26.061GHz) | Q59: x | R59: x | S59: 1 | T59: 3 | U59: 5 | Y59: BWA
A60: SWE | B60: 24500-26500 | D60: X | F60: X | G60: X | H60: X | M60: 5601 | O60: T/R 13-02 Annex B | V60: Y
A61: SWE | B61: 24500-26500 | C61: X | F61: X | O61: ERC / REC / (00) 05 | W61: N
A62: CHE | B62: 24500-26500 | C62: X | F62: X | H62: X | M62: 38 | O62: T/R 13-02 Annex B | R62: 38 | S62: 2 | T62: 2.9 | U62: 5.9 | V62: growth | Y62: problem: SRR
A63: CHE | B63: 24500-26500
A64: GBR | B64: 24500-26500 | C64: X | J64: X | L64: 3570 | O64: T/R 13-02 | P64: X | Q64: X | R64: X
A65: GBR | B65: 24500-26500
C67: =COUNTA(C5:C65) -> 23 | D67: 23 | E67: 0 | F67: 17 | G67: 20 | H67: 17 | I67: 2 | J67: 5 | K67: =COUNTA(K5:K65) -> 2 | L67: =SUM(L5:L65) -> 19453 | M67: =SUM(M5:M65) -> 17705 | N67: =SUM(N5:N65) -> 1646 | P67: =COUNTA(P5:P65) -> 13 | Q67: =COUNTA(Q5:Q65) -> 21 | R67: =COUNTA(R5:R65) -> 17 | S67: =MIN(S$5:S$65) -> 0.05 | T67: =MIN(T$5:T$65) -> 2.21 | U67: =MIN(U$5:U$65) -> 5 | V67: =COUNTA(V5:V65) -> 26 | W67: =COUNTA(W5:W65) -> 6
S68: =MEDIAN(S$5:S$65) -> 1 | T68: =MEDIAN(T$5:T$65) -> 4.9 | U68: =MEDIAN(U$5:U$65) -> 10.9
S69: =MAX(S$5:S$65) -> 12 | T69: =MAX(T$5:T$65) -> 15 | U69: =MAX(U$5:U$65) -> 24
S70: =PERCENTILE(S$5:S$65,[1]TOT!$S$1) -> 4.8 | T70: =PERCENTILE(T$5:T$65,[1]TOT!$S$1) -> 9 | U70: =PERCENTILE(U$5:U$65,[1]TOT!$S$1) -> 21.68

Sheet 26,5-27,5 GHz
A1: all empty but
A2: Country | B2: Frequency band (MHz) | C2: Licensing regime | F2: Application | L2: Number of P-P links | N2: Number of BS | O2: Channel/Frequency plan used (e.g. ERC/ECC Rec. ITU-R Rec.) | P2: Link characteristics | V2: Future trends in the next 5 years
F3: FWA | P3: Capacity | S3: Hop lenght (km)
C4: Link by link | D4: Block | E4: Unlicensed | F4: P-P | G4: P-MP | H4: Network Infrastructure | I4: Broadcasting Infrastructure | J4: No Information available on the application | K4: Other (please indicate) | L4: unidirection | M4: bidirectional (1 bidirectional link counts 1) | N4: (applicable only for P-MP and mesh networks) | P4: LOW (<10 Mbit/s) | Q4: MEDIUM (10 to 100 Mbit/s) | R4: HIGH (>100 Mbit/s) | S4: MIN | T4: Typical figure | U4: MAX | V4: Anticipated growth/reduction (+/-%) | W4: congested | X4: planned relocation to other service/application | Y4: Other (please describe) (see Question 3 of the Questionnaire)
A5: TOTAL | L5: =SUBTOTAL(9,L6:M102) -> 52 | N5: =SUBTOTAL(9,N6:N102) -> 0
A6: CZE | B6: 26500-27500 | K6: MD
A7: CZE
A8: GRC | B8: 26500-27500 | Y8: No use
A9: HUN | B9: 26500-27500 | F9: X | K9: Land military systems. P-P links Harmonized NATO band type 2.(planned) | W9: X
A10: LVA | B10: 26500-27500 | Y10: Military band
A11: PRT | B11: 26500-27500 | K11: SRR, SRD, Military (26.25-27.5 GHz)
A12: RUS | B12: 26500-27500 | C12: X | D12: X | G12: X | H12: X | M12: 26 | O12: F.748 ITU-R | P12: X | Q12: X | R12: X | S12: 2 | T12: 4 | U12: 8
A13: SRB | B13: 26500-27500 | J13: X
A14: SVK | B14: 26500-27500 | Y14: N.A.
C16: =COUNTA(C6:C14) -> 1 | D16: =COUNTA(D6:D14) -> 1 | E16: 0 | F16: 1 | G16: 1 | H16: 1 | I16: 0 | J16: 1 | K16: =COUNTA(K6:K14) -> 3 | L16: =SUM(L6:L14) -> 0 | M16: =SUM(M6:M14) -> 26 | N16: =SUM(N6:N14) -> 0 | P16: =COUNTA(P6:P14) -> 1 | Q16: =COUNTA(Q6:Q14) -> 1 | R16: =COUNTA(R6:R14) -> 1 | S16: =PERCENTILE(S$6:S$14,[1]TOT!$S$1) -> 2 | T16: =PERCENTILE(T$6:T$14,[1]TOT!$S$1) -> 4 | U16: =PERCENTILE(U$6:U$14,[1]TOT!$S$1) -> 8

Sheet 27,5-29,5 GHz
A1: Country | B1: Frequency band (MHz) | C1: Licensing regime | F1: Application | L1: Number of P-P links | N1: Number of BS | O1: Channel/Frequency plan used (e.g. ERC/ECC Rec. ITU-R Rec.) | P1: Link characteristics | V1: Future trends in the next 5 years
F2: FWA | P2: Capacity | S2: Hop lenght (km)
C3: Link by link | D3: Block | E3: Unlicensed | F3: P-P | G3: P-MP | H3: Network Infrastructure | I3: Broadcasting Infrastructure | J3: No Information available on the application | K3: Other (please indicate) | L3: unidirection | M3: bidirectional (1 bidirectional link counts 1) | N3: (applicable only for P-MP and mesh networks) | P3: LOW (<10 Mbit/s) | Q3: MEDIUM (10 to 100 Mbit/s) | R3: HIGH (>100 Mbit/s) | S3: MIN | T3: Typical figure | U3: MAX | V3: Anticipated growth/reduction (+/-%) | W3: congested | X3: planned relocation to other service/application | Y3: Other (please describe) (see Question 3 of the Questionnaire)
A4: TOTAL | L4: =SUBTOTAL(9,L5:M102) -> 4942 | N4: =SUBTOTAL(9,N5:N102) -> 366
A5: TELIASON | B5: 27500-29500 | D5: X | H5: X | M5: 6 | O5: T/R 13-02 Annex C | R5: 6 | S5: 1 | U5: 4 | V5: ++ | Z5: Ericsson TN
A6: TELIASON
A7: AUT | B7: 27500-29500 | C7: X | F7: X | H7: X | M7: 156 | O7: T/R 13-02 Annex C | R7: x | S7: 1 | T7: 2 | U7: 4
A8: AUT
A9: BIH | B9: 27500-29500 | C9: X | D9: X | O9: T/R 13-02 Annex C | V9: +5 | Y9: 24500-26500, 27500-29500 MHz: Shared band between P-P links and FWA. Actually, block assignments for P-P links in process. We still do not have active implemented FWA
A10: BIH | D10: X | F10: X | G10: X
A11: HRV | B11: 27500-29500 | O11: T/R 13-02 Annex C
A12: HRV
A13: CZE | B13: 27500-29050 | D13: X | G13: X | N13: 41 | O13: T/R 13-02 Annex C
A14: CZE | B14: 28050-29500 | C14: X | D14: X | F14: X | G14: X | M14: 189
A15: CYP | B15: 27500-29500 | O15: T/R 13-02 Annex C
A16: CYP
A17: DNK | B17: 27500-29500 | C17: X | N17: 18 | O17: T/R 13-02 Annex C
A18: DNK
A19: EST | B19: 27500-29500 | O19: T/R 13-02 Annex C
A20: EST
A21: FIN | B21: 27500-29500 | C21: X | H21: X | M21: 380 | O21: T/R 13-02 Annex C | Q21: X | R21: X | S21: 0.1 | T21: 1.1 | U21: 7.2 | V21: 0.9 | W21: x | Y21: Local congestion
A22: FIN
A23: FRA | B23: 27500-29500 | C23: X | F23: X | H23: X | O23: T/R 13-02 Annex C
A24: FRA
A25: GER | B25: 27500-29500 | D25: x | F25: x | G25: x | L25: 1424 | N25: 29 | O25: ERC/REC 13-02 | S25: 0.18 | T25: 3 | U25: 13.3
A26: GRC | B26: 27500-29500 | F26: X | G26: X | O26: ECC/DEC/(05)01 | P26: no current use | V26: - | Y26: 27828,5-27940,5 and 27940,5-28444,5 MHz paired with 28948,5-29452,5 new row by EETT allocated to digital P-P and P-MP links
A27: HUN | B27: 27500-29500 | O27: T/R 13-02 Annex C
A28: HUN
A29: ICE | B29: 27500-29500 | O29: T/R 13-02 Annex C
A30: IRL | B30: 27500-29500 | O30: T/R 13-02 Annex C
A31: IRL
A32: ITA | B32: 27500-29500 | D32: X | G32: X | H32: X | N32: not known | O32: T/R 13-02 Annex C | V32: 0.15 | W32: not yet
A33: ITA
A34: LVA | B34: 27500-29500 | O34: T/R 13-02 Annex C
A35: LVA | D35: X | G35: X | N35: 51 | R35: X | V35: 50
A36: LTU | B36: 27500-29500 | C36: X | F36: X | M36: 20 | O36: T/R 13-02 Annex C | Q36: 20
A37: LTU | D37: X | G37: X | I37: X | N37: 8 | O37: 54MHz/3,2MHz | V37: 0 | Y37: LMDS (do not comply T/R 13-02)
A38: LUX | B38: 27500-29500 | O38: T/R 13-02 Annex C
A39: LUX | O39: Nat. freq. plan
A40: NLD | B40: 27500-29500 | C40: X | J40: X | M40: 185 | O40: T/R 13-02 Annex C | R40: x | S40: 2.52 | T40: 4.21 | U40: 6.873 | V40: 30
A41: NLD
A42: NOR | B42: 27500-29500 | D42: X | J42: X | O42: T/R 13-02 Annex C
A43: NOR | C43: X | J43: X | M43: 0
A44: PRT | B44: 27500-29500 | D44: X | G44: X | K44: FSS, HDFSS | N44: 21 | O44: T/R 13-02 Annex C | Q44: X | T44: 5 | V44: 0
A45: PRT
A46: RUS | B46: 27500-29500 | C46: X | D46: X | G46: X | H46: X | M46: 1 | O46: T/R 13-02 Annex C | P46: X | Q46: X | R46: X | S46: 2 | T46: 4 | U46: 8
A47: RUS | O47: F.748 ITU-R
A48: SRB | B48: 27500-29500 | O48: T/R 13-02 Annex C | Y48: it has not been used yet
A49: SRB
A50: SVK | B50: 27500-29500 | C50: X | F50: X | H50: X | M50: 110 | O50: T/R 13-02 Annex C | P50: x | Q50: x | R50: x | S50: 0.2 | T50: 2.5 | U50: 4.5 | V50: 10
A51: SVK | D51: X | G51: X | N51: 15 | P51: x | Q51: x | V51: 10
A52: SVN | B52: 27500-29500 | C52: X | F52: X | H52: X | M52: planned | O52: T/R 13-02 Annex C (27.8285 – 27.9405 GHz/28.8365 – 28.9485 GHz) | Q52: x | S52: 0.5 | T52: 3 | U52: 5
A53: SVN | D53: X | G53: X | N53: planned | O53: T/R13-02 Annex C (27.9405 – 28.4445 GHz/28.9485 – 29.4525 GHz) | Q53: x | R53: x | S53: 0.3 | T53: 2 | U53: 4
A54: SWE | D54: X | F54: X | G54: X | H54: X | O54: T/R 13-02 Annex C | V54: Y
A55: CHE | B55: 27500-29500 | C55: X | F55: X | H55: X | M55: starts now | O55: T/R 13-02 Annex C | V55: growth
A56: CHE
A57: GBR | B57: 27500-29500
A58: GBR
C60: =COUNTA(C5:C58) -> 13 | D60: 15 | E60: 0 | F60: 11 | G60: 13 | H60: 10 | I60: 1 | J60: 3 | K60: =COUNTA(K5:K58) -> 1 | L60: =SUM(L5:L58) -> 1424 | M60: =SUM(M5:M58) -> 1047 | N60: =SUM(N5:N58) -> 183 | P60: =COUNTA(P5:P58) -> 4 | Q60: =COUNTA(Q5:Q58) -> 8 | R60: =COUNTA(R5:R58) -> 8 | S60: =MIN(S$5:S$58) -> 0.1 | T60: =MIN(T$5:T$58) -> 1.1 | U60: =MIN(U$5:U$58) -> 4
S61: =MEDIAN(S$5:S$58) -> 0.5 | T61: =MEDIAN(T$5:T$58) -> 2.75 | U61: =MEDIAN(U$5:U$58) -> 5
S62: =MAX(S$5:S$58) -> 2.52 | T62: =MAX(T$5:T$58) -> 4.21 | U62: =MAX(U$5:U$58) -> 13.3
S63: =PERCENTILE(S$5:S$58,[1]TOT!$S$1) -> 2.312 | T63: =PERCENTILE(T$5:T$58,[1]TOT!$S$1) -> 4.1365 | U63: =PERCENTILE(U$5:U$58,[1]TOT!$S$1) -> 11.18

Sheet 31-31,3 GHz
A1: all empty but
A2: Country | B2: Frequency band (MHz) | C2: Licensing regime | F2: Application | L2: Number of P-P links | N2: Number of BS | O2: Channel/Frequency plan used (e.g. ERC/ECC Rec. ITU-R Rec.) | P2: Link characteristics | V2: Future trends in the next 5 years
F3: FWA | P3: Capacity | S3: Hop lenght (km)
C4: Link by link | D4: Block | E4: Unlicensed | F4: P-P | G4: P-MP | H4: Network Infrastructure | I4: Broadcasting Infrastructure | J4: No Information available on the application | K4: Other (please indicate) | L4: unidirection | M4: bidirectional (1 bidirectional link counts 1) | N4: (applicable only for P-MP and mesh networks) | P4: LOW (<10 Mbit/s) | Q4: MEDIUM (10 to 100 Mbit/s) | R4: HIGH (>100 Mbit/s) | S4: MIN | T4: Typical figure | U4: MAX | V4: Anticipated growth/reduction (+/-%) | W4: congested | X4: planned relocation to other service/application | Y4: Other (please describe) (see Question 3 of the Questionnaire)
A5: TOTAL | L5: =SUBTOTAL(9,L6:M101) -> 0 | N5: =SUBTOTAL(9,N6:N101) -> 0
A6: CZE | B6: 31000-31300 | C6: X | F6: X | O6: ECC/REC/(02)02 | V6: 5
A7: GER | B7: 31000-31300 | O7: ECC/REC/(02)02 | Q7: x | Y7: not open
A8: HUN | B8: 31000-31300 | C8: X | F8: X | O8: ECC/REC/(02)02 | P8: X | Q8: X | R8: X | T8: 5 | W8: x | Y8: FDD mode PP systems
A9: LVA | B9: 31000-31300 | C9: ? | O9: ECC/REC/(02)02 | Y9: Fixed links, FWA
A10: LTU | B10: 31000-31300 | C10: X | F10: X | L10: 0 | M10: 0 | O10: ECC/REC/(02)02
A11: LUX | B11: 31000-31300 | C11: X | F11: X | H11: X | L11: 0 | M11: 0 | O11: ECC/REC/(02)02 | V11: N/A | W11: NO | X11: NO
A12: LUX | O12: Nat. freq. plan
A13: PRT | B13: 31000-31300 | O13: ECC/REC/(02)02 | V13: Planned
A14: RUS | B14: 31000-31300 | C14: No | D14: No | O14: ECC/REC/(02)02
A15: GBR | B15: 31000-31300 | C15: X | K15: X | O15: national arrangement
C17: =COUNTA(C6:C15) -> 7 | D17: =COUNTA(D6:D15) -> 1 | E17: 0 | F17: 4 | G17: 0 | H17: 1 | I17: 0 | J17: 0 | K17: =COUNTA(K6:K15) -> 1 | L17: =SUM(L6:L15) -> 0 | M17: =SUM(M6:M15) -> 0 | N17: =SUM(N6:N15) -> 0 | P17: =COUNTA(P6:P15) -> 1 | Q17: =COUNTA(Q6:Q15) -> 2 | R17: =COUNTA(R6:R15) -> 1

Sheet 31,8-33,4 GHz
A1: Country | B1: Frequency band (MHz) | C1: Licensing regime | F1: Application | L1: Number of P-P links | N1: Number of BS | O1: Channel/Frequency plan used (e.g. ERC/ECC Rec. ITU-R Rec.) | P1: Link characteristics | V1: Future trends in the next 5 years
F2: FWA | P2: Capacity | S2: Hop lenght (km)
C3: Link by link | D3: Block | E3: Unlicensed | F3: P-P | G3: P-MP | H3: Network Infrastructure | I3: Broadcasting Infrastructure | J3: No Information available on the application | K3: Other (please indicate) | L3: unidirection | M3: bidirectional (1 bidirectional link counts 1) | N3: (applicable only for P-MP and mesh networks) | P3: LOW (<10 Mbit/s) | Q3: MEDIUM (10 to 100 Mbit/s) | R3: HIGH (>100 Mbit/s) | S3: MIN | T3: Typical figure | U3: MAX | V3: Anticipated growth/reduction (+/-%) | W3: congested | X3: planned relocation to other service/application | Y3: Other (please describe) (see Question 3 of the Questionnaire)
A4: TOTAL | L4: =SUBTOTAL(9,L5:M102) -> 10354 | N4: =SUBTOTAL(9,N5:N102) -> 0
A5: TELIASON | B5: 31800-33400 | C5: X | H5: X | M5: 1085 | O5: ERC/REC/(01)02 | Q5: 996 | R5: 89 | S5: 0.2 | U5: 8.7 | V5: + | Z5: NEC NEO
A6: AUT | B6: 31800-33400
A7: BIH | B7: 31800-33400
A8: HRV | B8: 31800-33400
A9: CZE | B9: 31800-33400 | C9: X | F9: X | M9: 50 | O9: ERC/REC/(01)02 | V9: 50
A10: CYP | B10: 31800-33400
A11: DNK | B11: 31800-33400 | D11: X | M11: No info | O11: ERC/REC/(01)02
A12: EST | B12: 31800-33400
A13: FIN | B13: 31800-33400 | C13: X | H13: X | M13: 1 | O13: ERC/REC/(01)02 | Q13: X | R13: X | V13: 100
A14: FRA | B14: 31800-33400 | C14: X | D14: X | F14: X | H14: X | O14: ERC/REC/(01)02
A15: GER | B15: 31800-33400 | C15: x | F15: x | L15: 1466 | O15: ERC/REC/(01)02 | Q15: x | S15: 0.1 | T15: 2.3 | U15: 6.8 | V15: 20
A16: GRC | B16: 31800-33400 | Y16: No use
A17: HUN | B17: 31800-33400 | O17: ERC/REC/(01)02 | W17: x
A18: HUN | O18: ECC/REC/(04)06 | W18: x
A19: ICE | B19: 31800-33400
A20: IRL | B20: 31800-33400
A21: ITA | B21: 31800-33400
A22: LVA | B22: 31800-33400 | D22: X | F22: X | M22: 43 | O22: ERC/REC/(01)02 | R22: X | S22: 0.2 | T22: 3 | U22: 4.6 | V22: 100
A23: LTU | B23: 31800-33400 | C23: X | F23: X | M23: 28 | O23: ERC/REC/(01)02
A24: LUX | B24: 31800-33400 | C24: X | F24: X | H24: X | L24: 0 | M24: 0 | O24: ERC/REC/(01)02 | V24: N/A | W24: NO | X24: NO
A25: LUX | O25: Nat. freq. plan
A26: NLD | B26: 31800-33400 | C26: X | J26: X | M26: 515 | O26: ERC/REC/(01)02 | P26: x | Q26: x | R26: x | S26: 0.253 | T26: 3.57 | U26: 6.27 | V26: 30
A27: NOR | B27: 31800-33400 | D27: X | J27: X | O27: ERC/REC/(01)02
A28: NOR | C28: X | J28: X | M28: 0
A29: PRT | B29: 31800-33400 | C29: X | F29: X | G29: X | O29: ERC/REC/(01)02 | Y29: Not used at the moment.
A30: RUS | B30: 31800-33400 | C30: No | D30: No | O30: ERC/REC/(01)02
A31: RUS | O31: ECC/REC/(04)06
A32: SRB | B32: 31800-33400 | O32: ERC/REC/(01)02 | Y32: it have not been used yet
A33: SVK | B33: 31800-33400 | O33: ERC/REC/(01)02 | V33: 100 | Y33: operation expected
A34: SVN | B34: 31800-33400 | C34: x | F34: X | H34: X | M34: planned Upper part | O34: ERC/REC/(01)02 | Q34: x | R34: x | S34: 0.2 | T34: 2 | U34: 4
A35: SVN | D35: x | G35: X | K35: BWA | M35: planned Lower part | O35: ERC/REC/(01)02/ ECC/REC/(04)06 | Q35: x | R35: x | S35: 0.2 | T35: 1 | U35: 3 | Y35: BWA
A36: SWE | B36: 31800-33400 | M36: 1887 | O36: ERC/REC/(01)02
A37: SWE | C37: X | F37: X | O37: ECC/REC/(04)06 | V37: Y | W37: N
A38: CHE | B38: 31800-33400 | C38: X | F38: X | H38: X | M38: 102 | O38: ERC/REC/(01)02 | Q38: 69 | R38: 33 | S38: 0.5 | T38: 2.3 | U38: 4.6 | V38: growth
A39: GBR | B39: 31800-33400 | Y39: it have not been used yet
C41: =COUNTA(C5:C39) -> 14 | D41: 6 | E41: 0 | F41: 10 | G41: 2 | H41: 6 | I41: 0 | J41: 3 | K41: =COUNTA(K5:K39) -> 1 | L41: =SUM(L5:L39) -> 1466 | M41: =SUM(M5:M39) -> 3711 | N41: =SUM(N5:N39) -> 0 | P41: =COUNTA(P5:P39) -> 1 | Q41: =COUNTA(Q5:Q39) -> 7 | R41: =COUNTA(R5:R39) -> 7 | S41: =MIN(S$5:S$39) -> 0.1 | T41: =MIN(T$5:T$39) -> 1 | U41: =MIN(U$5:U$39) -> 3 | V41: =COUNTA(V5:V39) -> 10 | W41: =COUNTA(W5:W39) -> 4
S42: =MEDIAN(S$5:S$39) -> 0.2 | T42: =MEDIAN(T$5:T$39) -> 2.3 | U42: =MEDIAN(U$5:U$39) -> 4.6
S43: =MAX(S$5:S$39) -> 0.5 | T43: =MAX(T$5:T$39) -> 3.57 | U43: =MAX(U$5:U$39) -> 8.7
S44: =PERCENTILE(S$5:S$39,[1]TOT!$S$1) -> 0.4259 | T44: =PERCENTILE(T$5:T$39,[1]TOT!$S$1) -> 3.4275 | U44: =PERCENTILE(U$5:U$39,[1]TOT!$S$1) -> 8.13

Sheet 36-37 GHz
A1: Country | B1: Frequency band (MHz) | C1: Licensing regime | F1: Application | L1: Number of P-P links | N1: Number of BS | O1: Channel/Frequency plan used (e.g. ERC/ECC Rec. ITU-R Rec.) | P1: Link characteristics | V1: Future trends in the next 5 years
F2: FWA | P2: Capacity | S2: Hop lenght (km)
C3: Link by link | D3: Block | E3: Unlicensed | F3: P-P | G3: P-MP | H3: Network Infrastructure | I3: Broadcasting Infrastructure | J3: No Information available on the application | K3: Other (please indicate) | L3: unidirection | M3: bidirectional (1 bidirectional link counts 1) | N3: (applicable only for P-MP and mesh networks) | P3: LOW (<10 Mbit/s) | Q3: MEDIUM (10 to 100 Mbit/s) | R3: HIGH (>100 Mbit/s) | S3: MIN | T3: Typical figure | U3: MAX | V3: Anticipated growth/reduction (+/-%) | W3: congested | X3: planned relocation to other service/application | Y3: Other (please describe) (see Question 3 of the Questionnaire)
A4: TOTAL | L4: =SUBTOTAL(9,L5:M101) -> 264 | N4: =SUBTOTAL(9,N5:N101) -> 0
A5: RUS | B5: 36000-37000 | C5: X | D5: X | H5: X | M5: 132 | O5: F.749 ITU-R | P5: X | Q5: X | R5: X | S5: 0.1 | T5: 3 | U5: 5
C7: =COUNTA(C5) -> 1 | D7: 1 | E7: 0 | F7: 0 | G7: 0 | H7: 1 | I7: 0 | J7: 0 | K7: =COUNTA(K5) -> 0 | L7: =SUM(L5) -> 0 | M7: =SUM(M5) -> 132 | N7: =SUM(N5) -> 0 | P7: =COUNTA(P5) -> 1 | Q7: =COUNTA(Q5) -> 1 | R7: =COUNTA(R5) -> 1 | S7: =PERCENTILE(S$5:S$6,[1]TOT!$S$1) -> 0.1 | T7: =PERCENTILE(T$5:T$6,[1]TOT!$S$1) -> 3 | U7: =PERCENTILE(U$5:U$6,[1]TOT!$S$1) -> 5

Sheet 37-39,5 GHz
A1: Country | B1: Frequency band (MHz) | C1: Licensing regime | F1: Application | L1: Number of P-P links | N1: Number of BS | O1: Channel/Frequency plan used (e.g. ERC/ECC Rec. ITU-R Rec.) | P1: Link characteristics | V1: Future trends in the next 5 years
F2: FWA | P2: Capacity | S2: Hop lenght (km)
C3: Link by link | D3: Block | E3: Unlicensed | F3: P-P | G3: P-MP | H3: Network Infrastructure | I3: Broadcasting Infrastructure | J3: No Information available on the application | K3: Other (please indicate) | L3: unidirection | M3: bidirectional (1 bidirectional link counts 1) | N3: (applicable only for P-MP and mesh networks) | P3: LOW (<10 Mbit/s) | Q3: MEDIUM (10 to 100 Mbit/s) | R3: HIGH (>100 Mbit/s) | S3: MIN | T3: Typical figure | U3: MAX | V3: Anticipated growth/reduction (+/-%) | W3: congested | X3: planned relocation to other service/application | Y3: Other (please describe) (see Question 3 of the Questionnaire)
A4: TOTAL | L4: =SUBTOTAL(9,L5:M102) -> 239846 | N4: =SUBTOTAL(9,N5:N102) -> 0
A5: TELIASON | B5: 37000-39500 | C5: X | H5: X | M5: 173 | O5: T/R 12-01 | P5: 95 | Q5: 78 | S5: 0.1 | U5: 5.4 | V5: 0 | Z5: Ericsson ML
A6: AUT | B6: 37000-39500 | C6: X | F6: X | H6: X | M6: 5273 | O6: T/R 12-01 | P6: x | Q6: x | R6: x | S6: 1 | T6: 5 | U6: 17
A7: BIH | B7: 37000-39500 | C7: X | H7: X | L7: 1 | M7: 23 | O7: T/R 12-01 | P7: X | S7: 0.1 | T7: 1 | U7: 5 | V7: +5
A8: HRV | B8: 37000-39500 | C8: X | H8: X | M8: 335 | O8: T/R 12-01 | Q8: x | S8: 0.07 | T8: 0.42 | U8: 4.9 | V8: 20
A9: CZE | B9: 37000-39500 | C9: X | F9: X | M9: 5603 | O9: T/R 12-01 | V9: 5
A10: CYP | B10: 37000-39500 | O10: T/R 12-01
A11: DNK | B11: 37000-39500 | C11: X | M11: 158 | O11: T/R 12-01
A12: DNK | D12: X | M12: No info
A13: EST | B13: 37000-39500 | M13: 232 | O13: T/R 12-01 | P13: 169 | Q13: 63 | S13: 0.7 | T13: 5 | U13: 10 | V13: +10
A14: FIN | B14: 37000-39500 | C14: X | H14: X | M14: 45 | O14: T/R 12-01 | Q14: X | R14: X | S14: 0.2 | T14: 1.7 | U14: 6.1 | V14: 0.1
A15: FRA | B15: 37000-39500 | C15: X | D15: X | F15: X | H15: X | M15: 8304 | O15: T/R 12-01 | P15: 2223 | Q15: 6057 | R15: 24 | S15: 0.1 | T15: 0<x>6 | U15: 15 | V15: +8%
A16: GER | B16: 37000-39500 | C16: x | F16: x | L16: 30594 | O16: ERC/REC 12-01 | Q16: x | S16: 0.02 | T16: 2.3 | U16: 13.2
A17: GRC | B17: 37000-39500 | C17: X | H17: X | M17: 984 | O17: T/R 12-01 | Q17: X | R17: X | S17: 0.05 | T17: 1.5 | U17: 6.8 | V17: 0.2
A18: HUN | B18: 37000-39500 | C18: X | F18: X | M18: 6454 | O18: T/R 12-01 | P18: X | Q18: X | R18: X | T18: 4
A19: HUN | K19: 37926-38178 and 39186-39500 MHz Non-Civil P-P links. 39186-39500 MHz Emergency services. 37-39.5 GHz NJFA military requirement for existing and future fixed systems. | M19: 100 | O19: ERC/DEC/(00)02 | P19: X | Q19: X | R19: X
A20: ICE | B20: 37000-39500 | C20: X | F20: X | M20: 1 | O20: T/R 12-01 | P20: 1 | T20: 5
A21: IRL | B21: 37000-39500 | C21: X | H21: X | M21: 2924 | O21: T/R 12-01 | P21: X | Q21: X | R21: X | S21: 0.016 | T21: 1.9 | U21: 10.7 | V21: 31 | W21: X
A22: IRL | O22: National Legislation: S.I. 370 of 2009
A23: ITA | B23: 37000-39500 | C23: X | D23: X | F23: X | H23: X | M23: 10412 | O23: T/R 12-01 | P23: X | Q23: X | R23: X | T23: 0,8/10 | V23: 0.25 | W23: yes
A24: LVA | B24: 37000-39500 | C24: X | F24: X | M24: 27 | O24: T/R 12-01 | R24: X | S24: 0.2 | T24: 3 | U24: 4.7 | V24: 20
A25: LTU | B25: 37000-39500 | C25: X | F25: X | M25: 268 | O25: T/R 12-01 | Q25: 268
A26: LUX | B26: 37000-39500 | C26: X | F26: X | H26: X | I26: X | L26: 1 | M26: 110 | O26: T/R 12-01 | Q26: X | S26: 0.13 | T26: 1-6 | U26: 5.4 | V26: N/A | W26: NO | X26: NO
A27: LUX | O27: Nat. freq. plan
A28: NLD | B28: 37000-39500 | C28: X | J28: X | M28: 6377 | O28: T/R 12-01 | P28: x | Q28: x | R28: x | S28: 0.05 | T28: 2.15 | U28: 10.266 | V28: 30
A29: NOR | B29: 37000-39500 | D29: x | J29: X | O29: T/R 12-01 Annex A
A30: NOR | C30: X | J30: X | M30: 64 | R30: x | S30: 0.1 | T30: 3.6 | U30: 16.4
A31: NOR | B31: 39500-40500
A32: PRT | B32: 37000-39500 | C32: X | F32: X | H32: X | K32: FS | M32: 617 | O32: T/R 12-01 | P32: X | Q32: X | R32: X | S32: 0 | T32: 2 | U32: 6 | V32: 5
A33: RUS | B33: 37000-39500 | C33: X | D33: X | H33: X | M33: 16865 | O33: T/R 12-01 | P33: X | Q33: X | R33: X | S33: 0.1 | T33: 3 | U33: 5
A34: RUS | O34: F.749 ITU-R
A35: SRB | B35: 37000-39500 | C35: X | H35: X | M35: 426 | O35: T/R 12-01 | P35: X | Q35: X | R35: X | S35: 0.16 | T35: 1.4 | U35: 4.86 | V35: 300
A36: SVK | B36: 37000-39500 | C36: X | F36: X | H36: X | M36: 1600 | O36: T/R 12-01 | P36: x | Q36: x | R36: x | S36: 0.1 | T36: 2 | U36: 9 | V36: 20
A37: SVN | B37: 37000-39500 | C37: X | F37: X | H37: X | M37: 580 | O37: T/R 12-01 | Q37: x | S37: 0.1 | T37: 2 | U37: 4 | V37: 30 | W37: x*** | Z37: HI/LO problem
A38: SVN | C38: X | F38: X | H38: X
A39: SWE | B39: 37000-39500 | M39: 6188 | O39: T/R 12-01
A40: SWE | C40: X | F40: X | O40: T/R 12-01 | V40: Y | W40: N
A41: CHE | B41: 37000-39500 | C41: X | F41: X | H41: X | M41: 3134 | O41: T/R 12-01 | P41: 1248 | Q41: 1886 | S41: 1 | T41: 2.6 | U41: 7.9 | V41: unchanged | W41: city areas congested, HIGH/LOW situation
A42: GBR | B42: 37000-39500 | C42: X | J42: X | L42: 12050 | O42: T/R 12-01 | P42: X | Q42: X | R42: X
C44: =COUNTA(C5:C42) -> 28 | D44: 5 | E44: 0 | F44: 16 | G44: 0 | H44: 17 | I44: 1 | J44: 4 | K44: =COUNTA(K5:K42) -> 2 | L44: =SUM(L5:L42) -> 42646 | M44: =SUM(M5:M42) -> 77277 | N44: =SUM(N5:N42) -> 0 | P44: =COUNTA(P5:P42) -> 17 | Q44: =COUNTA(Q5:Q42) -> 22 | R44: =COUNTA(R5:R42) -> 16 | S44: =MIN(S$5:S$42) -> 0 | T44: =MIN(T$5:T$42) -> 0.42 | U44: =MIN(U$5:U$42) -> 4 | V44: =COUNTA(V5:V42) -> 19 | W44: =COUNTA(W5:W42) -> 6
S45: =MEDIAN(S$5:S$42) -> 0.1 | T45: =MEDIAN(T$5:T$42) -> 2.3 | U45: =MEDIAN(U$5:U$42) -> 6.1
S46: =MAX(S$5:S$42) -> 1 | T46: =MAX(T$5:T$42) -> 5 | U46: =MAX(U$5:U$42) -> 17
S47: =PERCENTILE(S$5:S$42,[1]TOT!$S$1) -> 1 | T47: =PERCENTILE(T$5:T$42,[1]TOT!$S$1) -> 5 | U47: =PERCENTILE(U$5:U$42,[1]TOT!$S$1) -> 16.46

Sheet 39,5-40,5 GHz
A1: all empty
A3: LVA indicated "FSS earth stations" in the notes

Sheet 40,5-43,5 GHz
A1: Country | B1: Frequency band (MHz) | C1: Licensing regime | F1: Application | L1: Number of P-P links | N1: Number of BS | O1: Channel/Frequency plan used (e.g. ERC/ECC Rec. ITU-R Rec.) | P1: Link characteristics | V1: Future trends in the next 5 years
F2: FWA | P2: Capacity | S2: Hop lenght (km)
C3: Link by link | D3: Block | E3: Unlicensed | F3: P-P | G3: P-MP | H3: Network Infrastructure | I3: Broadcasting Infrastructure | J3: No Information available on the application | K3: Other (please indicate) | L3: unidirection | M3: bidirectional (1 bidirectional link counts 1) | N3: (applicable only for P-MP and mesh networks) | P3: LOW (<10 Mbit/s) | Q3: MEDIUM (10 to 100 Mbit/s) | R3: HIGH (>100 Mbit/s) | S3: MIN | T3: Typical figure | U3: MAX | V3: Anticipated growth/reduction (+/-%) | W3: congested | X3: planned relocation to other service/application | Y3: Other (please describe) (see Question 3 of the Questionnaire)
A4: TOTAL | L4: =SUBTOTAL(9,L5:M101) -> 146 | N4: =SUBTOTAL(9,N5:N101) -> 6
A5: TELIASON | B5: 40500-43500 | O5: ECC/REC/(01)04
A6: AUT | B6: 40500-43500 | O6: ECC/REC/(01)04
A7: BIH | B7: 40500-43500 | O7: ECC/REC/(01)04
A8: HRV | B8: 40500-43500 | O8: ECC/REC/(01)04
A9: CZE | B9: 40500-43500 | C9: X | F9: X | O9: ECC/REC/(01)04 | V9: yes | Y9: P-P and P-MP planned
A10: CYP | B10: 40500-43500 | O10: ECC/REC/(01)04
A11: DNK | B11: 40500-43500 | O11: ECC/REC/(01)04
A12: EST | B12: 40500-43500 | O12: ECC/REC/(01)04
A13: FIN | B13: 40500-43500 | C13: X | H13: X | O13: ECC/REC/(01)04 | Q13: X | R13: X | Y13: Opens 2011
A14: FRA | B14: 40500-43500 | O14: ECC/REC/(01)04
A15: GER | B15: 40500-43500 | C15: x | F15: x | O15: ECC/REC/(01)04 | R15: x | Y15: will be opened 2011
A16: GRC | B16: 40500-43500 | V16: No Use
A17: HUN | B17: 40500-43500 | O17: ECC/REC/(01)04
A18: ICE | B18: 40500-43500 | O18: ECC/REC/(01)04
A19: IRL | B19: 40500-43500 | O19: ECC/REC/(01)04
A20: ITA | B20: 40500-43500 | O20: ECC/REC/(01)04
A21: LVA | B21: 40500-43500 | D21: X | O21: ECC/REC/(01)04 | Y21: MWS (MVDS)
A22: LTU | B22: 40500-43500 | D22: X | G22: X | N22: 0 | O22: ECC/REC/(01)04
A23: LUX | B23: 40500-43500 | O23: ///
A24: NLD | B24: 40500-43500 | C24: X | O24: ECC/REC/(01)04 | V24: 100
A25: NOR | B25: 40500-43500 | D25: X | J25: X | O25: ECC/REC/(01)04 Annex A
A26: NOR | C26: X | J26: X | M26: 0
A27: PRT | B27: 40500-43500 | K27: MWS, MVDS | O27: ECC/REC/(01)04 | V27: Planned
A28: RUS | B28: 40500-43500 | C28: X | D28: X | G28: X | H28: X | M28: 73 | O28: ECC/REC/(01)04 | P28: X | Q28: X | R28: X | S28: 0.1 | T28: 3 | U28: 5
A29: SRB | B29: 40500-43500 | O29: ECC/REC/(01)04 | Y29: it has not been used yet
A30: SVK | B30: 40500-43500 | D30: X | G30: X | I30: X | N30: 3 | O30: ECC/REC/(01)04 | Q30: x
A31: SVN | B31: 40500-43500 | D31: X | G31: X | K31: MWS | O31: ECC/REC/(01)04 | V31: planned Upper part | Y31: MWS
A32: SVN | C32: X | F32: X | H32: X | O32: ECC/REC/(01)04 | V32: planned Lower part (only small part)
A33: SWE | B33: 40500-43500 | O33: ECC/REC/(01)04 (New ITU-R Rec under dev.) | V33: Y | W33: N | Y33: Blockassignments?
A34: CHE | B34: 40500-43500 | C34: X | F34: X | H34: X | O34: ECC/REC/(01)04 | V34: growth. Starts now
C36: =COUNTA(C5:C34) -> 8 | D36: 6 | E36: 0 | F36: 4 | G36: 4 | H36: 4 | I36: 1 | J36: 2 | K36: =COUNTA(K5:K34) -> 2 | L36: =SUM(L5:L34) -> 0 | M36: =SUM(M5:M34) -> 73 | N36: =SUM(N5:N34) -> 3 | P36: =COUNTA(P5:P34) -> 1 | Q36: =COUNTA(Q5:Q34) -> 3 | R36: =COUNTA(R5:R34) -> 3 | S36: =PERCENTILE(S$5:S$34,[1]TOT!$S$1) -> 0.1 | T36: =PERCENTILE(T$5:T$34,[1]TOT!$S$1) -> 3 | U36: =PERCENTILE(U$5:U$34,[1]TOT!$S$1) -> 5 | V36: =COUNTA(V5:V34) -> 8 | W36: =COUNTA(W5:W34) -> 1 | X36: =COUNTA(X5:X34) -> 0 | Y36: =COUNTA(Y5:Y34) -> 7

Sheet above 43,5 GHz
A1: Country | B1: Frequency band (MHz) | C1: Licensing regime | F1: Application | L1: Number of P-P links | N1: Number of BS | O1: Channel/Frequency plan used (e.g. ERC/ECC Rec. ITU-R Rec.) | P1: Link characteristics | V1: Future trends in the next 5 years
F2: FWA | P2: Capacity | S2: Hop lenght (km)
C3: Link by link | D3: Block | E3: Unlicensed | F3: P-P | G3: P-MP | H3: Network Infrastructure | I3: Broadcasting Infrastructure | J3: No Information available on the application | K3: Other (please indicate) | L3: unidirection | M3: bidirectional (1 bidirectional link counts 1) | N3: (applicable only for P-MP and mesh networks) | P3: LOW (<10 Mbit/s) | Q3: MEDIUM (10 to 100 Mbit/s) | R3: HIGH (>100 Mbit/s) | S3: MIN | T3: Typical figure | U3: MAX | V3: Anticipated growth/reduction (+/-%) | W3: congested | X3: planned relocation to other service/application | Y3: Other (please describe) (see Question 3 of the Questionnaire)
A4: TOTAL | L4: =SUBTOTAL(9,L5:M129) -> 3310 | N4: =SUBTOTAL(9,N5:N134) -> 0
A5: CZE | B5: 47200-48500 | C5: X | F5: X | Y5: incr. of utilisation expected
A6: LVA | B6: 47200-48500 | Y6: SAP/SAB, HAPS
A7: POR | B7: 47200-48500 | K7: HDFSS (47.5-47.9 GHz)
A8: RUS | B8: 47200-48500
C9: =COUNTA(C5:C8) -> 1 | D9: =COUNTA(D5:D8) -> 0 | E9: 0 | F9: 1 | G9: 0 | H9: 0 | I9: 0 | J9: 0 | L9: =SUM(L5:L8) -> 0 | M9: =SUM(M5:M8) -> 0 | N9: =SUM(N5:N8) -> 0 | P9: =COUNTA(P5:P8) -> 0 | Q9: =COUNTA(Q5:Q8) -> 0 | R9: =COUNTA(R5:R8) -> 0
A10: CZE | B10: 48500-50200 | C10: X | F10: X | O10: ERC/REC 12-10 | Y10: incr. of utilisation expected
A11: HUN | B11: 48500-50200 | F11: X | K11: Non-Civil Digital P-P links | O11: ERC/REC 12-10
A12: LVA | B12: 48500-50200 | C12: X | O12: ERC/REC 12-10 | Y12: Fixed links
A13: LTU | B13: 48500-50200 | C13: X | F13: X | L13: 0 | M13: 0 | O13: ERC/REC 12-10
A14: LUX | B14: 48500-50200 | C14: X | F14: X | H14: X | L14: 0 | M14: 0 | O14: ERC/REC 12-10 | V14: N/A | W14: NO | X14: NO
A15: NOR | B15: 48500-50200 | C15: X | D15: X | J15: X | M15: 0 | O15: ERC/REC 12-10
A16: POR | B16: 48500-50200 | K16: HDFSS (48.2-48.54 GHz and 49.44-50.2 GHz) | O16: ERC/REC 12-10 | V16: Planned
A17: RUS | B17: 48500-50200 | O17: ERC/REC 12-10
A18: SRB | B18: 48500-50200 | O18: ERC/REC 12-10 | Y18: It has not been used yet
A19: SVN | B19: 48500-50200 | M19: planned | O19: ERC/REC 12-10
C20: =COUNTA(C10:C19) -> 5 | D20: =COUNTA(D10:D19) -> 1 | E20: 0 | F20: 4 | G20: 0 | H20: 1 | I20: 0 | J20: 1 | L20: =SUM(L10:L19) -> 0 | M20: =SUM(M10:M19) -> 0 | N20: =SUM(N10:N19) -> 0 | P20: =COUNTA(P10:P19) -> 0 | Q20: =COUNTA(Q10:Q19) -> 0 | R20: =COUNTA(R10:R19) -> 0
A21: CZE | B21: 50400-51400 | Y21: incr. of utilisation expected
A22: DNK | B22: 50400-51400 | C22: X | M22: 1
A23: LVA | B23: 50400-51400 | Y23: Future satellite and terrestrial applications
A24: POR | B24: 50400-51400 | J24: X
A25: RUS | B25: 50400-51400
A26: CZE | B26: 51400-52600 | O26: ERC/REC 12-11 | Y26: incr. of utilisation expected
A27: GER | B27: 51400-52600 | C27: x | F27: x | N27: 0 | O27: ERC/REC 12-11 | Q27: x
A28: HUN | B28: 51400-52600 | C28: X | F28: X | O28: ERC/REC 12-11 | AA28: 30 original value
A29: LVA | B29: 51400-52600 | C29: X | O29: ERC/REC 12-11 | Y29: Fixed links
A30: LTU | B30: 51400-52600 | C30: X | F30: X | L30: 0 | M30: 0 | O30: ERC/REC 12-11
A31: LUX | B31: 51400-52600 | C31: X | F31: X | H31: X | L31: 0 | M31: 0 | O31: ERC/REC 12-11 | V31: N/A | W31: NO | X31: NO
A32: POR | B32: 51400-52600 | J32: X | O32: ERC/REC 12-11 | V32: Planned
A33: RUS | B33: 51400-52600 | O33: ERC/REC 12-11
A34: SRB | B34: 51400-52600 | O34: ERC/REC 12-11 | Y34: It has not been used yet
A35: SVN | B35: 51400-52600 | C35: X | F35: X | H35: X | M35: planned | O35: ERC/REC 12-11 | Q35: x | R35: x | S35: 0.1 | T35: 2 | U35: 4
A36: CHE | B36: 51400-52600 | D36: X | F36: X | H36: X | M36: 837 | O36: ERC/REC 12-11 | P36: 193 | Q36: 644 | S36: 0.15 | T36: 0.8 | U36: 2.8 | V36: growth
A37: GBR | B37: 51400-52600 | C37: X | L37: 0 | O37: ERC/REC 12-11
C38: =COUNTA(C21:C37) -> 8 | D38: =COUNTA(D21:D37) -> 1 | E38: 0 | F38: 6 | G38: 0 | H38: 3 | I38: 0 | J38: 2 | L38: =SUM(L21:L37) -> 0 | M38: =SUM(M21:M37) -> 838 | N38: =SUM(N21:N37) -> 0 | P38: =COUNTA(P21:P37) -> 1 | Q38: =COUNTA(Q21:Q37) -> 3 | R38: =COUNTA(R21:R37) -> 1 | S38: =PERCENTILE(S$21:S$37,[1]TOT!$S$1) -> 0.1475 | T38: =PERCENTILE(T$21:T$37,[1]TOT!$S$1) -> 1.94 | U38: =PERCENTILE(U$21:U$37,[1]TOT!$S$1) -> 3.94
A39: RUS | B39: 55780-57000 | O39: ERC/REC 12-12
A40: CZE | B40: 55780-57000 | O40: ERC/REC 12-12 | Y40: incr. of utilisation expected
A41: GER | B41: 55780-57000 | N41: 0 | O41: ERC/REC 12-12 | Q41: x | Y41: not open
A42: GRC | B42: 55780-57000 | O42: ERC/REC 12-12 Annex 3 | V42: Maximum PFD=-26dBW/MHz | Y42: No current use. Allocation for digital P-P links
A43: HUN | B43: 55780-57000 | C43: X | F43: X | O43: ERC/REC 12-12 | T43: 30
A44: LVA | B44: 55780-57000 | C44: X | O44: ERC/REC 12-12 | Y44: Fixed links
A45: LUX | B45: 55780-57000 | C45: X | F45: X | H45: X | L45: 0 | M45: 0 | O45: ERC/REC 12-12 | V45: N/A | W45: NO | X45: NO
A46: NOR | B46: 55780-57000 | C46: X | D46: X | J46: X | M46: 0 | O46: ERC/REC 12-09
A47: POR | B47: 55780-57000 | K47: EESS | O47: ERC/REC 12-12 | V47: Planned
A48: SRB | B48: 55780-57000 | O48: ERC/REC 12-12 | Y48: It has not been used yet
A49: SWE | B49: 55780-57000 | E49: X | F49: X | O49: ERC/REC 12-12 | W49: N
A50: SVN | B50: 55780-57000 | M50: planned | O50: ERC/REC 12-12
A51: CHE | B51: 55780-57000 | D51: X | F51: X | H51: X | M51: 0 | O51: ERC/REC 12-12 | V51: no equipment available
A52: GBR | B52: 55780-57000 | C52: X | L52: 0 | O52: ERC/REC 12-12
C53: =COUNTA(C39:C52) -> 5 | D53: =COUNTA(D39:D52) -> 2 | E53: 1 | F53: 4 | G53: 0 | H53: 2 | I53: 0 | J53: 1 | L53: =SUM(L39:L52) -> 0 | M53: =SUM(M39:M52) -> 0 | N53: =SUM(N39:N52) -> 0 | P53: =COUNTA(P39:P52) -> 0 | Q53: =COUNTA(Q39:Q52) -> 1 | R53: =COUNTA(R39:R52) -> 0
A54: CHE | B54: 57000-58000 | D54: X | F54: X | H54: X | M54: 292 | O54: ECC/REC/(09)01 | P54: 292 | S54: 0.1 | T54: 0.3 | U54: 2.2 | V54: reduction
A55: CZE | B55: 57000-59000 | C55: X | F55: X | M55: 3 | O55: ECC/REC/(09)01 | V55: yes
A56: GRC | B56: 57000-59000 | O56: ERC/REC 12-09 Annex A | V56: Radio Frequency Rights of Use not required. Maximum EIRP=15dBW | Y56: No current use. Allocation for digital P-P links
A57: HUN | B57: 57000-59000 | C57: X | F57: X | G57: X | O57: ECC/REC/(09)01 | AA57: 25 original
A58: IRL | B58: 57000-59000 | C58: X | H58: X | M58: 1 | O58: ECC/REC/(09)01 National Legislation: S.I. 370 of 2009 | P58: X | S58: 1.4 | T58: 1.4 | U58: 1.4 | V58: 0
A59: LVA | B59: 57000-59000 | E59: X | O59: ECC/REC/(09)01 | Y59: SRD, Fixed links, FWA
A60: LUX | B60: 57000-59000 | C60: X | F60: X | H60: X | L60: 0 | M60: 0 | O60: ECC/REC/(09)01 | V60: N/A | W60: NO | X60: NO
A61: POR | B61: 57000-59000 | C61: ? | D61: ? | F61: X | G61: X | H61: X | K61: EESS, SRD | O61: ECC/REC/(09)01 | V61: No use at the moment.
A62: RUS | B62: 57000-59000 | C62: X | D62: X | H62: X | M62: 420 | O62: ECC/REC/(09)01 | P62: X | Q62: X | S62: 0.1 | T62: 1 | U62: 2
A63: RUS | B63: 57000-59000 | O63: F.1497 ITU-R
A64: SRB | B64: 57000-59000 | O64: ECC/REC/(09)01 | Y64: It has not been used yet
A65: SWE | B65: 57000-59000 | E65: X | F65: X | O65: ECC/REC/(09)01 | V65: Y | W65: N | Y65: Exemption
A66: SVN | B66: 57000-59000 | E66: X | F66: X | M66: N/A | O66: ECC/REC/(09)01 | R66: x | T66: 1 | V66: N/A
A67: GBR | B67: 57000-59000 | E67: X | J67: X | O67: no channel plan
A68: NOR | B68: 57000-64000 | C68: X | D68: X | J68: X | M68: 1 | O68: ECC/REC/(09)01 | R68: 1 | T68: 0.4
A69: GER | B69: 57100-58900 | E69: x | F69: x | O69: ECC/REC/(09)01 | P69: x
C70: =COUNTA(C54:C69) -> 7 | D70: =COUNTA(D54:D69) -> 4 | E70: 5 | F70: 8 | G70: 2 | H70: 5 | I70: 0 | J70: 2 | L70: =SUM(L54:L69) -> 0 | M70: =SUM(M54:M69) -> 717 | N70: =SUM(N54:N69) -> 0 | P70: =COUNTA(P54:P69) -> 4 | Q70: =COUNTA(Q54:Q69) -> 1 | R70: =COUNTA(R54:R69) -> 2 | S70: =PERCENTILE(S$54:S$69,[1]TOT!$S$1) -> 1.27 | T70: =PERCENTILE(T$54:T$69,[1]TOT!$S$1) -> 1.32 | U70: =PERCENTILE(U$54:U$69,[1]TOT!$S$1) -> 2.18
A71: CHE | B71: 58000-63000 | E71: X | M71: 0 | O71: ECC/REC/(09)01 | V71: no equipment available
A72: GER | B72: 59000-63000 | E72: x | F72: x | O72: ECC/REC/(09)01 | R72: x
A73: CZE | B73: 59000-64000 | K73: MD shared | O73: ECC/REC/(09)01
A74: HUN | B74: 59000-64000 | K74: 59000-61000 MHz Harmonized NATO band type 2. (planned for P-P) | O74: ECC/REC/(09)01
A75: LVA | B75: 59000-64000 | O75: ECC/REC/(09)01 | Y75: SRD, Military band 59-61 GHz
A76: LUX | B76: 59000-64000 | C76: X | F76: X | H76: X | L76: 0 | M76: 0 | O76: ECC/REC/(09)01 | V76: N/A | W76: NO | X76: NO
A77: POR | B77: 59000-64000 | K77: SRD, ISM, Military (59-61 GHz) | O77: ECC/REC/(09)01 | V77: Planned
A78: RUS | B78: 59000-64000 | O78: ECC/REC/(09)01
A79: SRB | B79: 59000-64000 | O79: ECC/REC/(09)01 | Y79: It has not been used yet
A80: SWE | B80: 59000-64000 | E80: X | F80: X | O80: ECC/REC/(09)01 | V80: Y | W80: N | Y80: Exemption
A81: GBR | B81: 59000-64000 | E81: X | J81: X | O81: no channel plan
C82: =COUNTA(C71:C81) -> 1 | D82: =COUNTA(D71:D81) -> 0 | E82: 4 | F82: 3 | G82: 0 | H82: 1 | I82: 0 | J82: 1 | L82: =SUM(L71:L81) -> 0 | M82: =SUM(M71:M81) -> 0 | N82: =SUM(N71:N81) -> 0 | P82: =COUNTA(P71:P81) -> 0 | Q82: =COUNTA(Q71:Q81) -> 0 | R82: =COUNTA(R71:R81) -> 1
A83: GER | B83: 64000-66000 | O83: ECC/REC/(05)02 | R83: x | Y83: not open
A84: GRC | B84: 64000-66000 | O84: ECC/REC/(05)02 | Y84: No current use. Allocation for digital P-P links
A85: HUN | B85: 64000-66000 | F85: X | K85: Reserved for Civil and Non-Civil P-P links | O85: ECC/REC/(05)02
A86: LVA | B86: 64000-66000 | O86: ECC/REC/(05)02 | Y86: SRD
A87: LTU | B87: 64000-66000 | E87: X | F87: X | L87: 0 | M87: 0 | O87: ECC/REC/(05)02
A88: LUX | B88: 64000-66000 | C88: X | F88: X | H88: X | L88: 0 | M88: 0 | O88: ECC/REC/(05)02 | V88: N/A | W88: NO | X88: NO
A89: POR | B89: 64000-66000 | J89: X | O89: ECC/REC/(05)02 | V89: Planned
A90: RUS | B90: 64000-66000 | O90: ECC/REC/(05)02
A91: SRB | B91: 64000-66000 | O91: ECC/REC/(05)02 | Y91: It has not been used yet
A92: SVN | B92: 64000-66000 | C92: X | F92: X | H92: X | M92: planned | O92: ECC/REC/(05)02 | R92: x
A93: CHE | B93: 64000-66000 | C93: X | F93: X | M93: 0 | O93: ECC/REC/(05)02 | V93: no equipment available
A94: GBR | B94: 64000-66000 | C94: X | J94: X | M94: 1 | O94: no channel plan | R94: X
C95: =COUNTA(C83:C94) -> 4 | D95: =COUNTA(D83:D94) -> 0 | E95: 1 | F95: 5 | G95: 0 | H95: 2 | I95: 0 | J95: 2 | L95: =SUM(L83:L94) -> 0 | M95: =SUM(M83:M94) -> 1 | N95: =SUM(N83:N94) -> 0 | P95: =COUNTA(P83:P94) -> 0 | Q95: =COUNTA(Q83:Q94) -> 0 | R95: =COUNTA(R83:R94) -> 3
A96: RUS | B96: 71000-76000 and 81000-86000 | E96: X | O96: ECC/REC/(05)07
A97: CZE | B97: 71000-76000 and 81000-86000 | E97: X | F97: X | M97: 57 | O97: ECC/REC/(05)07 | V97: 100
A98: FRA | B98: 71000-76000 and 81000-86000 | C98: X | F98: X | H98: X | M98: 0 | O98: ECC/REC/(05)07
A99: GER | B99: 71000-76000 and 81000-86000 | C99: x | F99: x | N99: 0 | O99: ECC/REC/(05)07 | R99: x
A100: GRC | B100: 71000-76000 and 81000-86000 | O100: ECC/REC/(05)07 | Y100: No current use. Allocation for digital P-P links
A101: HUN | B101: 71000-76000 and 81000-86000 | K101: 71000-74000 and 81000-84000 MHz Common Civil and Non-Civil band for P-P links | O101: ECC/REC/(05)07
A102: IRL | B102: 71000-76000 and 81000-86000 | C102: X | H102: X | M102: 5 | O102: ECC/REC/(05)07 National Legislation: S.I. 370 of 2009 | R102: X | S102: 0.1 | T102: 1 | U102: 2.9 | V102: 0
A103: LVA | B103: 71000-76000 and 81000-86000 | C103: X | O103: ECC/REC/(05)07 | Y103: Military band 71-74 GHz, 81-84 GHz. Fixed links 74-76GHz, 84-86 GHz
A104: LTU | B104: 71000-76000 and 81000-86000 | E104: X | F104: X | L104: 0 | M104: 0 | O104: ECC/REC/(05)07
A105: NOR | B105: 71000-76000 and 81000-86000 | C105: X | D105: X | J105: X | M105: 4 | O105: ECC/REC/(05)07 | R105: x | S105: 1 | T105: 1.8 | U105: 3.4
A106: POR | B106: 71000-76000 and 81000-86000 | C106: ? | D106: ? | F106: X | G106: X | H106: X | K106: SRD, AM (75.5-76 GHz), Military (71-74 GHz and 81-84 GHz) | O106: ECC/REC/(05)07 | V106: No use at the moment.
A107: SRB | B107: 71000-76000 and 81000-86000 | O107: ECC/REC/(05)07 | Y107: It has not been used yet
A108: SWE | B108: 71000-76000 and 81000-86000 | O108: ECC/REC/(05)07 | V108: Y | W108: N | Y108: Light Lic?
A109: CHE | B109: 71000-76000 and 81000-86000 | C109: X | F109: X | H109: X | M109: starts now | O109: ECC/REC/(05)07 | V109: equipment not clear defined
A110: GBR | B110: 71000-76000 and 81000-86000 | C110: X | J110: X | M110: 30 | O110: no channel plan | R110: X
A111: SVN | B111: 74000-76000 and 84000-86000 | C111: X | F111: X | J111: X | M111: planned | O111: ECC/REC/(05)07 | R111: x
C112: =COUNTA(C96:C111) -> 9 | D112: =COUNTA(D96:D111) -> 2 | E112: 3 | F112: 7 | G112: 1 | H112: 4 | I112: 0 | J112: 3 | L112: =SUM(L96:L111) -> 0 | M112: =SUM(M96:M111) -> 96 | N112: =SUM(N96:N111) -> 0 | P112: =COUNTA(P96:P111) -> 0 | Q112: =COUNTA(Q96:Q111) -> 0 | R112: =COUNTA(R96:R111) -> 5 | S112: =PERCENTILE(S$96:S$111,[1]TOT!$S$1) -> 0.955 | T112: =PERCENTILE(T$96:T$111,[1]TOT!$S$1) -> 1.76 | U112: =PERCENTILE(U$96:U$111,[1]TOT!$S$1) -> 3.375
A113: CZE | B113: 92000-95000 | C113: X | F113: X | M113: 3
A114: HUN | B114: 92000-95000 | O114: 5.149
A115: LVA | B115: 92000-95000
A116: POR | B116: 92000-95000 | J116: X
A117: RUS | B117: 92000-95000 | E117: X
A118: SWE | B118: 92000-95000 | W118: N | Y118: Light Lic?
A119: HUN | C119: X | F119: X | T119: 35
A120: HUN | F120: X | G120: X | K120: 571000-589000 GHz Non-Civil P-P, P-MP systems | O120: ERC/REC 12-09
A121: HUN | K121: 71000-74000 and 81000-84000 MHz Harmonized NATO band type 3. (reserved for military satellite systems)
C123: =COUNTA(C113:C119) -> 2 | D123: =COUNTA(D113:D119) -> 0 | E123: 1 | F123: 2 | G123: 0 | H123: 0 | I123: 0 | J123: 1 | L123: =SUM(L113:L118) -> 0 | M123: =SUM(M113:M118) -> 3 | N123: =SUM(N113:N118) -> 0 | P123: =COUNTA(P113:P118) -> 0 | Q123: =COUNTA(Q113:Q118) -> 0 | R123: =COUNTA(R113:R118) -> 0

Sheet Alf Admins
A1: 1 | B1: =A1+1 -> 2 | C1: =B1+1 -> 3 | D1: 4 | E1: 5 | F1: 6 | G1: 7 | H1: 8 | I1: 9 | J1: 10 | K1: 11 | L1: 12 | M1: 13 | N1: 14 | O1: 15 | P1: 16 | Q1: 17 | R1: 18 | S1: 19 | T1: 20 | U1: 21 | V1: 22 | W1: 23 | X1: 24 | Y1: 25 | Z1: 26 | AA1: 27 | AB1: 28 | AC1: 29 | AD1: 30 | AE1: 31 | AF1: 32 | AG1: 33 | AH1: 34 | AI1: 35 | AJ1: 36 | AK1: 37 | AL1: 38 | AM1: 39 | AN1: 40 | AO1: 41 | AP1: =AO1+1 -> 42 | AQ1: 43 | AR1: 44 | AS1: 45 | AT1: 46 | AU1: 47 | AV1: 48 | AW1: 49 | AX1: 50 | AY1: 51 | AZ1: 52 | BA1: 53 | BB1: 54 | BC1: 55
A2: Respondent | B2: Country code | C2: Band index | D2: Frequency band (MHz) | E2: Licensing regime | I2: Topo-logy | K2: Application | P2: Number of P-P links | R2: Number of CS | S2: Channel/Frequency plan used (e.g. ERC/ECC Rec. ITU-R Rec.) | T2: Link characteristics | Z2: Future trends (e.g. in the next 5 years)
I3: FWA | K3: Network Infrastruc-ture | T3: Capacity | W3: Hop length (km)
E4: Link by link | F4: Block | G4: Light licensed | H4: Licence exempt | I4: P-P | J4: P-MP | K4: Mobile backhaul | L4: Others | M4: Broadcasting Infrastructure | N4: No Information available on the application | O4: Other (please indicate) | P4: unidirection | Q4: bidirectional (1 bidirectional link counts 1) | R4: (applicable only for P-MP and mesh networks) | T4: LOW (<10 Mbit/s) | U4: MEDIUM (10 to 100 Mbit/s) | V4: HIGH (>100 Mbit/s) | W4: MIN | X4: Typical figure | Y4: MAX | Z4: Anticipated growth/reduction (+/-%) | AA4: Currently congested | AB4: Planned reallocation to other service/application | AC4: Other (please describe) (see Question 3 of the Questionnaire)
A5: Austria | B5: AUT | C5: 0 | D5: 1375-1400 and 1427-1452 | E5: X | I5: X | K5: X | Q5: 8 | S5: T/R 13-01 Annex B | T5: x | W5: 3 | X5: 20 | Y5: 60
A6: Austria | B6: AUT | C6: 0 | D6: 2025-2110 and 2200-2290 | E6: X | M6: X | O6: mo | S6: T/R 13-01 Annex C
A7: Austria | B7: AUT | C7: 0 | D7: 2025-2110 and 2200-2290 | M7: X | O7: mo | S7: national
A8: Austria | B8: AUT | C8: 0 | D8: 3400-3600 | E8: X | J8: X | K8: X | R8: 240 | S8: ERC/REC 14-03 | T8: X | W8: 3 | X8: 15 | Y8: 30
A9: Austria | B9: AUT | C9: 0 | D9: 3600-4200 | E9: X | I9: X | K9: X | Q9: 90 | S9: ERC/REC 12-08 | U9: X | W9: 13 | X9: 50 | Y9: 100
A10: Austria | B10: AUT | C10: 0 | D10: 4400-5000 | E10: X | M10: X | O10: mo | S10: national
A11: Austria | B11: AUT | C11: 0 | D11: 4400-5000
A12: Austria | B12: AUT | C12: 0 | D12: 5925-7125 | E12: X | I12: X | K12: X | Q12: 336 | S12: ERC/REC 14-01 and ERC/REC 14-02 | V12: X | W12: 5 | X12: 45 | Y12: 70
A13: Austria | B13: AUT | C13: 0 | D13: 7125-7750 | E13: X | I13: X | Q13: 570 | S13: ECC REC (02)06 | U13: X | V13: X | W13: 1 | X13: 40 | Y13: 78
A14: Austria | B14: AUT | C14: 0 | D14: 7750-7900 | M14: X | O14: mo | S14: national
A15: Austria | B15: AUT | C15: 0 | D15: 7900-8500 | E15: X | I15: X | K15: X | M15: X | Q15: 73 | S15: ECC REC (02)06 | U15: X | V15: X | W15: 1 | X15: 35 | Y15: 60
A16: Austria | B16: AUT | C16: 0 | D16: 10000-10680 | E16: X | I16: X | K16: X | Q16: 158 | S16: ERC/REC 12-05 | U16: x | W16: 1 | X16: 30 | Y16: 80
A17: Austria | B17: AUT | C17: 0 | D17: 10700-11700 | E17: X | I17: X | K17: X | Q17: 21 | S17: ERC/REC 12-06
A18: Austria | B18: AUT | C18: 0 | D18: 11700-12500
A19: Austria | B19: AUT | C19: 0 | D19: 12750-13250 | E19: X | I19: X | K19: X | Q19: 137 | S19: ERC/REC 12-02 | V19: x | W19: 3 | X19: 25 | Y19: 52
A20: Austria | B20: AUT | C20: 0 | D20: 14250-14500
A21: Austria | B21: AUT | C21: 0 | D21: 14500-14620 and 15230-15350 | E21: X | I21: X | K21: X | Q21: 631 | S21: ERC/REC 12-07 | T21: x | U21: x | V21: x | W21: 1 | X21: 15 | Y21: 44
A22: Austria | B22: AUT | C22: 0 | D22: 21200-22000 | E22: X | M22: X | O22: mo | S22: national
A23: Austria | B23: AUT | C23: 0 | D23: 22000-22600 and 23000-23600 | E23: X | I23: X | K23: X | Q23: 2885 | S23: T/R 13-02 Annexes A1, A2, A3 | T23: x | U23: x | V23: x | W23: 1 | X23: 10 | Y23: 20
A24: Austria | B24: AUT | C24: 0 | D24: 24500-26500 | E24: X | I24: X | K24: X | Q24: 2365 | S24: T/R 13-02 Annex B | T24: x | U24: x | V24: x | W24: 1 | X24: 6 | Y24: 24
A25: Austria | B25: AUT | C25: 0 | D25: 24500-26500
A26: Austria | B26: AUT | C26: 0 | D26: 27500-29500 | E26: X | I26: X | K26: X | Q26: 156 | S26: T/R 13-02 Annex C | V26: x | W26: 1 | X26: 2 | Y26: 4
A27: Austria | B27: AUT | C27: 0 | D27: 27500-29500
A28: Austria | B28: AUT | C28: 0 | D28: 31800-33400
A29: Austria | B29: AUT | C29: 0 | D29: 37000-39500 | E29: X | I29: X | K29: X | Q29: 5273 | S29: T/R 12-01 | T29: x | U29: x | V29: x | W29: 1 | X29: 5 | Y29: 17
A30: Austria | B30: AUT | C30: 0 | D30: 40500-43500 | S30: ECC/REC/(01)04
A31: Bosnia and Herzegovina | B31: BIH | C31: 0 | D31: 370-400 | E31: X | M31: X | P31: 129 | T31: X | W31: 1 | X31: 30 | Y31: 100 | AC31: 370-400 MHz: Planned migration of P-P links to 1350-1375/1492-1517 and 1375-1400/1427-1452 MHz
A32: Bosnia and Herzegovina | B32: BIH | C32: 0 | D32: 1350-1375 and 1492-1517 | E32: X | M32: X | P32: 48 | S32: T/R 13-01 Annex A | T32: X | W32: 0.5 | X32: 7 | Y32: 70 | Z32: +15
A33: Bosnia and Herzegovina | B33: BIH | C33: 0 | D33: 1375-1400 and 1427-1452 | E33: X | M33: X | P33: 5 | S33: T/R 13-01 Annex B | T33: X | W33: 5 | X33: 20 | Y33: 90 | Z33: +15
A34: Bosnia and Herzegovina | B34: BIH | C34: 0 | D34: 2025-2110 and 2200-2290 | E34: X | M34: X | P34: 27 | S34: T/R 13-01 Annex C | T34: X | W34: 1 | X34: 55 | Y34: 99 | Z34: +10
A35: Bosnia and Herzegovina | B35: BIH | C35: 0 | D35: 3400-3600 | E35: X | K35: X | M35: X | P35: 9 | Q35: 1 | S35: ERC/REC 14-03 Annex B | T35: X | U35: X | X35: 2 | AC35: 3400-3600 MHz: Only two channels are available for P-P links out of FWA systems. We still do not have active implemented FWA systems. 3400-3600, 3600-3800, 7725-8275, 10700-11700 MHz: Broadcast infrastructure P-P links are planned to migrate in 3800-4200 MHz
A36: Bosnia and Herzegovina | B36: BIH | C36: 0 | D36: 3400-3600 | F36: X | I36: X | J36: X | U36: X | V36: X | Z36: +25 | AC36: 3400-3600, 3600-3800, 7725-8275, 10700-11700 MHz: Broadcast infrastructure P-P links are planned to migrate in 3800-4200 MHz
A37: Bosnia and Herzegovina | B37: BIH | C37: 0 | D37: 3600-3800 | E37: X | M37: X | P37: 9 | S37: ERC/REC 12-08 | U37: X | V37: X | AC37: 3400-3600, 3600-3800, 7725-8275, 10700-11700 MHz: Broadcast infrastructure P-P links are planned to migrate in 3800-4200 MHz
A38: Bosnia and Herzegovina | B38: BIH | C38: 0 | D38: 3600-3800 | F38: X | I38: X | J38: X | R38: 65 | V38: X | Z38: +25
A39: Bosnia and Herzegovina | B39: BIH | C39: 0 | D39: 3800-4200 | E39: X | M39: X | P39: 11 | Q39: 3 | S39: ERC/REC 12-08 Annex B | W39: 27 | X39: 35 | Y39: 85 | Z39: +40
A40: Bosnia and Herzegovina | B40: BIH | C40: 0 | D40: 5850-5925
A41: Bosnia and Herzegovina | B41: BIH | C41: 0 | D41: 5925-7125 | E41: X | K41: X | P41: 5 | Q41: 302 | S41: ERC/REC 14-01 and ERC/REC 14-02 | V41: X | W41: 8 | X41: 60 | Y41: 134 | AA41: X
A42: Bosnia and Herzegovina | B42: BIH | C42: 0 | D42: 7125-7750 | E42: X | K42: X | Q42: 113 | S42: ECC REC (02)06 | U42: X | V42: X | W42: 4 | X42: 40 | Y42: 90 | AA42: X
A43: Bosnia and Herzegovina | B43: BIH | C43: 0 | D43: 7125-7750 | E43: X | K43: X | P43: 10 | Q43: 62 | S43: ITU-R F.385 | U43: X | V43: X
A44: Bosnia and Herzegovina | B44: BIH | C44: 0 | D44: 7725–8275 | E44: X | K44: X | M44: X | P44: 34 | Q44: 143 | S44: ITU-R F.386, Annex 6 | U44: X | V44: X | W44: 4 | X44: 38 | Y44: 83 | AA44: X | AC44: 3400-3600, 3600-3800, 7725-8275, 10700-11700 MHz: Broadcast infrastructure P-P links are planned to migrate in 3800-4200 MHz
A45: Bosnia and Herzegovina | B45: BIH | C45: 0 | D45: 8275-8500 | E45: X | K45: X | Q45: 17 | S45: ITU-R F.386, Annex 2 | U45: X | W45: 7 | X45: 25 | Y45: 65 | AA45: X
A46: Bosnia and Herzegovina | B46: BIH | C46: 0 | D46: 10000-10680 | E46: X | M46: X | P46: 103 | S46: ERC/REC 12-05 | T46: X | U46: X | W46: 1 | X46: 27 | Y46: 80 | Z46: +15 | AC46: 10000-10680 MHz: Shared band between P-P links and FWA. We still do not have active implemented FWA systems.
A47: Bosnia and Herzegovina | B47: BIH | C47: 0 | D47: 10000-10680 | F47: X | I47: X | J47: X | S47: ERC/REC 12-05 Annex A
A48: Bosnia and Herzegovina | B48: BIH | C48: 0 | D48: 10700-11700 | E48: X | K48: X | M48: X | P48: 37 | Q48: 38 | S48: ERC/REC 12-06 | T48: X | U48: X | W48: 1 | X48: 25 | Y48: 64 | Z48: +15 | AC48: 3400-3600, 3600-3800, 7725-8275, 10700-11700 MHz: Broadcast infrastructure P-P links are planned to migrate in 3800-4200 MHz
A49: Bosnia and Herzegovina | B49: BIH | C49: 0 | D49: 11700-12500 | S49: ERC/DEC(00)08
A50: Bosnia and Herzegovina | B50: BIH | C50: 0 | D50: 11700-12500 | F50: X | M50: X | R50: 16 | Z50: +10
A51: Bosnia and Herzegovina | B51: BIH | C51: 0 | D51: 12750-13250 | E51: X | K51: X | Q51: 31 | S51: ERC/REC 12-02 | T51: X | U51: X | V51: X | W51: 2 | X51: 20 | Y51: 34 | Z51: +15
A52: Bosnia and Herzegovina | B52: BIH | C52: 0 | D52: 14250-14500
A53: Bosnia and Herzegovina | B53: BIH | C53: 0 | D53: 14400-15350 | E53: X | K53: X | Q53: 162 | S53: ITU-R F.636 | T53: X | U53: X | W53: 1 | X53: 15 | Y53: 45 | AC53: 14400-15350 MHz: Planned leaving of ITU rec. and fully harmonization according to ERC/REC 12-07
A54: Bosnia and Herzegovina | B54: BIH | C54: 0 | D54: 14500-14620 and 15230-15350 | E54: X | K54: X | Q54: 278 | S54: ERC/REC 12-07 | T54: X | U54: X | W54: 1 | X54: 15 | Y54: 45
A55: Bosnia and Herzegovina | B55: BIH | C55: 0 | D55: 21200-22000 | E55: X | K55: X | Q55: 256 | T55: X | U55: X | V55: X | W55: 0.5 | X55: 5 | Y55: 20 | AC55: 21200-22000 MHz: Planned leaving of band and full harmonization according to T/R 13-02 Annexes A1, A2, A3
A56: Bosnia and Herzegovina | B56: BIH | C56: 0 | D56: 22000-22600 and 23000-23600 | E56: X | K56: X | Q56: 421 | S56: T/R 13-02 Annexes A1, A2, A3 | T56: X | U56: X | V56: X | W56: 0.5 | X56: 5 | Y56: 20 | Z56: +20
A57: Bosnia and Herzegovina | B57: BIH | C57: 0 | D57: 24500-26500 | E57: X | F57: X | K57: X | Q57: 3 | S57: T/R 13-02 Annex B | T57: X | U57: X | V57: X | W57: 1 | X57: 4 | Y57: 6 | Z57: +35 | AC57: 24500-26500, 27500-29500 MHz: Shared band between P-P links and FWA. Actually, block assignments for P-P links in process. We still do not have active implemented FWA systems.
A58: Bosnia and Herzegovina | B58: BIH | C58: 0 | D58: 24500-26500 | F58: X | I58: X | J58: X
A59: Bosnia and Herzegovina | B59: BIH | C59: 0 | D59: 27500-29500 | E59: X | F59: X | S59: T/R 13-02 Annex C | Z59: +5 | AC59: 24500-26500, 27500-29500 MHz: Shared band between P-P links and FWA. Actually, block assignments for P-P links in process. We still do not have active implemented FWA
A60: Bosnia and Herzegovina | B60: BIH | C60: 0 | D60: 27500-29500 | F60: X | I60: X | J60: X
A61: Bosnia and Herzegovina | B61: BIH | C61: 0 | D61: 31800-33400
A62: Bosnia and Herzegovina | B62: BIH | C62: 0 | D62: 37000-39500 | E62: X | K62: X | P62: 1 | Q62: 23 | S62: T/R 12-01 | T62: X | W62: 0.1 | X62: 1 | Y62: 5 | Z62: +5
A63: Bosnia and Herzegovina | B63: BIH | C63: 0 | D63: 40500-43500 | S63: ECC/REC/(01)04
A64: Croatia | B64: HRV | C64: 0 | D64: 1350-1375 and 1492-1517 | S64: T/R 13-01 Annex A
A65: Croatia | B65: HRV | C65: 0 | D65: 1375-1400 and 1427-1452 | S65: T/R 13-01 Annex B
A66: Croatia | B66: HRV | C66: 0 | D66: 2025-2110 and 2200-2290 | E66: X | M66: X | P66: 182 | S66: National plan | T66: X | W66: 0.09 | X66: 8.9 | Y66: 55.6
A67: Croatia | B67: HRV | C67: 0 | D67: 3400-3600 | F67: X | J67: X | R67: 67 | S67: ERC/REC 14-03 | Z67: -30
A68: Croatia | B68: HRV | C68: 0 | D68: 3600-4200 | E68: X | M68: X | Q68: 9 | S68: ERC/REC 12-08 | U68: X
A69: Croatia | B69: HRV | C69: 0 | D69: 3600-4200 | E69: X | K69: X | P69: 1 | Q69: 70 | V69: X | W69: 20.2 | X69: 44.2 | Y69: 91.4 | Z69: 10
A70: Croatia | B70: HRV | C70: 0 | D70: 5850-5925
A71: Croatia | B71: HRV | C71: 0 | D71: 5925-7125 | E71: X | K71: X | Q71: 98 | S71: ERC/REC 14-01 and ERC/REC 14-02 | V71: X | W71: 10.7 | X71: 34.1 | Y71: 70.8 | Z71: 20 | AA71: x
A72: Croatia | B72: HRV | C72: 0 | D72: 7125-7750 | E72: X | K72: X | Q72: 171 | S72: Bands 7125 - 7425 and 7425 - 7725 with diff. ch. arrangements | U72: X | V72: X | W72: 3.8 | X72: 37.7 | Y72: 91.4 | Z72: 30 | AA72: x
A73: Croatia | B73: HRV | C73: 0 | D73: 7750-7900 | E73: X | K73: X | M73: X | Q73: 146 | S73: Band 7725 - 8275 | V73: X | W73: 21.1 | X73: 50.3 | Y73: 91.4 | AA73: x
A74: Croatia | B74: HRV | C74: 0 | D74: 7900-8500 | E74: X | K74: X | Q74: 14 | S74: Band 8275 - 8500 | U74: X | W74: 7.5 | X74: 20.1 | Y74: 31.4
A75: Croatia | B75: HRV | C75: 0 | D75: 10000-10680 | E75: X | M75: X | P75: 2 | S75: ERC/REC 12-05 | U75: x
A76: Croatia | B76: HRV | C76: 0 | D76: 10000-10680 | F76: X | J76: X
A77: Croatia | B77: HRV | C77: 0 | D77: 10700-11700 | E77: X | K77: X | Q77: 8 | S77: ERC/REC 12-06 | V77: x | W77: 7.5 | X77: 20.2 | Y77: 29.8
A78: Croatia | B78: HRV | C78: 0 | D78: 11700-12500
A79: Croatia | B79: HRV | C79: 0 | D79: 12750-13250 | E79: X | K79: X | Q79: 244 | S79: ERC/REC 12-02 | U79: x | W79: 1.5 | X79: 19.2 | Y79: 49.2 | Z79: 20 | AA79: x
A80: Croatia | B80: HRV | C80: 0 | D80: 12750-13250 | E80: X | M80: X | P80: 1
A81: Croatia | B81: HRV | C81: 0 | D81: 14250-14500
A82: Croatia | B82: HRV | C82: 0 | D82: 14500-14620 and 15230-15350 | E82: X | M82: X | P82: 20 | S82: ERC/REC 12-07 | W82: 0.6 | X82: 9.9 | Y82: 22.7
A83: Croatia | B83: HRV | C83: 0 | D83: 22000-22600 and 23000-23600 | E83: X | K83: X | Q83: 1220 | S83: T/R 13-02 Annexes A1, A2, A3 | U83: x | W83: 0.18 | X83: 5.5 | Y83: 21.1 | Z83: 10
A84: Croatia | B84: HRV | C84: 0 | D84: 24500-26500 | F84: X | J84: X | S84: T/R 13-02 Annex B
A85: Croatia | B85: HRV | C85: 0 | D85: 24500-26500
A86: Croatia | B86: HRV | C86: 0 | D86: 27500-29500 | S86: T/R 13-02 Annex C
A87: Croatia | B87: HRV | C87: 0 | D87: 27500-29500
A88: Croatia | B88: HRV | C88: 0 | D88: 31800-33400
A89: Croatia | B89: HRV | C89: 0 | D89: 37000-39500 | E89: X | K89: X | Q89: 335 | S89: T/R 12-01 | U89: x | W89: 0.07 | X89: 0.42 | Y89: 4.9 | Z89: 20
A90: Croatia | B90: HRV | C90: 0 | D90: 40500-43500 | S90: ECC/REC/(01)04
A91: Cyprus | B91: CYP | C91: 0 | D91: 1350-1375 and 1492-1517 | E91: X | M91: X | P91: 13 | S91: T/R 13-01 Annex A | T91: X | W91: 0.9 | Y91: 58.65
A92: Cyprus | B92: CYP | C92: 0 | D92: 1350-1375 and 1492-1517 | E92: X | M92: X | P92: 17 | T92: X | W92: 0.9 | Y92: 73.55
A93: Cyprus | B93: CYP | C93: 0 | D93: 1375-1400 and 1427-1452 | E93: X | M93: X | P93: 6 | S93: T/R 13-01 Annex B | T93: X | W93: 3.52 | Y93: 35.47
A94: Cyprus | B94: CYP | C94: 0 | D94: 1375-1400 and 1427-1452 | E94: X | M94: X | P94: 8 | T94: X | W94: 22.62 | Y94: 74.21
A95: Cyprus | B95: CYP | C95: 0 | D95: 2025-2110 and 2200-2290 | S95: T/R 13-01 Annex C | AB95: X
A96: Cyprus | B96: CYP | C96: 0 | D96: 3400-3600 | E96: P.C. | S96: 2008/411/EC
A97: Cyprus | B97: CYP | C97: 0 | D97: 3600-4200 | E97: P.C. (3.6-3.8 GHz) | S97: 2008/411/EC
A98: Cyprus | B98: CYP | C98: 0 | D98: 4400-5000 | AB98: X
A99: Cyprus | B99: CYP | C99: 0 | D99: 4400-5000
A100: Cyprus | B100: CYP | C100: 0 | D100: 5850-5925 | E100: X | M100: X | P100: 2 | U100: X | W100: PORTABLE
A101: Cyprus | B101: CYP | C101: 0 | D101: 5925-7125 | E101: X | K101: X | M101: X | P101: 17 | Q101: 27 | S101: ERC/REC 14-01 and ERC/REC 14-02 | T101: X | U101: X | W101: 7.19 | Y101: 53
A102: Cyprus | B102: CYP | C102: 0 | D102: 7125-7750 | E102: X | K102: X | M102: x | P102: 8 | Q102: 48 | S102: ECC REC (02)06 | T102: X | U102: X | W102: 0.49 | Y102: 63.77
A103: Cyprus | B103: CYP | C103: 0 | D103: 7750-7900
A104: Cyprus | B104: CYP | C104: 0 | D104: 7900-8500 | E104: X | M104: X | P104: 14 | S104: ECC REC (02)06 | T104: X | U104: X | W104: 8.29 | Y104: 40.02
A105: Cyprus | B105: CYP | C105: 0 | D105: 10000-10680 | E105: X | M105: X | P105: 56 | S105: ERC/REC 12-05 | T105: X | U105: X | W105: 0.53 | Y105: 70
A106: Cyprus | B106: CYP | C106: 0 | D106: 10700-11700 | E106: X | K106: X | M106: X | P106: 3 | Q106: 30 | S106: ERC/REC 12-06 | U106: X | W106: 2.01 | Y106: 34.13
A107: Cyprus | B107: CYP | C107: 0 | D107: 11700-12500 | E107: X | M107: X | P107: 10 | U107: X | W107: 2.75 | Y107: 30.18
A108: Cyprus | B108: CYP | C108: 0 | D108: 12750-13250 | E108: X | K108: X | Q108: 278 | S108: ERC/REC 12-02 | T108: X | U108: X | W108: 0.29 | Y108: 40.94 | AA108: X
A109: Cyprus | B109: CYP | C109: 0 | D109: 14250-14500 | E109: X | M109: X | P109: 14 | S109: ERC/REC 13-03 | U109: X | W109: 8.29 | Y109: 36.46
A110: Cyprus | B110: CYP | C110: 0 | D110: 14500-14620 and 15230-15350 | E110: X | M110: X | P110: 12 | S110: ERC/REC 12-07 | U110: X | W110: 0.45 | Y110: 38.17
A111: Cyprus | B111: CYP | C111: 0 | D111: 21200-22000 | E111: X | K111: X | Q111: 97 | T111: X | U111: X | W111: 0.2 | Y111: 18.27 | AA111: X
A112: Cyprus | B112: CYP | C112: 0 | D112: 22000-22600 and 23000-23600 | E112: X | K112: X | Q112: 738 | S112: T/R 13-02 Annexes A1, A2, A3 | T112: X | U112: X | W112: 0.25 | Y112: 15.16 | AA112: X
A113: Cyprus | B113: CYP | C113: 0 | D113: 22600-23000 | E113: X | K113: X | P113: 37 | S113: National | T113: X | U113: X | W113: 0.2 | Y113: 18.14 | AB113: X
A114: Cyprus | B114: CYP | C114: 0 | D114: 24500-26500 | S114: T/R 13-02 Annex B
A115: Cyprus | B115: CYP | C115: 0 | D115: 24500-26500
A116: Cyprus | B116: CYP | C116: 0 | D116: 27500-29500 | S116: T/R 13-02 Annex C
A117: Cyprus | B117: CYP | C117: 0 | D117: 27500-29500
A118: Cyprus | B118: CYP | C118: 0 | D118: 31800-33400
A119: Cyprus | B119: CYP | C119: 0 | D119: 37000-39500 | S119: T/R 12-01
A120: Cyprus | B120: CYP | C120: 0 | D120: 40500-43500 | S120: ECC/REC/(01)04
A121: Czech Republic | B121: CZE | C121: 0 | D121: 1350-1375 and 1492-1517 | O121: MD | S121: T/R 13-01 Annex A
A122: Czech Republic | B122: CZE | C122: 0 | D122: 1375-1400 and 1427-1452 | O122: MD | S122: T/R 13-01 Annex B
A123: Czech Republic | B123: CZE | C123: 0 | D123: 2025-2110 and 2200-2290 | E123: X | J123: X | O123: MD shared | R123: 110 | S123: T/R 13-01 Annex C | Z123: 0
A124: Czech Republic | B124: CZE | C124: 0 | D124: 3400-3600 | E124: X | F124: X | I124: X | J124: X | R124: 667 | S124: ERC/REC 14-03 | Z124: 100 | AC124: P-MP, FWA planned
A125: Czech Republic | B125: CZE | C125: 0 | D125: 3600-3800 | E125: X | I125: X | Q125: 150 | S125: ERC/REC 12-08 | AB125: X | AC125: DEC EC/411/EC
A126: Czech Republic | B126: CZE | C126: 0 | D126: 3800-4200 | E126: X | I126: X | Q126: 479 | S126: ERC/REC 12-08
A127: Czech Republic | B127: CZE | C127: 0 | D127: 4400-5000 | O127: MD | AC127: civil/MD sharing
A128: Czech Republic | B128: CZE | C128: 0 | D128: 4400-5000
A129: Czech Republic | B129: CZE | C129: 0 | D129: 5850-5925 | O129: MD | AC129: civil/MD sharing
A130: Czech Republic | B130: CZE | C130: 0 | D130: 5925-7125 | E130: X | I130: X | Q130: 1642 | S130: ERC/REC 14-01 and ERC/REC 14-02
A131: Czech Republic | B131: CZE | C131: 0 | D131: 7125-7750 | E131: X | I131: X | Q131: 1050 | S131: ECC REC (02)06 | AB131: x | AC131: civil/MD sharing
A132: Czech Republic | B132: CZE | C132: 0 | D132: 7750-7900 | O132: MD
A133: Czech Republic | B133: CZE | C133: 0 | D133: 7900-8500 | O133: MD | S133: ECC REC (02)06
A134: Czech Republic | B134: CZE | C134: 0 | D134: 10000-10680 | O134: MD | S134: ERC/REC 12-05
A135: Czech Republic | B135: CZE | C135: 0 | D135: 10000-10680 | E135: X | H135: X | I135: X | Q135: 21
A136: Czech Republic | B136: CZE | C136: 0 | D136: 10700-11700 | E136: X | J136: X | R136: 1845 | S136: ERC/REC 12-06 | Z136: 20
A137: Czech Republic | B137: CZE | C137: 0 | D137: 11700-12500 | E137: X | I137: X | P137: 31 | Z137: 10
A138: Czech Republic | B138: CZE | C138: 0 | D138: 12750-13250 | E138: X | I138: X | Q138: 1288 | S138: ERC/REC 12-02 | Z138: 10
A139: Czech Republic | B139: CZE | C139: 0 | D139: 14250-14500 | Z139: 0 | AC139: sat. services planned
A140: Czech Republic | B140: CZE | C140: 0 | D140: 14500-14620 and 15230-15350 | E140: X | I140: X | Q140: 20 | S140: ERC/REC 12-07
A141: Czech Republic | B141: CZE | C141: 0 | D141: 17300-17700 | AC141: FS considered
A142: Czech Republic | B142: CZE | C142: 0 | D142: 22000-22600 and 23000-23600 | E142: X | I142: X | Q142: 3707 | S142: T/R 13-02 Annexes A1, A2, A3 | Z142: 5
A143: Czech Republic | B143: CZE | C143: 0 | D143: 22600-22700 | AC143: ENG/OB
A144: Czech Republic | B144: CZE | C144: 0 | D144: 22700-23000 | AC144: no utilisation
A145: Czech Republic | B145: CZE | C145: 0 | D145: 24250-24500 | AC145: SAB
A146: Czech Republic | B146: CZE | C146: 0 | D146: 24500-24745/25500-25753 | F146: X | J146: X | R146: 133 | S146: T/R 13-02 Annex B | Z146: 10
A147: Czech Republic | B147: CZE | C147: 0 | D147: 24745-25500/25753-26500 | E147: X | I147: X | Q147: 4537 | Z147: 10
A148: Czech Republic | B148: CZE | C148: 0 | D148: 26500-27500 | O148: MD
A149: Czech Republic | B149: CZE | C149: 0 | D149: 26500-27500
A150: Czech Republic | B150: CZE | C150: 0 | D150: 27500-29500 | F150: X | J150: X | R150: 41 | S150: T/R 13-02 Annex C
A151: Czech Republic | B151: CZE | C151: 0 | D151: 27500-29500 | E151: X | F151: X | I151: X | J151: X | Q151: 189
A152: Czech Republic | B152: CZE | C152: 0 | D152: 31000-31300 | E152: X | I152: X | S152: ECC/REC/(02)02 | Z152: 5
A153: Czech Republic | B153: CZE | C153: 0 | D153: 31800-33400 | E153: X | I153: X | Q153: 50 | S153: ERC/REC/(01)02 | Z153: 50
A154: Czech Republic | B154: CZE | C154: 0 | D154: 37000-39500 | E154: X | I154: X | Q154: 5603 | S154: T/R 12-01 | Z154: 5
A155: Czech Republic | B155: CZE | C155: 0 | D155: 40500-43500 | E155: X | I155: X | S155: ECC/REC/(01)04 | Z155: yes | AC155: P-P and P-MP planned
A156: Czech Republic | B156: CZE | C156: 0 | D156: 47200-48500 | E156: X | I156: X | AC156: incr. of utilisation expected
A157: Czech Republic | B157: CZE | C157: 0 | D157: 48500-50200 | E157: X | I157: X | S157: ERC/REC 12-10 | AC157: incr. of utilisation expected
A158: Czech Republic | B158: CZE | C158: 0 | D158: 50400-51400 | AC158: incr. of utilisation expected
A159: Czech Republic | B159: CZE | C159: 0 | D159: 51400-52600 | S159: ERC/REC 12-11 | AC159: incr. of utilisation expected
A160: Czech Republic | B160: CZE | C160: 0 | D160: 55780-57000 | S160: ERC/REC 12-12 | AC160: incr. of utilisation expected
A161: Czech Republic | B161: CZE | C161: 0 | D161: 57000-59000 | E161: X | I161: X | Q161: 3 | S161: ECC/REC/(09)01 | Z161: yes
A162: Czech Republic | B162: CZE | C162: 0 | D162: 59000-64000 | O162: MD shared | S162: ECC/REC/(09)01
A163: Czech Republic | B163: CZE | C163: 0 | D163: 71000-76000 and 81000-86000 | H163: X | I163: X | Q163: 57 | S163: ECC/REC/(05)07 | Z163: 100
A164: Czech Republic | B164: CZE | C164: 0 | D164: 92000-95000 | E164: X | I164: X | Q164: 3
A165: Denmark | B165: DNK | C165: 0 | D165: 1350-1375 and 1492-1517 | S165: T/R 13-01 Annex A
A166: Denmark | B166: DNK | C166: 0 | D166: 1375-1400 and 1427-1452 | S166: T/R 13-01 Annex B
A167: Denmark | B167: DNK | C167: 0 | D167: 2025-2110 and 2200-2290 | S167: T/R 13-01 Annex C
A168: Denmark | B168: DNK | C168: 0 | D168: 3400-3600 | E168: X | R168: 29 | S168: ERC/REC 14-03
A169: Denmark | B169: DNK | C169: 0 | D169: 3400-3600 | F169: X | AC169: No info
A170: Denmark | B170: DNK | C170: 0 | D170: 3600-4200 | E170: X | R170: 21 | S170: ERC/REC 12-08
A171: Denmark | B171: DNK | C171: 0 | D171: 3600-4200 | F171: X | AC171: No info
A172: Denmark | B172: DNK | C172: 0 | D172: 5850-5925
A173: Denmark | B173: DNK | C173: 0 | D173: 5925-7125 | E173: X | Q173: 22 | S173: ERC/REC 14-01 and ERC/REC 14-02
A174: Denmark | B174: DNK | C174: 0 | D174: 7125-7750 | E174: X | Q174: 225 | S174: ECC REC (02)06 | W174: 20
A175: Denmark | B175: DNK | C175: 0 | D175: 7750-7900
A176: Denmark | B176: DNK | C176: 0 | D176: 7900-8500 | E176: X | Q176: 4 | S176: ECC REC (02)06 | W176: 20
A177: Denmark | B177: DNK | C177: 0 | D177: 10000-10680 | E177: X | R177: 47 | S177: ERC/REC 12-05
A178: Denmark | B178: DNK | C178: 0 | D178: 10000-10680 | F178: X | Q178: No info
A179: Denmark | B179: DNK | C179: 0 | D179: 10000-10680 | E179: X | Q179: 1
A180: Denmark | B180: DNK | C180: 0 | D180: 10700-11700 | E180: X | R180: 1 | S180: ERC/REC 12-06
A181: Denmark | B181: DNK | C181: 0 | D181: 11700-12500
A182: Denmark | B182: DNK | C182: 0 | D182: 12750-13250 | E182: X | Q182: 4 | S182: ERC/REC 12-02 | W182: 12
A183: Denmark | B183: DNK | C183: 0 | D183: 14250-14500
A184: Denmark | B184: DNK | C184: 0 | D184: 14500-14620 and 15230-15350 | E184: X | Q184: 299 | S184: ERC/REC 12-07 | W184: 12
A185: Denmark | B185: DNK | C185: 0 | D185: 22000-22600 and 23000-23600 | F185: X | Q185: No info | S185: T/R 13-02 Annexes A1, A2, A3
A186: Denmark | B186: DNK | C186: 0 | D186: 22000-22600 and 23000-23600 | E186: X | Q186: 650
A187: Denmark | B187: DNK | C187: 0 | D187: 22600-23000 | E187: X | Q187: 1
A188: Denmark | B188: DNK | C188: 0 | D188: 24250-24500 | E188: X | Q188: 1
A189: Denmark | B189: DNK | C189: 0 | D189: 24500-26500 | F189: X | R189: No info | S189: T/R 13-02 Annex B
A190: Denmark | B190: DNK | C190: 0 | D190: 24500-26500 | E190: X | R190: 135
A191: Denmark | B191: DNK | C191: 0 | D191: 27500-29500 | E191: X | R191: 18 | S191: T/R 13-02 Annex C
A192: Denmark | B192: DNK | C192: 0 | D192: 27500-29500
A193: Denmark | B193: DNK | C193: 0 | D193: 31800-33400 | F193: X | Q193: No info | S193: ERC/REC/(01)02
A194: Denmark | B194: DNK | C194: 0 | D194: 37000-39500 | E194: X | Q194: 158 | S194: T/R 12-01
A195: Denmark | B195: DNK | C195: 0 | D195: 37000-39500 | F195: X | Q195: No info
A196: Denmark | B196: DNK | C196: 0 | D196: 40500-43500 | S196: ECC/REC/(01)04
A197: Denmark | B197: DNK | C197: 0 | D197: 50400-51400 | E197: X | Q197: 1
A198: Estonia | B198: EST | C198: 0 | D198: 1350-1375 and 1492-1517 | S198: T/R 13-01 Annex A
A199: Estonia | B199: EST | C199: 0 | D199: 1375-1400 and 1427-1452 | S199: T/R 13-01 Annex B
A200: Estonia | B200: EST | C200: 0 | D200: 2025-2110 and 2200-2290 | S200: T/R 13-01 Annex C
... 823 more rows
